Workbook

Sheet Cover

Sheet General Inputs
A1: General Inputs
A3: WACC calculation
A4: Inflation rate (forecast) | B4: 0.030481278
A5: Real Vanilla WACC | B5: 0.02066724418
A6: Nominal Vanilla WACC | B6: 0.0517784862
A8: Inflation index
B9: 2018 | C9: 2019 | D9: 2020 | E9: 2021 | F9: 2022 | G9: 2023 | H9: 2024 | I9: 2025 | J9: 2026 | K9: 2027 | L9: 2028
A10: March | B10: 112.6 | C10: 114.1 | D10: 116.6 | E10: 117.9 | F10: =E13*1.0305^0.25 -> 122.2145182 | G10: 125.942061 | H10: 129.7832938 | I10: 133.7416843 | J10: 137.8208057 | K10: 142.0243402 | L10: 146.3560826
A11: June | B11: 113 | C11: 114.8 | D11: 114.4 | E11: 118.8 | F11: =F10*1.0305^0.25 -> 123.1359312 | G11: 126.8915771 | H11: 130.7617702 | I11: 134.7500042 | J11: 138.8598793 | K11: 143.0951056 | L11: 147.4595063
A12: September | B12: 113.5 | C12: 115.4 | D12: 116.2 | E12: 119.7 | F12: 124.064291 | G12: 127.8482519 | H12: 131.7476235 | I12: 135.7659261 | J12: 139.9067868 | K12: 144.1739438 | L12: 148.5712491
A13: December | B13: 114.1 | C13: 116.2 | D13: 117.2 | E13: 121.3 | F13: 124.99965 | G13: 128.8121393 | H13: 132.7409096 | I13: 136.7895073 | J13: 140.9615873 | K13: 145.2609157 | L13: 149.6913736
A14: Annual CPI | B14: 0.01900452489 | C14: =C10/B10-1 -> 0.01332149201 | D14: 0.02191060473 | E14: =E10/D10-1 -> 0.01114922813 | F14: =F10/E10-1 -> 0.03659472576 | G14: =G10/F10-1 -> 0.0305 | H14: =H10/G10-1 -> 0.0305 | I14: 0.0305 | J14: 0.0305 | K14: 0.0305 | L14: 0.0305
A16: Cost Pools
A17: Tariff class | B17: Short Name | C17: Tariff type | D17: Description of cost centre | E17: Description of tariff
A18: 1 | B18: Tariff R: Res Central | C18: Non-demand | D18: Tariff V - Residential Central | E18: Residential tariff
A19: 2 | B19: Tariff R: Res North | C19: Non-demand | D19: Tariff V - Residential Northern | E19: Residential tariff
A20: 3 | B20: Tariff R: Res MV (Vic) | C20: Non-demand | D20: Tariff V - Residential Murray Valley (Vic) | E20: Residential tariff
A21: 4 | B21: Tariff R: Res Bairnsdale | C21: Non-demand | D21: Tariff V - Residential Bairnsdale | E21: Residential tariff
A22: 5 | B22: Tariff R: Res Albury | C22: Non-demand | D22: Tariff V - Residential Albury | E22: Residential tariff
A23: 6 | B23: Tariff C: Non- Res Central | C23: Non-demand | D23: Tariff V - Non- Residential Central | E23: Non- Residential tariff
A24: 7 | B24: Tariff C: Non- Res North | C24: Non-demand | D24: Tariff V - Non- Residential Northern | E24: Non- Residential tariff
A25: 8 | B25: Tariff C: Non- Res MV (Vic) | C25: Non-demand | D25: Tariff V - Non- Residential Murray Valley (Vic) | E25: Non- Residential tariff
A26: 9 | B26: Tariff C: Non- Res Bairnsdale | C26: Non-demand | D26: Tariff V - Non- Residential Bairnsdale | E26: Non- Residential tariff
A27: 10 | B27: Tariff C: Non- Res Albury | C27: Non-demand | D27: Tariff C - Non- Residential Albury | E27: Non- Residential tariff
A28: 11 | B28: Tariff D: Central | C28: Demand | D28: Tariff D - MHQ (GJ/h) Tariff D Zone - Central | E28: Demand customers in region 1
A29: 12 | B29: Tariff D: North | C29: Demand | D29: Tariff D - MHQ (GJ/h) Tariff D Zone - North | E29: Demand customers in region 2
A30: 13 | B30: Tariff D: MV (Vic) | C30: Demand | D30: Tariff D - MHQ (GJ/h) Tariff D Zone - Murray Valley (Vic) | E30: Demand customers in region 3
A31: 14 | B31: Tariff D: Bairnsdale | C31: Demand | D31: Tariff D - MHQ (GJ/h) Tariff D Zone - Bairnsdale | E31: Demand customers in region 4
A32: 15 | B32: Tariff D: Albury | C32: Demand | D32: Tariff D - MHQ (GJ/h) Tariff D Zone - Albury | E32: Demand customers in region 5

Sheet Inflation - Input (hidden)
B1: ="ENVESTRA - Cost allocation model for "&'General Inputs'!#REF!&" ("&'General Inputs'!#REF!&")" -> 
B2: Inflation - inputs
B3: Back to table of contents
B4: This sheet provide inputs for inflation values based on Envestra financial model
B5: Updating the 2000 to 2004 Depreciation Allowance
B7: Period Ending 30 June | J7: 2005 | K7: =J7+1 -> 2006 | L7: 2007 | M7: 2008 | N7: 2009 | O7: 2010 | P7: 2011
B9: SAIPAR Inflation
B10: Quarterly inflation values up until December 2002 are the assumed values of SAIPAR.
B11: Quartley CPI values at and before September 2002 are baqck calculated from SAIPAR's inflation values.
B13: Quarterly CPI
B15: March | J15: 147.5 | K15: 151.9 | L15: 155.6 | M15: 162.2 | N15: 166.2 | O15: 170.355 | P15: 174.613875
B16: June | J16: 148.4 | K16: 154.3 | L16: 157.5 | M16: 164.6 | N16: 167.2291513 | O16: 171.4098801 | P16: 175.6951271
B17: September | J17: 149.8 | K17: 155.7 | L17: 158.6 | M17: 166.5 | N17: 168.2646754 | O17: 172.4712923 | P17: 176.7830746
B18: December | J18: 150.6 | K18: 155.5 | L18: 160.1 | M18: 166 | N18: 169.3066118 | O18: 173.539277 | P18: 177.877759
B20: Quarterly Inflation
J21: 2005 | K21: 2006 | L21: 2007 | M21: 2008 | N21: 2009 | O21: 2010 | P21: 2011
B22: March | J22: 0.006825938567 | K22: 0.008632138114 | L22: 0.0006430868167 | M22: 0.013116802 | N22: 0.001204819277 | O22: 0.006192246326 | P22: 0.006192246326
B23: June | J23: 0.006101694915 | K23: 0.01579986833 | L23: 0.01221079692 | M23: 0.01479654747 | N23: 0.006192246326 | O23: 0.006192246326 | P23: 0.006192246326
B24: September | J24: 0.009433962264 | K24: 0.00907323396 | L24: 0.006984126984 | M24: 0.01154313487 | N24: 0.006192246326 | O24: 0.006192246326 | P24: 0.006192246326
B25: December | J25: 0.005340453939 | K25: -0.001284521516 | L25: 0.009457755359 | M25: -0.003003003003 | N25: 0.006192246326 | O25: 0.006192246326 | P25: 0.006192246326
B27: Six Month Inflation
J28: 2005 | K28: 2006 | L28: 2007 | M28: 2008 | N28: 2009 | O28: 2010 | P28: 2011
B29: March | J29: 0.01444291609 | K29: 0.01401869159 | L29: -0.0006422607579 | M29: 0.02269861286 | N29: -0.001801801802 | O29: 0.01242283657 | P29: 0.01242283657
B30: June | J30: 0.01296928328 | K30: 0.02456839309 | L30: 0.01286173633 | M30: 0.02810743285 | N30: 0.00740452614 | O30: 0.01242283657 | P30: 0.01242283657
B31: September | J31: 0.01559322034 | K31: 0.0250164582 | L31: 0.01928020566 | M31: 0.02651048089 | N31: 0.01242283657 | O31: 0.01242283657 | P31: 0.01242283657
B32: December | J32: 0.01482479784 | K32: 0.00777705768 | L32: 0.01650793651 | M32: 0.008505467801 | N32: 0.01242283657 | O32: 0.01242283657 | P32: 0.01242283657
B34: Annual Inflation
J35: 2005 | K35: 2006 | L35: 2007 | M35: 2008 | N35: 2009 | O35: 2010 | P35: 2011
B36: March | J36: 0.02359472588 | K36: 0.02983050847 | L36: 0.02435813035 | M36: 0.04241645244 | N36: 0.02466091245 | O36: 0.025 | P36: 0.025
B37: June | J37: 0.02486187845 | K37: 0.0397574124 | L37: 0.02073882048 | M37: 0.04507936508 | N37: 0.0159729729 | O37: 0.025 | P37: 0.025
B38: September | J38: 0.03026134801 | K38: 0.0393858478 | L38: 0.01862556198 | M38: 0.04981084489 | N38: 0.01059865127 | O38: 0.025 | P38: 0.025
B39: December | J39: 0.02798634812 | K39: 0.03253652058 | L39: 0.02958199357 | M39: 0.03685196752 | N39: 0.01991934792 | O39: 0.025 | P39: 0.025
B41: Inflation factor to 31 December 2005
J42: 2005 | K42: 2006 | L42: 2007 | M42: 2008 | N42: 2009 | O42: 2010 | P42: 2011
B43: March | J43: 1 | K43: 1.029830508 | L43: 1.054915254 | M43: 1.099661017 | N43: 1.126779661 | O43: 1.154949153 | P43: 1.183822881
B44: June | J44: 1.006101695 | K44: 1.046101695 | L44: 1.06779661 | M44: 1.115932203 | N44: 1.133756958 | O44: 1.162100882 | P44: 1.191153404
B45: September | J45: 1.01559322 | K45: 1.05559322 | L45: 1.075254237 | M45: 1.128813559 | N45: 1.140777461 | O45: 1.169296897 | P45: 1.19852932
B46: December | J46: 1.021016949 | K46: 1.054237288 | L46: 1.085423729 | M46: 1.125423729 | N46: 1.147841436 | O46: 1.176537472 | P46: 1.205950908
B48: Actual Inlfation
B50: Quarterly CPI
J51: 2005 | K51: 2006 | L51: 2007 | M51: 2008 | N51: 2009 | O51: 2010 | P51: 2011
B52: March | J52: 147.5 | K52: 151.6609409 | L52: 155.4524644 | M52: 159.3387761 | N52: 163.3222455 | O52: 167.4053016 | P52: 171.5904341
B53: June | J53: 148.4 | K53: 152.6000628 | L53: 156.4150644 | M53: 160.325441 | N53: 164.333577 | O53: 168.4419165 | P53: 172.6529644
B54: September | J54: 149.8 | K54: 153.545 | L54: 157.383625 | M54: 161.3182156 | N54: 165.351171 | O54: 169.4849503 | P54: 173.722074
B55: December | J55: 150.7275985 | K55: 154.4957885 | L55: 158.3581832 | M55: 162.3171378 | N55: 166.3750662 | O55: 170.5344429 | P55: 174.7978039
B57: Quarterly Inflation
J58: 2005 | K58: 2006 | L58: 2007 | M58: 2008 | N58: 2009 | O58: 2010 | P58: 2011
B59: March | J59: 0.006825938567 | K59: 0.006192246326 | L59: 0.006192246326 | M59: 0.006192246326 | N59: 0.006192246326 | O59: 0.006192246326 | P59: 0.006192246326
B60: June | J60: 0.006101694915 | K60: 0.006192246326 | L60: 0.006192246326 | M60: 0.006192246326 | N60: 0.006192246326 | O60: 0.006192246326 | P60: 0.006192246326
B61: September | J61: 0.009433962264 | K61: 0.006192246326 | L61: 0.006192246326 | M61: 0.006192246326 | N61: 0.006192246326 | O61: 0.006192246326 | P61: 0.006192246326
B62: December | J62: 0.006192246326 | K62: 0.006192246326 | L62: 0.006192246326 | M62: 0.006192246326 | N62: 0.006192246326 | O62: 0.006192246326 | P62: 0.006192246326
B64: Six Month Inflation
J65: 2005 | K65: 2006 | L65: 2007 | M65: 2008 | N65: 2009 | O65: 2010 | P65: 2011
B66: March | J66: 0.01444291609 | K66: 0.01242283657 | L66: 0.01242283657 | M66: 0.01242283657 | N66: 0.01242283657 | O66: 0.01242283657 | P66: 0.01242283657
B67: June | J67: 0.01296928328 | K67: 0.01242283657 | L67: 0.01242283657 | M67: 0.01242283657 | N67: 0.01242283657 | O67: 0.01242283657 | P67: 0.01242283657
B68: September | J68: 0.01559322034 | K68: 0.01242283657 | L68: 0.01242283657 | M68: 0.01242283657 | N68: 0.01242283657 | O68: 0.01242283657 | P68: 0.01242283657
B69: December | J69: 0.01568462601 | K69: 0.01242283657 | L69: 0.01242283657 | M69: 0.01242283657 | N69: 0.01242283657 | O69: 0.01242283657 | P69: 0.01242283657
B71: Annual Inflation
J72: 2005 | K72: 2006 | L72: 2007 | M72: 2008 | N72: 2009 | O72: 2010 | P72: 2011
B73: March | J73: 0.02359472588 | K73: 0.02820976893 | L73: 0.025 | M73: 0.025 | N73: 0.025 | O73: 0.025 | P73: 0.025
B74: June | J74: 0.02486187845 | K74: 0.02830231012 | L74: 0.025 | M74: 0.025 | N74: 0.025 | O74: 0.025 | P74: 0.025
B75: September | J75: 0.03026134801 | K75: 0.025 | L75: 0.025 | M75: 0.025 | N75: 0.025 | O75: 0.025 | P75: 0.025
B76: December | J76: 0.02885732764 | K76: 0.025 | L76: 0.025 | M76: 0.025 | N76: 0.025 | O76: 0.025 | P76: 0.025
B78: Inflation factor to 31 December 2005
J79: 2005 | K79: 2006 | L79: 2007 | M79: 2008 | N79: 2009 | O79: 2010 | P79: 2011
B80: March | J80: 1 | K80: 1.028209769 | L80: 1.053915013 | M80: 1.080262888 | N80: 1.107269461 | O80: 1.134951197 | P80: 1.163324977
B81: June | J81: 1.006101695 | K81: 1.034576697 | L81: 1.060441115 | M81: 1.086952142 | N81: 1.114125946 | O81: 1.141979095 | P81: 1.170528572
B82: September | J82: 1.01559322 | K82: 1.040983051 | L82: 1.067007627 | M82: 1.093682818 | N82: 1.121024888 | O82: 1.14905051 | P82: 1.177776773
B83: December | J83: 1.021882024 | K83: 1.047429074 | L83: 1.073614801 | M83: 1.100455171 | N83: 1.12796655 | O83: 1.156165714 | P83: 1.185069857
B85: Model Inflation
B87: Quarterly CPI
J88: 2005 | K88: 2006 | L88: 2007 | M88: 2008 | N88: 2009 | O88: 2010 | P88: 2011
B89: March | J89: 147.5 | K89: 151.9 | L89: 155.6 | M89: 162.2 | N89: 166.2 | O89: 170.355 | P89: 174.613875
B90: June | J90: 148.4 | K90: 154.3 | L90: 157.5 | M90: 164.6 | N90: 167.2291513 | O90: 171.4098801 | P90: 175.6951271
B91: September | J91: 149.8 | K91: 155.7 | L91: 158.6 | M91: 166.5 | N91: 168.2646754 | O91: 172.4712923 | P91: 176.7830746
B92: December | J92: 150.6 | K92: 155.5 | L92: 160.1 | M92: 166 | N92: 169.3066118 | O92: 173.539277 | P92: 177.877759
B94: Quarterly Inflation
J95: 2005 | K95: 2006 | L95: 2007 | M95: 2008 | N95: 2009 | O95: 2010 | P95: 2011
B96: March | J96: 0.006825938567 | K96: 0.008632138114 | L96: 0.0006430868167 | M96: 0.013116802 | N96: 0.001204819277 | O96: 0.006192246326 | P96: 0.006192246326
B97: June | J97: 0.006101694915 | K97: 0.01579986833 | L97: 0.01221079692 | M97: 0.01479654747 | N97: 0.006192246326 | O97: 0.006192246326 | P97: 0.006192246326
B98: September | J98: 0.009433962264 | K98: 0.00907323396 | L98: 0.006984126984 | M98: 0.01154313487 | N98: 0.006192246326 | O98: 0.006192246326 | P98: 0.006192246326
B99: December | J99: 0.005340453939 | K99: -0.001284521516 | L99: 0.009457755359 | M99: -0.003003003003 | N99: 0.006192246326 | O99: 0.006192246326 | P99: 0.006192246326
B101: Six Month Inflation
J102: 2005 | K102: 2006 | L102: 2007 | M102: 2008 | N102: 2009 | O102: 2010 | P102: 2011
B103: March | J103: 0.01444291609 | K103: 0.01401869159 | L103: -0.0006422607579 | M103: 0.02269861286 | N103: -0.001801801802 | O103: 0.01242283657 | P103: 0.01242283657
B104: June | J104: 0.01296928328 | K104: 0.02456839309 | L104: 0.01286173633 | M104: 0.02810743285 | N104: 0.00740452614 | O104: 0.01242283657 | P104: 0.01242283657
B105: September | J105: 0.01559322034 | K105: 0.0250164582 | L105: 0.01928020566 | M105: 0.02651048089 | N105: 0.01242283657 | O105: 0.01242283657 | P105: 0.01242283657
B106: December | J106: 0.01482479784 | K106: 0.00777705768 | L106: 0.01650793651 | M106: 0.008505467801 | N106: 0.01242283657 | O106: 0.01242283657 | P106: 0.01242283657
B108: Annual Inflation | J108: 2005 | K108: 2006 | L108: 2007 | M108: 2008 | N108: 2009 | O108: 2010 | P108: 2011
B110: March | J110: 0.02359472588 | K110: 0.02983050847 | L110: 0.02435813035 | M110: 0.04241645244 | N110: 0.02466091245 | O110: 0.025 | P110: 0.025
B111: June | J111: 0.02486187845 | K111: 0.0397574124 | L111: 0.02073882048 | M111: 0.04507936508 | N111: 0.0159729729 | O111: 0.025 | P111: 0.025
B112: September | J112: 0.03026134801 | K112: 0.0393858478 | L112: 0.01862556198 | M112: 0.04981084489 | N112: 0.01059865127 | O112: 0.025 | P112: 0.025
B113: December | J113: 0.02798634812 | K113: 0.03253652058 | L113: 0.02958199357 | M113: 0.03685196752 | N113: 0.01991934792 | O113: 0.025 | P113: 0.025
B115: Inflation factor to 31 December 2005
J116: 2005 | K116: 2006 | L116: 2007 | M116: 2008 | N116: 2009 | O116: 2010 | P116: 2011
B117: March | J117: 1 | K117: 1.029830508 | L117: 1.054915254 | M117: 1.099661017 | N117: 1.126779661 | O117: 1.154949153 | P117: 1.183822881
B118: June | J118: 1.006101695 | K118: 1.046101695 | L118: 1.06779661 | M118: 1.115932203 | N118: 1.133756958 | O118: 1.162100882 | P118: 1.191153404
B119: September | J119: 1.01559322 | K119: 1.05559322 | L119: 1.075254237 | M119: 1.128813559 | N119: 1.140777461 | O119: 1.169296897 | P119: 1.19852932
B120: December | J120: 1.021016949 | K120: 1.054237288 | L120: 1.085423729 | M120: 1.125423729 | N120: 1.147841436 | O120: 1.176537472 | P120: 1.205950908

Sheet Connection Numbers Inputs
A1: Connection Numbers Inputs
A3: Peak Price Band 1 | B3: =TRANSPOSE('General Inputs'!B18:B32) -> Tariff R: Res Central | C3: Tariff R: Res North | D3: Tariff R: Res MV (Vic) | E3: Tariff R: Res Bairnsdale | F3: Tariff R: Res Albury | G3: Tariff C: Non- Res Central | H3: Tariff C: Non- Res North | I3: Tariff C: Non- Res MV (Vic) | J3: Tariff C: Non- Res Bairnsdale | K3: Tariff C: Non- Res Albury | L3: Tariff D: Central | M3: Tariff D: North | N3: Tariff D: MV (Vic) | O3: Tariff D: Bairnsdale | P3: Tariff D: Albury
A4: 2018/19 | B4: 562714 | C4: 79070 | D4: 8205 | E4: 4541 | F4: 22475 | G4: 20139 | H4: 3280 | I4: 357 | J4: 121 | K4: 927 | L4: 205 | M4: 50 | N4: 7 | O4: 3 | P4: 7
A5: 2019/20 | B5: 574746 | C5: 81252 | D5: 8369 | E5: 4721 | F5: 22865 | G5: 20183 | H5: 3286 | I5: 363 | J5: 124 | K5: 929 | L5: 206 | M5: 50 | N5: 7 | O5: 3 | P5: 7
A6: 2020/21 | B6: 585981 | C6: 82929 | D6: 8554 | E6: 4910 | F6: 23299 | G6: 20359 | H6: 3295 | I6: 368 | J6: 127 | K6: 939 | L6: 209 | M6: 51 | N6: 7 | O6: 3 | P6: 7
A7: 2021-22 | B7: 597206.2655 | C7: 84786.49691 | D7: 8791.776934 | E7: 5178.817576 | F7: 23728.43105 | G7: 20347.32498 | H7: 3314.370968 | I7: 373.3526018 | J7: 133.2121876 | K7: 943.0852737 | L7: 213.348 | M7: 50 | N7: 7 | O7: 3 | P7: 7
A8: 2022-23 | B8: 606793.2682 | C8: 85941.59923 | D8: 8923.163393 | E8: 5423.352644 | F8: 23908.77707 | G8: 19559.25826 | H8: 3195.855816 | I8: 368.7830577 | J8: 137.7282436 | K8: 921.188321 | L8: 216.7375152 | M8: 50 | N8: 7 | O8: 3 | P8: 7
A9: 2023-24 | B9: 613931.6793 | C9: 87122.57426 | D9: 9058.202022 | E9: 5682.275762 | F9: 24092.4471 | G9: 18767.84341 | H9: 3076.643926 | I9: 364.1470492 | J9: 143.4652017 | K9: 900.196102 | L9: 220.1690604 | M9: 50 | N9: 7 | O9: 3 | P9: 7
A10: 2024-25 | B10: 622791.7118 | C10: 89074.00154 | D10: 9309.994343 | E10: 5993.374661 | F10: 24536.50242 | G10: 18858.01017 | H10: 3094.731201 | I10: 369.4436093 | J10: 150.4827825 | K10: 904.1125529 | L10: 223.6431567 | M10: 50 | N10: 7 | O10: 3 | P10: 7
A11: 2025-26 | B11: 630985.9133 | C11: 91069.13813 | D11: 9568.785775 | E11: 6321.505913 | F11: 24988.74225 | G11: 18948.30066 | H11: 3112.924809 | I11: 374.8172086 | J11: 157.8436272 | K11: 908.046043 | L11: 227.1603319 | M11: 50 | N11: 7 | O11: 3 | P11: 7
A12: 2026-27 | B12: 639150.8558 | C12: 93108.96307 | D12: 9834.770875 | E12: 6667.602022 | F12: 25449.31746 | G12: 19038.69982 | H12: 3131.225376 | I12: 380.2689674 | J12: 165.5645266 | K12: 911.9966464 | L12: 230.72112 | M12: 50 | N12: 7 | O12: 3 | P12: 7
A13: 2027-28 | B13: 647223.473 | C13: 95194.47732 | D13: 10108.14961 | E13: 7032.646546 | F13: 25918.38167 | G13: 19129.19183 | H13: 3149.63353 | I13: 385.8000227 | J13: 173.6630928 | K13: 915.9644375 | L13: 234.3260619 | M13: 50 | N13: 7 | O13: 3 | P13: 7
A15: Peak Price Band 2 | B15: =B$3 -> Tariff R: Res Central | C15: Tariff R: Res North | D15: Tariff R: Res MV (Vic) | E15: Tariff R: Res Bairnsdale | F15: Tariff R: Res Albury | G15: Tariff C: Non- Res Central | H15: Tariff C: Non- Res North | I15: Tariff C: Non- Res MV (Vic) | J15: Tariff C: Non- Res Bairnsdale | K15: Tariff C: Non- Res Albury | L15: Tariff D: Central | M15: Tariff D: North | N15: Tariff D: MV (Vic) | O15: Tariff D: Bairnsdale | P15: Tariff D: Albury
A16: =A4 -> 2018/19 | B16: 0 | C16: 0 | D16: 0 | E16: 0 | F16: 0 | G16: 0 | H16: 0 | I16: 0 | J16: 0 | K16: 0 | L16: 0 | M16: 0 | N16: 0 | O16: 0 | P16: 0
A17: 2019/20 | B17: 0 | C17: 0 | D17: 0 | E17: 0 | F17: 0 | G17: 0 | H17: 0 | I17: 0 | J17: 0 | K17: 0 | L17: 0 | M17: 0 | N17: 0 | O17: 0 | P17: 0
A18: 2020/21 | B18: 0 | C18: 0 | D18: 0 | E18: 0 | F18: 0 | G18: 0 | H18: 0 | I18: 0 | J18: 0 | K18: 0 | L18: 0 | M18: 0 | N18: 0 | O18: 0 | P18: 0
A19: 2021-22 | B19: 0 | C19: 0 | D19: 0 | E19: 0 | F19: 0 | G19: 0 | H19: 0 | I19: 0 | J19: 0 | K19: 0 | L19: 0 | M19: 0 | N19: 0 | O19: 0 | P19: 0
A20: 2022-23 | B20: 0 | C20: 0 | D20: 0 | E20: 0 | F20: 0 | G20: 0 | H20: 0 | I20: 0 | J20: 0 | K20: 0 | L20: 0 | M20: 0 | N20: 0 | O20: 0 | P20: 0
A21: 2023-24 | B21: 0 | C21: 0 | D21: 0 | E21: 0 | F21: 0 | G21: 0 | H21: 0 | I21: 0 | J21: 0 | K21: 0 | L21: 0 | M21: 0 | N21: 0 | O21: 0 | P21: 0
A22: 2024-25 | B22: 0 | C22: 0 | D22: 0 | E22: 0 | F22: 0 | G22: 0 | H22: 0 | I22: 0 | J22: 0 | K22: 0 | L22: 0 | M22: 0 | N22: 0 | O22: 0 | P22: 0
A23: 2025-26 | B23: 0 | C23: 0 | D23: 0 | E23: 0 | F23: 0 | G23: 0 | H23: 0 | I23: 0 | J23: 0 | K23: 0 | L23: 0 | M23: 0 | N23: 0 | O23: 0 | P23: 0
A24: 2026-27 | B24: 0 | C24: 0 | D24: 0 | E24: 0 | F24: 0 | G24: 0 | H24: 0 | I24: 0 | J24: 0 | K24: 0 | L24: 0 | M24: 0 | N24: 0 | O24: 0 | P24: 0
A25: 2027-28 | B25: 0 | C25: 0 | D25: 0 | E25: 0 | F25: 0 | G25: 0 | H25: 0 | I25: 0 | J25: 0 | K25: 0 | L25: 0 | M25: 0 | N25: 0 | O25: 0 | P25: 0
A27: Peak Price Band 3 | B27: =B$3 -> Tariff R: Res Central | C27: =C$3 -> Tariff R: Res North | D27: Tariff R: Res MV (Vic) | E27: Tariff R: Res Bairnsdale | F27: Tariff R: Res Albury | G27: Tariff C: Non- Res Central | H27: Tariff C: Non- Res North | I27: Tariff C: Non- Res MV (Vic) | J27: Tariff C: Non- Res Bairnsdale | K27: Tariff C: Non- Res Albury | L27: Tariff D: Central | M27: Tariff D: North | N27: Tariff D: MV (Vic) | O27: Tariff D: Bairnsdale | P27: Tariff D: Albury
A28: =A4 -> 2018/19 | B28: 0 | C28: 0 | D28: 0 | E28: 0 | F28: 0 | G28: 0 | H28: 0 | I28: 0 | J28: 0 | K28: 0 | L28: 0 | M28: 0 | N28: 0 | O28: 0 | P28: 0
A29: =A5 -> 2019/20 | B29: 0 | C29: 0 | D29: 0 | E29: 0 | F29: 0 | G29: 0 | H29: 0 | I29: 0 | J29: 0 | K29: 0 | L29: 0 | M29: 0 | N29: 0 | O29: 0 | P29: 0
A30: =A6 -> 2020/21 | B30: 0 | C30: 0 | D30: 0 | E30: 0 | F30: 0 | G30: 0 | H30: 0 | I30: 0 | J30: 0 | K30: 0 | L30: 0 | M30: 0 | N30: 0 | O30: 0 | P30: 0
A31: =A7 -> 2021-22 | B31: 0 | C31: 0 | D31: 0 | E31: 0 | F31: 0 | G31: 0 | H31: 0 | I31: 0 | J31: 0 | K31: 0 | L31: 0 | M31: 0 | N31: 0 | O31: 0 | P31: 0
A32: =A8 -> 2022-23 | B32: 0 | C32: 0 | D32: 0 | E32: 0 | F32: 0 | G32: 0 | H32: 0 | I32: 0 | J32: 0 | K32: 0 | L32: 0 | M32: 0 | N32: 0 | O32: 0 | P32: 0
A33: =A21 -> 2023-24 | B33: 0 | C33: 0 | D33: 0 | E33: 0 | F33: 0 | G33: 0 | H33: 0 | I33: 0 | J33: 0 | K33: 0 | L33: 0 | M33: 0 | N33: 0 | O33: 0 | P33: 0
A34: =A22 -> 2024-25 | B34: 0 | C34: 0 | D34: 0 | E34: 0 | F34: 0 | G34: 0 | H34: 0 | I34: 0 | J34: 0 | K34: 0 | L34: 0 | M34: 0 | N34: 0 | O34: 0 | P34: 0
A35: =A23 -> 2025-26 | B35: 0 | C35: 0 | D35: 0 | E35: 0 | F35: 0 | G35: 0 | H35: 0 | I35: 0 | J35: 0 | K35: 0 | L35: 0 | M35: 0 | N35: 0 | O35: 0 | P35: 0
A36: =A24 -> 2026-27 | B36: 0 | C36: 0 | D36: 0 | E36: 0 | F36: 0 | G36: 0 | H36: 0 | I36: 0 | J36: 0 | K36: 0 | L36: 0 | M36: 0 | N36: 0 | O36: 0 | P36: 0
A37: =A25 -> 2027-28 | B37: 0 | C37: 0 | D37: 0 | E37: 0 | F37: 0 | G37: 0 | H37: 0 | I37: 0 | J37: 0 | K37: 0 | L37: 0 | M37: 0 | N37: 0 | O37: 0 | P37: 0
A39: Peak Price Band 4 | B39: =B$3 -> Tariff R: Res Central | C39: =C$3 -> Tariff R: Res North | D39: Tariff R: Res MV (Vic) | E39: Tariff R: Res Bairnsdale | F39: Tariff R: Res Albury | G39: Tariff C: Non- Res Central | H39: Tariff C: Non- Res North | I39: Tariff C: Non- Res MV (Vic) | J39: Tariff C: Non- Res Bairnsdale | K39: Tariff C: Non- Res Albury | L39: Tariff D: Central | M39: Tariff D: North | N39: Tariff D: MV (Vic) | O39: Tariff D: Bairnsdale | P39: Tariff D: Albury
A40: =A4 -> 2018/19 | B40: 0 | C40: 0 | D40: 0 | E40: 0 | F40: 0 | G40: 0 | H40: 0 | I40: 0 | J40: 0 | K40: 0 | L40: 0 | M40: 0 | N40: 0 | O40: 0 | P40: 0
A41: =A5 -> 2019/20 | B41: 0 | C41: 0 | D41: 0 | E41: 0 | F41: 0 | G41: 0 | H41: 0 | I41: 0 | J41: 0 | K41: 0 | L41: 0 | M41: 0 | N41: 0 | O41: 0 | P41: 0
A42: =A6 -> 2020/21 | B42: 0 | C42: 0 | D42: 0 | E42: 0 | F42: 0 | G42: 0 | H42: 0 | I42: 0 | J42: 0 | K42: 0 | L42: 0 | M42: 0 | N42: 0 | O42: 0 | P42: 0
A43: =A7 -> 2021-22 | B43: 0 | C43: 0 | D43: 0 | E43: 0 | F43: 0 | G43: 0 | H43: 0 | I43: 0 | J43: 0 | K43: 0 | L43: 0 | M43: 0 | N43: 0 | O43: 0 | P43: 0
A44: =A8 -> 2022-23 | B44: 0 | C44: 0 | D44: 0 | E44: 0 | F44: 0 | G44: 0 | H44: 0 | I44: 0 | J44: 0 | K44: 0 | L44: 0 | M44: 0 | N44: 0 | O44: 0 | P44: 0
A45: =A33 -> 2023-24 | B45: 0 | C45: 0 | D45: 0 | E45: 0 | F45: 0 | G45: 0 | H45: 0 | I45: 0 | J45: 0 | K45: 0 | L45: 0 | M45: 0 | N45: 0 | O45: 0 | P45: 0
A46: =A34 -> 2024-25 | B46: 0 | C46: 0 | D46: 0 | E46: 0 | F46: 0 | G46: 0 | H46: 0 | I46: 0 | J46: 0 | K46: 0 | L46: 0 | M46: 0 | N46: 0 | O46: 0 | P46: 0
A47: =A35 -> 2025-26 | B47: 0 | C47: 0 | D47: 0 | E47: 0 | F47: 0 | G47: 0 | H47: 0 | I47: 0 | J47: 0 | K47: 0 | L47: 0 | M47: 0 | N47: 0 | O47: 0 | P47: 0
A48: =A36 -> 2026-27 | B48: 0 | C48: 0 | D48: 0 | E48: 0 | F48: 0 | G48: 0 | H48: 0 | I48: 0 | J48: 0 | K48: 0 | L48: 0 | M48: 0 | N48: 0 | O48: 0 | P48: 0
A49: =A37 -> 2027-28 | B49: 0 | C49: 0 | D49: 0 | E49: 0 | F49: 0 | G49: 0 | H49: 0 | I49: 0 | J49: 0 | K49: 0 | L49: 0 | M49: 0 | N49: 0 | O49: 0 | P49: 0
A51: Peak Price Band 5 | B51: =B$3 -> Tariff R: Res Central | C51: =C$3 -> Tariff R: Res North | D51: Tariff R: Res MV (Vic) | E51: Tariff R: Res Bairnsdale | F51: Tariff R: Res Albury | G51: Tariff C: Non- Res Central | H51: Tariff C: Non- Res North | I51: Tariff C: Non- Res MV (Vic) | J51: Tariff C: Non- Res Bairnsdale | K51: Tariff C: Non- Res Albury | L51: Tariff D: Central | M51: Tariff D: North | N51: Tariff D: MV (Vic) | O51: Tariff D: Bairnsdale | P51: Tariff D: Albury
A52: =A4 -> 2018/19 | B52: 0 | C52: 0 | D52: 0 | E52: 0 | F52: 0 | G52: 0 | H52: 0 | I52: 0 | J52: 0 | K52: 0 | L52: 0 | M52: 0 | N52: =B52+F52 -> 0 | O52: =C52+G52 -> 0 | P52: =D52+H52 -> 0
A53: =A5 -> 2019/20 | B53: 0 | C53: 0 | D53: 0 | E53: 0 | F53: 0 | G53: 0 | H53: 0 | I53: 0 | J53: 0 | K53: 0 | L53: 0 | M53: 0 | N53: =B53+F53 -> 0 | O53: 0 | P53: 0
A54: =A6 -> 2020/21 | B54: 0 | C54: 0 | D54: 0 | E54: 0 | F54: 0 | G54: 0 | H54: 0 | I54: 0 | J54: 0 | K54: 0 | L54: 0 | M54: 0 | N54: 0 | O54: 0 | P54: 0
A55: =A7 -> 2021-22 | B55: 0 | C55: 0 | D55: 0 | E55: 0 | F55: 0 | G55: 0 | H55: 0 | I55: 0 | J55: 0 | K55: 0 | L55: 0 | M55: 0 | N55: 0 | O55: 0 | P55: 0
A56: =A8 -> 2022-23 | B56: 0 | C56: 0 | D56: 0 | E56: 0 | F56: 0 | G56: 0 | H56: 0 | I56: 0 | J56: 0 | K56: 0 | L56: 0 | M56: 0 | N56: 0 | O56: 0 | P56: 0
A57: =A45 -> 2023-24 | B57: 0 | C57: 0 | D57: 0 | E57: 0 | F57: 0 | G57: 0 | H57: 0 | I57: 0 | J57: 0 | K57: 0 | L57: 0 | M57: 0 | N57: 0 | O57: 0 | P57: 0
A58: =A46 -> 2024-25 | B58: 0 | C58: 0 | D58: 0 | E58: 0 | F58: 0 | G58: 0 | H58: 0 | I58: 0 | J58: 0 | K58: 0 | L58: 0 | M58: 0 | N58: 0 | O58: 0 | P58: 0
A59: =A47 -> 2025-26 | B59: 0 | C59: 0 | D59: 0 | E59: 0 | F59: 0 | G59: 0 | H59: 0 | I59: 0 | J59: 0 | K59: 0 | L59: 0 | M59: 0 | N59: 0 | O59: 0 | P59: 0
A60: =A48 -> 2026-27 | B60: 0 | C60: 0 | D60: 0 | E60: 0 | F60: 0 | G60: 0 | H60: 0 | I60: 0 | J60: 0 | K60: 0 | L60: 0 | M60: 0 | N60: 0 | O60: 0 | P60: 0
A61: =A49 -> 2027-28 | B61: 0 | C61: 0 | D61: 0 | E61: 0 | F61: 0 | G61: 0 | H61: 0 | I61: 0 | J61: 0 | K61: 0 | L61: 0 | M61: 0 | N61: 0 | O61: 0 | P61: 0
A63: Peak Price Band 6 | B63: =B$3 -> Tariff R: Res Central | C63: =C$3 -> Tariff R: Res North | D63: Tariff R: Res MV (Vic) | E63: Tariff R: Res Bairnsdale | F63: Tariff R: Res Albury | G63: Tariff C: Non- Res Central | H63: Tariff C: Non- Res North | I63: Tariff C: Non- Res MV (Vic) | J63: Tariff C: Non- Res Bairnsdale | K63: Tariff C: Non- Res Albury | L63: Tariff D: Central | M63: Tariff D: North | N63: Tariff D: MV (Vic) | O63: Tariff D: Bairnsdale | P63: Tariff D: Albury
A64: =A4 -> 2018/19 | B64: 0 | C64: 0 | D64: 0 | E64: 0 | F64: 0 | G64: 0 | H64: 0 | I64: 0 | J64: 0 | K64: 0 | L64: 0 | M64: 0 | N64: 0 | O64: 0 | P64: 0
A65: =A5 -> 2019/20 | B65: 0 | C65: 0 | D65: 0 | E65: 0 | F65: 0 | G65: 0 | H65: 0 | I65: 0 | J65: 0 | K65: 0 | L65: 0 | M65: 0 | N65: 0 | O65: 0 | P65: 0
A66: =A6 -> 2020/21 | B66: 0 | C66: 0 | D66: 0 | E66: 0 | F66: 0 | G66: 0 | H66: 0 | I66: 0 | J66: 0 | K66: 0 | L66: 0 | M66: 0 | N66: 0 | O66: 0 | P66: 0
A67: =A7 -> 2021-22 | B67: 0 | C67: 0 | D67: 0 | E67: 0 | F67: 0 | G67: 0 | H67: 0 | I67: 0 | J67: 0 | K67: 0 | L67: 0 | M67: 0 | N67: 0 | O67: 0 | P67: 0
A68: =A8 -> 2022-23 | B68: 0 | C68: 0 | D68: 0 | E68: 0 | F68: 0 | G68: 0 | H68: 0 | I68: 0 | J68: 0 | K68: 0 | L68: 0 | M68: 0 | N68: 0 | O68: 0 | P68: 0
A69: =A57 -> 2023-24 | B69: 0 | C69: 0 | D69: 0 | E69: 0 | F69: 0 | G69: 0 | H69: 0 | I69: 0 | J69: 0 | K69: 0 | L69: 0 | M69: 0 | N69: 0 | O69: 0 | P69: 0
A70: =A58 -> 2024-25 | B70: 0 | C70: 0 | D70: 0 | E70: 0 | F70: 0 | G70: 0 | H70: 0 | I70: 0 | J70: 0 | K70: 0 | L70: 0 | M70: 0 | N70: 0 | O70: 0 | P70: 0
A71: =A59 -> 2025-26 | B71: 0 | C71: 0 | D71: 0 | E71: 0 | F71: 0 | G71: 0 | H71: 0 | I71: 0 | J71: 0 | K71: 0 | L71: 0 | M71: 0 | N71: 0 | O71: 0 | P71: 0
A72: =A60 -> 2026-27 | B72: 0 | C72: 0 | D72: 0 | E72: 0 | F72: 0 | G72: 0 | H72: 0 | I72: 0 | J72: 0 | K72: 0 | L72: 0 | M72: 0 | N72: 0 | O72: 0 | P72: 0
A73: =A61 -> 2027-28 | B73: 0 | C73: 0 | D73: 0 | E73: 0 | F73: 0 | G73: 0 | H73: 0 | I73: 0 | J73: 0 | K73: 0 | L73: 0 | M73: 0 | N73: 0 | O73: 0 | P73: 0
A75: Peak Price Band 7 | B75: =B$3 -> Tariff R: Res Central | C75: =C$3 -> Tariff R: Res North | D75: Tariff R: Res MV (Vic) | E75: Tariff R: Res Bairnsdale | F75: Tariff R: Res Albury | G75: Tariff C: Non- Res Central | H75: Tariff C: Non- Res North | I75: Tariff C: Non- Res MV (Vic) | J75: Tariff C: Non- Res Bairnsdale | K75: Tariff C: Non- Res Albury | L75: Tariff D: Central | M75: Tariff D: North | N75: Tariff D: MV (Vic) | O75: Tariff D: Bairnsdale | P75: Tariff D: Albury
A76: =A16 -> 2018/19 | B76: 0 | C76: 0 | D76: 0 | E76: 0 | F76: 0 | G76: 0 | H76: 0 | I76: 0 | J76: 0 | K76: 0 | L76: 0 | M76: 0 | N76: 0 | O76: 0 | P76: 0
A77: =A17 -> 2019/20 | B77: 0 | C77: 0 | D77: 0 | E77: 0 | F77: 0 | G77: 0 | H77: 0 | I77: 0 | J77: 0 | K77: 0 | L77: 0 | M77: 0 | N77: 0 | O77: 0 | P77: 0
A78: =A18 -> 2020/21 | B78: 0 | C78: 0 | D78: 0 | E78: 0 | F78: 0 | G78: 0 | H78: 0 | I78: 0 | J78: 0 | K78: 0 | L78: 0 | M78: 0 | N78: 0 | O78: 0 | P78: 0
A79: =A19 -> 2021-22 | B79: 0 | C79: 0 | D79: 0 | E79: 0 | F79: 0 | G79: 0 | H79: 0 | I79: 0 | J79: 0 | K79: 0 | L79: 0 | M79: 0 | N79: 0 | O79: 0 | P79: 0
A80: =A20 -> 2022-23 | B80: 0 | C80: 0 | D80: 0 | E80: 0 | F80: 0 | G80: 0 | H80: 0 | I80: 0 | J80: 0 | K80: 0 | L80: 0 | M80: 0 | N80: 0 | O80: 0 | P80: 0
A81: =A69 -> 2023-24 | B81: 0 | C81: 0 | D81: 0 | E81: 0 | F81: 0 | G81: 0 | H81: 0 | I81: 0 | J81: 0 | K81: 0 | L81: 0 | M81: 0 | N81: 0 | O81: 0 | P81: 0
A82: =A70 -> 2024-25 | B82: 0 | C82: 0 | D82: 0 | E82: 0 | F82: 0 | G82: 0 | H82: 0 | I82: 0 | J82: 0 | K82: 0 | L82: 0 | M82: 0 | N82: 0 | O82: 0 | P82: 0
A83: =A71 -> 2025-26 | B83: 0 | C83: 0 | D83: 0 | E83: 0 | F83: 0 | G83: 0 | H83: 0 | I83: 0 | J83: 0 | K83: 0 | L83: 0 | M83: 0 | N83: 0 | O83: 0 | P83: 0
A84: =A72 -> 2026-27 | B84: 0 | C84: 0 | D84: 0 | E84: 0 | F84: 0 | G84: 0 | H84: 0 | I84: 0 | J84: 0 | K84: 0 | L84: 0 | M84: 0 | N84: 0 | O84: 0 | P84: 0
A85: =A73 -> 2027-28 | B85: 0 | C85: 0 | D85: 0 | E85: 0 | F85: 0 | G85: 0 | H85: 0 | I85: 0 | J85: 0 | K85: 0 | L85: 0 | M85: 0 | N85: 0 | O85: 0 | P85: 0
A87: Off Peak Price Band 1 | B87: =B$3 -> Tariff R: Res Central | C87: =C$3 -> Tariff R: Res North | D87: Tariff R: Res MV (Vic) | E87: Tariff R: Res Bairnsdale | F87: Tariff R: Res Albury | G87: Tariff C: Non- Res Central | H87: Tariff C: Non- Res North | I87: Tariff C: Non- Res MV (Vic) | J87: Tariff C: Non- Res Bairnsdale | K87: Tariff C: Non- Res Albury | L87: Tariff D: Central | M87: Tariff D: North | N87: Tariff D: MV (Vic) | O87: Tariff D: Bairnsdale | P87: Tariff D: Albury
A88: 2008 | B88: 0 | C88: 0 | D88: 0 | E88: 0 | F88: 0 | G88: 0 | H88: 0 | I88: 0 | J88: 0 | K88: 0 | L88: 0 | M88: 0 | N88: 0 | O88: 0 | P88: 0
A89: 2009 | B89: 0 | C89: 0 | D89: 0 | E89: 0 | F89: 0 | G89: 0 | H89: 0 | I89: 0 | J89: 0 | K89: 0 | L89: 0 | M89: 0 | N89: 0 | O89: 0 | P89: 0
A90: 2010 | B90: 0 | C90: 0 | D90: 0 | E90: 0 | F90: 0 | G90: 0 | H90: 0 | I90: 0 | J90: 0 | K90: 0 | L90: 0 | M90: 0 | N90: 0 | O90: 0 | P90: 0
A91: 2011 | B91: 0 | C91: 0 | D91: 0 | E91: 0 | F91: 0 | G91: 0 | H91: 0 | I91: 0 | J91: 0 | K91: 0 | L91: 0 | M91: 0 | N91: 0 | O91: 0 | P91: 0
A92: 2012 | B92: 0 | C92: 0 | D92: 0 | E92: 0 | F92: 0 | G92: 0 | H92: 0 | I92: 0 | J92: 0 | K92: 0 | L92: 0 | M92: 0 | N92: 0 | O92: 0 | P92: 0
A93: 2013 | B93: 0 | C93: 0 | D93: 0 | E93: 0 | F93: 0 | G93: 0 | H93: 0 | I93: 0 | J93: 0 | K93: 0 | L93: 0 | M93: 0 | N93: 0 | O93: 0 | P93: 0
A94: 2014 | B94: 0 | C94: 0 | D94: 0 | E94: 0 | F94: 0 | G94: 0 | H94: 0 | I94: 0 | J94: 0 | K94: 0 | L94: 0 | M94: 0 | N94: 0 | O94: 0 | P94: 0
A95: 2015 | B95: 0 | C95: 0 | D95: 0 | E95: 0 | F95: 0 | G95: 0 | H95: 0 | I95: 0 | J95: 0 | K95: 0 | L95: 0 | M95: 0 | N95: 0 | O95: 0 | P95: 0
A96: 2016 | B96: 0 | C96: 0 | D96: 0 | E96: 0 | F96: 0 | G96: 0 | H96: 0 | I96: 0 | J96: 0 | K96: 0 | L96: 0 | M96: 0 | N96: 0 | O96: 0 | P96: 0
A97: 2017 | B97: 0 | C97: 0 | D97: 0 | E97: 0 | F97: 0 | G97: 0 | H97: 0 | I97: 0 | J97: 0 | K97: 0 | L97: 0 | M97: 0 | N97: 0 | O97: 0 | P97: 0
A99: Off Peak Price Band 2 | B99: =B$3 -> Tariff R: Res Central | C99: =C$3 -> Tariff R: Res North | D99: Tariff R: Res MV (Vic) | E99: Tariff R: Res Bairnsdale | F99: Tariff R: Res Albury | G99: Tariff C: Non- Res Central | H99: Tariff C: Non- Res North | I99: Tariff C: Non- Res MV (Vic) | J99: Tariff C: Non- Res Bairnsdale | K99: Tariff C: Non- Res Albury | L99: Tariff D: Central | M99: Tariff D: North | N99: Tariff D: MV (Vic) | O99: Tariff D: Bairnsdale | P99: Tariff D: Albury
A100: =A88 -> 2008 | B100: 0 | C100: 0 | D100: 0 | E100: 0 | F100: 0 | G100: 0 | H100: 0 | I100: 0 | J100: 0 | K100: 0 | L100: 0 | M100: 0 | N100: 0 | O100: 0 | P100: 0
A101: 2009 | B101: 0 | C101: 0 | D101: 0 | E101: 0 | F101: 0 | G101: 0 | H101: 0 | I101: 0 | J101: 0 | K101: 0 | L101: 0 | M101: 0 | N101: 0 | O101: 0 | P101: 0
A102: 2010 | B102: 0 | C102: 0 | D102: 0 | E102: 0 | F102: 0 | G102: 0 | H102: 0 | I102: 0 | J102: 0 | K102: 0 | L102: 0 | M102: 0 | N102: 0 | O102: 0 | P102: 0
A103: 2011 | B103: 0 | C103: 0 | D103: 0 | E103: 0 | F103: 0 | G103: 0 | H103: 0 | I103: 0 | J103: 0 | K103: 0 | L103: 0 | M103: 0 | N103: 0 | O103: 0 | P103: 0
A104: 2012 | B104: 0 | C104: 0 | D104: 0 | E104: 0 | F104: 0 | G104: 0 | H104: 0 | I104: 0 | J104: 0 | K104: 0 | L104: 0 | M104: 0 | N104: 0 | O104: 0 | P104: 0
A105: 2013 | B105: 0 | C105: 0 | D105: 0 | E105: 0 | F105: 0 | G105: 0 | H105: 0 | I105: 0 | J105: 0 | K105: 0 | L105: 0 | M105: 0 | N105: 0 | O105: 0 | P105: 0
A106: 2014 | B106: 0 | C106: 0 | D106: 0 | E106: 0 | F106: 0 | G106: 0 | H106: 0 | I106: 0 | J106: 0 | K106: 0 | L106: 0 | M106: 0 | N106: 0 | O106: 0 | P106: 0
A107: 2015 | B107: 0 | C107: 0 | D107: 0 | E107: 0 | F107: 0 | G107: 0 | H107: 0 | I107: 0 | J107: 0 | K107: 0 | L107: 0 | M107: 0 | N107: 0 | O107: 0 | P107: 0
A108: 2016 | B108: 0 | C108: 0 | D108: 0 | E108: 0 | F108: 0 | G108: 0 | H108: 0 | I108: 0 | J108: 0 | K108: 0 | L108: 0 | M108: 0 | N108: 0 | O108: 0 | P108: 0
A109: 2017 | B109: 0 | C109: 0 | D109: 0 | E109: 0 | F109: 0 | G109: 0 | H109: 0 | I109: 0 | J109: 0 | K109: 0 | L109: 0 | M109: 0 | N109: 0 | O109: 0 | P109: 0
A111: Off Peak Price Band 3 | B111: =B$3 -> Tariff R: Res Central | C111: =C$3 -> Tariff R: Res North | D111: Tariff R: Res MV (Vic) | E111: Tariff R: Res Bairnsdale | F111: Tariff R: Res Albury | G111: Tariff C: Non- Res Central | H111: Tariff C: Non- Res North | I111: Tariff C: Non- Res MV (Vic) | J111: Tariff C: Non- Res Bairnsdale | K111: Tariff C: Non- Res Albury | L111: Tariff D: Central | M111: Tariff D: North | N111: Tariff D: MV (Vic) | O111: Tariff D: Bairnsdale | P111: Tariff D: Albury
A112: =A88 -> 2008 | B112: 0 | C112: 0 | D112: 0 | E112: 0 | F112: 0 | G112: 0 | H112: 0 | I112: 0 | J112: 0 | K112: 0 | L112: 0 | M112: 0 | N112: 0 | O112: 0 | P112: 0
A113: =A89 -> 2009 | B113: 0 | C113: 0 | D113: 0 | E113: 0 | F113: 0 | G113: 0 | H113: 0 | I113: 0 | J113: 0 | K113: 0 | L113: 0 | M113: 0 | N113: 0 | O113: 0 | P113: 0
A114: =A90 -> 2010 | B114: 0 | C114: 0 | D114: 0 | E114: 0 | F114: 0 | G114: 0 | H114: 0 | I114: 0 | J114: 0 | K114: 0 | L114: 0 | M114: 0 | N114: 0 | O114: 0 | P114: 0
A115: =A91 -> 2011 | B115: 0 | C115: 0 | D115: 0 | E115: 0 | F115: 0 | G115: 0 | H115: 0 | I115: 0 | J115: 0 | K115: 0 | L115: 0 | M115: 0 | N115: 0 | O115: 0 | P115: 0
A116: =A92 -> 2012 | B116: 0 | C116: 0 | D116: 0 | E116: 0 | F116: 0 | G116: 0 | H116: 0 | I116: 0 | J116: 0 | K116: 0 | L116: 0 | M116: 0 | N116: 0 | O116: 0 | P116: 0
A117: =A105 -> 2013 | B117: 0 | C117: 0 | D117: 0 | E117: 0 | F117: 0 | G117: 0 | H117: 0 | I117: 0 | J117: 0 | K117: 0 | L117: 0 | M117: 0 | N117: 0 | O117: 0 | P117: 0
A118: =A106 -> 2014 | B118: 0 | C118: 0 | D118: 0 | E118: 0 | F118: 0 | G118: 0 | H118: 0 | I118: 0 | J118: 0 | K118: 0 | L118: 0 | M118: 0 | N118: 0 | O118: 0 | P118: 0
A119: =A107 -> 2015 | B119: 0 | C119: 0 | D119: 0 | E119: 0 | F119: 0 | G119: 0 | H119: 0 | I119: 0 | J119: 0 | K119: 0 | L119: 0 | M119: 0 | N119: 0 | O119: 0 | P119: 0
A120: =A108 -> 2016 | B120: 0 | C120: 0 | D120: 0 | E120: 0 | F120: 0 | G120: 0 | H120: 0 | I120: 0 | J120: 0 | K120: 0 | L120: 0 | M120: 0 | N120: 0 | O120: 0 | P120: 0
A121: =A109 -> 2017 | B121: 0 | C121: 0 | D121: 0 | E121: 0 | F121: 0 | G121: 0 | H121: 0 | I121: 0 | J121: 0 | K121: 0 | L121: 0 | M121: 0 | N121: 0 | O121: 0 | P121: 0
A123: Off Peak Price Band 4 | B123: =B$3 -> Tariff R: Res Central | C123: =C$3 -> Tariff R: Res North | D123: Tariff R: Res MV (Vic) | E123: Tariff R: Res Bairnsdale | F123: Tariff R: Res Albury | G123: Tariff C: Non- Res Central | H123: Tariff C: Non- Res North | I123: Tariff C: Non- Res MV (Vic) | J123: Tariff C: Non- Res Bairnsdale | K123: Tariff C: Non- Res Albury | L123: Tariff D: Central | M123: Tariff D: North | N123: Tariff D: MV (Vic) | O123: Tariff D: Bairnsdale | P123: Tariff D: Albury
A124: =A88 -> 2008 | B124: 0 | C124: 0 | D124: 0 | E124: 0 | F124: 0 | G124: 0 | H124: 0 | I124: 0 | J124: 0 | K124: 0 | L124: 0 | M124: 0 | N124: 0 | O124: 0 | P124: 0
A125: =A89 -> 2009 | B125: 0 | C125: 0 | D125: 0 | E125: 0 | F125: 0 | G125: 0 | H125: 0 | I125: 0 | J125: 0 | K125: 0 | L125: 0 | M125: 0 | N125: 0 | O125: 0 | P125: 0
A126: =A90 -> 2010 | B126: 0 | C126: 0 | D126: 0 | E126: 0 | F126: 0 | G126: 0 | H126: 0 | I126: 0 | J126: 0 | K126: 0 | L126: 0 | M126: 0 | N126: 0 | O126: 0 | P126: 0
A127: =A91 -> 2011 | B127: 0 | C127: 0 | D127: 0 | E127: 0 | F127: 0 | G127: 0 | H127: 0 | I127: 0 | J127: 0 | K127: 0 | L127: 0 | M127: 0 | N127: 0 | O127: 0 | P127: 0
A128: =A92 -> 2012 | B128: 0 | C128: 0 | D128: 0 | E128: 0 | F128: 0 | G128: 0 | H128: 0 | I128: 0 | J128: 0 | K128: 0 | L128: 0 | M128: 0 | N128: 0 | O128: 0 | P128: 0
A129: =A117 -> 2013 | B129: 0 | C129: 0 | D129: 0 | E129: 0 | F129: 0 | G129: 0 | H129: 0 | I129: 0 | J129: 0 | K129: 0 | L129: 0 | M129: 0 | N129: 0 | O129: 0 | P129: 0
A130: =A118 -> 2014 | B130: 0 | C130: 0 | D130: 0 | E130: 0 | F130: 0 | G130: 0 | H130: 0 | I130: 0 | J130: 0 | K130: 0 | L130: 0 | M130: 0 | N130: 0 | O130: 0 | P130: 0
A131: =A119 -> 2015 | B131: 0 | C131: 0 | D131: 0 | E131: 0 | F131: 0 | G131: 0 | H131: 0 | I131: 0 | J131: 0 | K131: 0 | L131: 0 | M131: 0 | N131: 0 | O131: 0 | P131: 0
A132: =A120 -> 2016 | B132: 0 | C132: 0 | D132: 0 | E132: 0 | F132: 0 | G132: 0 | H132: 0 | I132: 0 | J132: 0 | K132: 0 | L132: 0 | M132: 0 | N132: 0 | O132: 0 | P132: 0
A133: =A121 -> 2017 | B133: 0 | C133: 0 | D133: 0 | E133: 0 | F133: 0 | G133: 0 | H133: 0 | I133: 0 | J133: 0 | K133: 0 | L133: 0 | M133: 0 | N133: 0 | O133: 0 | P133: 0
A135: Off Peak Price Band 5 | B135: =B$3 -> Tariff R: Res Central | C135: =C$3 -> Tariff R: Res North | D135: Tariff R: Res MV (Vic) | E135: Tariff R: Res Bairnsdale | F135: Tariff R: Res Albury | G135: Tariff C: Non- Res Central | H135: Tariff C: Non- Res North | I135: Tariff C: Non- Res MV (Vic) | J135: Tariff C: Non- Res Bairnsdale | K135: Tariff C: Non- Res Albury | L135: Tariff D: Central | M135: Tariff D: North | N135: Tariff D: MV (Vic) | O135: Tariff D: Bairnsdale | P135: Tariff D: Albury
A136: =A88 -> 2008 | B136: 0 | C136: 0 | D136: 0 | E136: 0 | F136: 0 | G136: 0 | H136: 0 | I136: 0 | J136: 0 | K136: 0 | L136: 0 | M136: 0 | N136: 0 | O136: 0 | P136: 0
A137: =A89 -> 2009 | B137: 0 | C137: 0 | D137: 0 | E137: 0 | F137: 0 | G137: 0 | H137: 0 | I137: 0 | J137: 0 | K137: 0 | L137: 0 | M137: 0 | N137: 0 | O137: 0 | P137: 0
A138: =A90 -> 2010 | B138: 0 | C138: 0 | D138: 0 | E138: 0 | F138: 0 | G138: 0 | H138: 0 | I138: 0 | J138: 0 | K138: 0 | L138: 0 | M138: 0 | N138: 0 | O138: 0 | P138: 0
A139: =A91 -> 2011 | B139: 0 | C139: 0 | D139: 0 | E139: 0 | F139: 0 | G139: 0 | H139: 0 | I139: 0 | J139: 0 | K139: 0 | L139: 0 | M139: 0 | N139: 0 | O139: 0 | P139: 0
A140: =A92 -> 2012 | B140: 0 | C140: 0 | D140: 0 | E140: 0 | F140: 0 | G140: 0 | H140: 0 | I140: 0 | J140: 0 | K140: 0 | L140: 0 | M140: 0 | N140: 0 | O140: 0 | P140: 0
A141: =A129 -> 2013 | B141: 0 | C141: 0 | D141: 0 | E141: 0 | F141: 0 | G141: 0 | H141: 0 | I141: 0 | J141: 0 | K141: 0 | L141: 0 | M141: 0 | N141: 0 | O141: 0 | P141: 0
A142: =A130 -> 2014 | B142: 0 | C142: 0 | D142: 0 | E142: 0 | F142: 0 | G142: 0 | H142: 0 | I142: 0 | J142: 0 | K142: 0 | L142: 0 | M142: 0 | N142: 0 | O142: 0 | P142: 0
A143: =A131 -> 2015 | B143: 0 | C143: 0 | D143: 0 | E143: 0 | F143: 0 | G143: 0 | H143: 0 | I143: 0 | J143: 0 | K143: 0 | L143: 0 | M143: 0 | N143: 0 | O143: 0 | P143: 0
A144: =A132 -> 2016 | B144: 0 | C144: 0 | D144: 0 | E144: 0 | F144: 0 | G144: 0 | H144: 0 | I144: 0 | J144: 0 | K144: 0 | L144: 0 | M144: 0 | N144: 0 | O144: 0 | P144: 0
A145: =A133 -> 2017 | B145: 0 | C145: 0 | D145: 0 | E145: 0 | F145: 0 | G145: 0 | H145: 0 | I145: 0 | J145: 0 | K145: 0 | L145: 0 | M145: 0 | N145: 0 | O145: 0 | P145: 0
A147: Off Peak Price Band 6 | B147: =B$3 -> Tariff R: Res Central | C147: =C$3 -> Tariff R: Res North | D147: Tariff R: Res MV (Vic) | E147: Tariff R: Res Bairnsdale | F147: Tariff R: Res Albury | G147: Tariff C: Non- Res Central | H147: Tariff C: Non- Res North | I147: Tariff C: Non- Res MV (Vic) | J147: Tariff C: Non- Res Bairnsdale | K147: Tariff C: Non- Res Albury | L147: Tariff D: Central | M147: Tariff D: North | N147: Tariff D: MV (Vic) | O147: Tariff D: Bairnsdale | P147: Tariff D: Albury
A148: =A88 -> 2008 | B148: 0 | C148: 0 | D148: 0 | E148: 0 | F148: 0 | G148: 0 | H148: 0 | I148: 0 | J148: 0 | K148: 0 | L148: 0 | M148: 0 | N148: 0 | O148: 0 | P148: 0
A149: =A89 -> 2009 | B149: 0 | C149: 0 | D149: 0 | E149: 0 | F149: 0 | G149: 0 | H149: 0 | I149: 0 | J149: 0 | K149: 0 | L149: 0 | M149: 0 | N149: 0 | O149: 0 | P149: 0
A150: =A90 -> 2010 | B150: 0 | C150: 0 | D150: 0 | E150: 0 | F150: 0 | G150: 0 | H150: 0 | I150: 0 | J150: 0 | K150: 0 | L150: 0 | M150: 0 | N150: 0 | O150: 0 | P150: 0
A151: =A91 -> 2011 | B151: 0 | C151: 0 | D151: 0 | E151: 0 | F151: 0 | G151: 0 | H151: 0 | I151: 0 | J151: 0 | K151: 0 | L151: 0 | M151: 0 | N151: 0 | O151: 0 | P151: 0
A152: =A92 -> 2012 | B152: 0 | C152: 0 | D152: 0 | E152: 0 | F152: 0 | G152: 0 | H152: 0 | I152: 0 | J152: 0 | K152: 0 | L152: 0 | M152: 0 | N152: 0 | O152: 0 | P152: 0
A153: =A141 -> 2013 | B153: 0 | C153: 0 | D153: 0 | E153: 0 | F153: 0 | G153: 0 | H153: 0 | I153: 0 | J153: 0 | K153: 0 | L153: 0 | M153: 0 | N153: 0 | O153: 0 | P153: 0
A154: =A142 -> 2014 | B154: 0 | C154: 0 | D154: 0 | E154: 0 | F154: 0 | G154: 0 | H154: 0 | I154: 0 | J154: 0 | K154: 0 | L154: 0 | M154: 0 | N154: 0 | O154: 0 | P154: 0
A155: =A143 -> 2015 | B155: 0 | C155: 0 | D155: 0 | E155: 0 | F155: 0 | G155: 0 | H155: 0 | I155: 0 | J155: 0 | K155: 0 | L155: 0 | M155: 0 | N155: 0 | O155: 0 | P155: 0
A156: =A144 -> 2016 | B156: 0 | C156: 0 | D156: 0 | E156: 0 | F156: 0 | G156: 0 | H156: 0 | I156: 0 | J156: 0 | K156: 0 | L156: 0 | M156: 0 | N156: 0 | O156: 0 | P156: 0
A157: =A145 -> 2017 | B157: 0 | C157: 0 | D157: 0 | E157: 0 | F157: 0 | G157: 0 | H157: 0 | I157: 0 | J157: 0 | K157: 0 | L157: 0 | M157: 0 | N157: 0 | O157: 0 | P157: 0
A159: Off Peak Price Band 7 | B159: =B$3 -> Tariff R: Res Central | C159: =C$3 -> Tariff R: Res North | D159: Tariff R: Res MV (Vic) | E159: Tariff R: Res Bairnsdale | F159: Tariff R: Res Albury | G159: Tariff C: Non- Res Central | H159: Tariff C: Non- Res North | I159: Tariff C: Non- Res MV (Vic) | J159: Tariff C: Non- Res Bairnsdale | K159: Tariff C: Non- Res Albury | L159: Tariff D: Central | M159: Tariff D: North | N159: Tariff D: MV (Vic) | O159: Tariff D: Bairnsdale | P159: Tariff D: Albury
A160: =A100 -> 2008 | B160: 0 | C160: 0 | D160: 0 | E160: 0 | F160: 0 | G160: 0 | H160: 0 | I160: 0 | J160: 0 | K160: 0 | L160: 0 | M160: 0 | N160: 0 | O160: 0 | P160: 0
A161: =A101 -> 2009 | B161: 0 | C161: 0 | D161: 0 | E161: 0 | F161: 0 | G161: 0 | H161: 0 | I161: 0 | J161: 0 | K161: 0 | L161: 0 | M161: 0 | N161: 0 | O161: 0 | P161: 0
A162: =A102 -> 2010 | B162: 0 | C162: 0 | D162: 0 | E162: 0 | F162: 0 | G162: 0 | H162: 0 | I162: 0 | J162: 0 | K162: 0 | L162: 0 | M162: 0 | N162: 0 | O162: 0 | P162: 0
A163: =A103 -> 2011 | B163: 0 | C163: 0 | D163: 0 | E163: 0 | F163: 0 | G163: 0 | H163: 0 | I163: 0 | J163: 0 | K163: 0 | L163: 0 | M163: 0 | N163: 0 | O163: 0 | P163: 0
A164: =A104 -> 2012 | B164: 0 | C164: 0 | D164: 0 | E164: 0 | F164: 0 | G164: 0 | H164: 0 | I164: 0 | J164: 0 | K164: 0 | L164: 0 | M164: 0 | N164: 0 | O164: 0 | P164: 0
A165: =A153 -> 2013 | B165: 0 | C165: 0 | D165: 0 | E165: 0 | F165: 0 | G165: 0 | H165: 0 | I165: 0 | J165: 0 | K165: 0 | L165: 0 | M165: 0 | N165: 0 | O165: 0 | P165: 0
A166: =A154 -> 2014 | B166: 0 | C166: 0 | D166: 0 | E166: 0 | F166: 0 | G166: 0 | H166: 0 | I166: 0 | J166: 0 | K166: 0 | L166: 0 | M166: 0 | N166: 0 | O166: 0 | P166: 0
A167: =A155 -> 2015 | B167: 0 | C167: 0 | D167: 0 | E167: 0 | F167: 0 | G167: 0 | H167: 0 | I167: 0 | J167: 0 | K167: 0 | L167: 0 | M167: 0 | N167: 0 | O167: 0 | P167: 0
A168: =A156 -> 2016 | B168: 0 | C168: 0 | D168: 0 | E168: 0 | F168: 0 | G168: 0 | H168: 0 | I168: 0 | J168: 0 | K168: 0 | L168: 0 | M168: 0 | N168: 0 | O168: 0 | P168: 0
A169: =A157 -> 2017 | B169: 0 | C169: 0 | D169: 0 | E169: 0 | F169: 0 | G169: 0 | H169: 0 | I169: 0 | J169: 0 | K169: 0 | L169: 0 | M169: 0 | N169: 0 | O169: 0 | P169: 0
A171: Summary | B171: =B$3 -> Tariff R: Res Central | C171: =C$3 -> Tariff R: Res North | D171: Tariff R: Res MV (Vic) | E171: Tariff R: Res Bairnsdale | F171: Tariff R: Res Albury | G171: Tariff C: Non- Res Central | H171: Tariff C: Non- Res North | I171: Tariff C: Non- Res MV (Vic) | J171: Tariff C: Non- Res Bairnsdale | K171: Tariff C: Non- Res Albury | L171: Tariff D: Central | M171: Tariff D: North | N171: Tariff D: MV (Vic) | O171: Tariff D: Bairnsdale | P171: Tariff D: Albury
A172: =A64 -> 2018/19 | B172: =SUMIF($A$4:$A$169,$A172,B$4:B$169) -> 562714 | C172: =SUMIF($A$4:$A$169,$A172,C$4:C$169) -> 79070 | D172: 8205 | E172: 4541 | F172: 22475 | G172: 20139 | H172: 3280 | I172: 357 | J172: 121 | K172: 927 | L172: 205 | M172: 50 | N172: 7 | O172: 3 | P172: 7
A173: 2019/20 | B173: =SUMIF($A$4:$A$169,$A173,B$4:B$169) -> 574746 | C173: 81252 | D173: 8369 | E173: 4721 | F173: 22865 | G173: 20183 | H173: 3286 | I173: 363 | J173: 124 | K173: 929 | L173: 206 | M173: 50 | N173: 7 | O173: 3 | P173: 7
A174: 2020/21 | B174: 585981 | C174: 82929 | D174: 8554 | E174: 4910 | F174: 23299 | G174: 20359 | H174: 3295 | I174: 368 | J174: 127 | K174: 939 | L174: 209 | M174: 51 | N174: 7 | O174: 3 | P174: 7
A175: 2021-22 | B175: 597206.2655 | C175: 84786.49691 | D175: 8791.776934 | E175: 5178.817576 | F175: 23728.43105 | G175: 20347.32498 | H175: 3314.370968 | I175: 373.3526018 | J175: 133.2121876 | K175: 943.0852737 | L175: 213.348 | M175: 50 | N175: 7 | O175: 3 | P175: 7
A176: 2022-23 | B176: 606793.2682 | C176: 85941.59923 | D176: 8923.163393 | E176: 5423.352644 | F176: 23908.77707 | G176: 19559.25826 | H176: 3195.855816 | I176: 368.7830577 | J176: 137.7282436 | K176: 921.188321 | L176: 216.7375152 | M176: 50 | N176: 7 | O176: 3 | P176: 7
A177: 2023-24 | B177: 613931.6793 | C177: 87122.57426 | D177: 9058.202022 | E177: 5682.275762 | F177: 24092.4471 | G177: 18767.84341 | H177: 3076.643926 | I177: 364.1470492 | J177: 143.4652017 | K177: 900.196102 | L177: 220.1690604 | M177: 50 | N177: 7 | O177: 3 | P177: 7
A178: 2024-25 | B178: 622791.7118 | C178: 89074.00154 | D178: 9309.994343 | E178: 5993.374661 | F178: 24536.50242 | G178: 18858.01017 | H178: 3094.731201 | I178: 369.4436093 | J178: 150.4827825 | K178: 904.1125529 | L178: 223.6431567 | M178: 50 | N178: 7 | O178: 3 | P178: 7
A179: 2025-26 | B179: 630985.9133 | C179: 91069.13813 | D179: 9568.785775 | E179: 6321.505913 | F179: 24988.74225 | G179: 18948.30066 | H179: 3112.924809 | I179: 374.8172086 | J179: 157.8436272 | K179: 908.046043 | L179: 227.1603319 | M179: 50 | N179: 7 | O179: 3 | P179: 7
A180: 2026-27 | B180: 639150.8558 | C180: 93108.96307 | D180: 9834.770875 | E180: 6667.602022 | F180: 25449.31746 | G180: 19038.69982 | H180: 3131.225376 | I180: 380.2689674 | J180: 165.5645266 | K180: 911.9966464 | L180: 230.72112 | M180: 50 | N180: 7 | O180: 3 | P180: 7
A181: 2027-28 | B181: 647223.473 | C181: 95194.47732 | D181: 10108.14961 | E181: 7032.646546 | F181: 25918.38167 | G181: 19129.19183 | H181: 3149.63353 | I181: 385.8000227 | J181: 173.6630928 | K181: 915.9644375 | L181: 234.3260619 | M181: 50 | N181: 7 | O181: 3 | P181: 7

Sheet No of Connections Summ (hidden)
B1: ="ENVESTRA - Tariff model for "&'General Inputs'!#REF!&" ("&'General Inputs'!#REF!&")" -> 
B2: Number of connections - Summary
B3: Back to table of contents
B4: This page summarises the total number of connections input for each cost pools
B7: Period Ending 30 June | J7: 2005 | K7: =J7+1 -> 2006 | L7: 2007 | M7: 2008 | N7: 2009 | O7: 2010 | P7: 2011
B11: Connections data
C13: Number of connections
C16: Total number of connections
C17: in connections units
F18: Short name | G18: Price bands
C20: ='General Inputs'!#REF! ->  | F20: ='General Inputs'!B18 -> Tariff R: Res Central | G20: Total | L20: =MAX('Connection Numbers Inputs'!B4,SUM('Connection Numbers Inputs'!B16,'Connection Numbers Inputs'!B28,'Connection Numbers Inputs'!B40,'Connection Numbers Inputs'!B52,'Connection Numbers Inputs'!B64)) -> 562714 | M20: =MAX('Connection Numbers Inputs'!B5,SUM('Connection Numbers Inputs'!B17,'Connection Numbers Inputs'!B29,'Connection Numbers Inputs'!B41,'Connection Numbers Inputs'!B53,'Connection Numbers Inputs'!B65)) -> 574746 | N20: =MAX('Connection Numbers Inputs'!B6,SUM('Connection Numbers Inputs'!B18,'Connection Numbers Inputs'!B30,'Connection Numbers Inputs'!B42,'Connection Numbers Inputs'!B54,'Connection Numbers Inputs'!B66)) -> 585981 | O20: =MAX('Connection Numbers Inputs'!B7,SUM('Connection Numbers Inputs'!B19,'Connection Numbers Inputs'!B31,'Connection Numbers Inputs'!B43,'Connection Numbers Inputs'!B55,'Connection Numbers Inputs'!B67)) -> 597206.2655 | P20: =MAX('Connection Numbers Inputs'!B8,SUM('Connection Numbers Inputs'!B20,'Connection Numbers Inputs'!B32,'Connection Numbers Inputs'!B44,'Connection Numbers Inputs'!B56,'Connection Numbers Inputs'!B68)) -> 606793.2682
C21: ='General Inputs'!#REF! ->  | F21: ='General Inputs'!B19 -> Tariff R: Res North | G21: Total | L21: =MAX('Connection Numbers Inputs'!C4,SUM('Connection Numbers Inputs'!C16,'Connection Numbers Inputs'!C28,'Connection Numbers Inputs'!C40,'Connection Numbers Inputs'!C52,'Connection Numbers Inputs'!C64)) -> 79070 | M21: =MAX('Connection Numbers Inputs'!C5,SUM('Connection Numbers Inputs'!C17,'Connection Numbers Inputs'!C29,'Connection Numbers Inputs'!C41,'Connection Numbers Inputs'!C53,'Connection Numbers Inputs'!C65)) -> 81252 | N21: =MAX('Connection Numbers Inputs'!C6,SUM('Connection Numbers Inputs'!C18,'Connection Numbers Inputs'!C30,'Connection Numbers Inputs'!C42,'Connection Numbers Inputs'!C54,'Connection Numbers Inputs'!C66)) -> 82929 | O21: =MAX('Connection Numbers Inputs'!C7,SUM('Connection Numbers Inputs'!C19,'Connection Numbers Inputs'!C31,'Connection Numbers Inputs'!C43,'Connection Numbers Inputs'!C55,'Connection Numbers Inputs'!C67)) -> 84786.49691 | P21: =MAX('Connection Numbers Inputs'!C8,SUM('Connection Numbers Inputs'!C20,'Connection Numbers Inputs'!C32,'Connection Numbers Inputs'!C44,'Connection Numbers Inputs'!C56,'Connection Numbers Inputs'!C68)) -> 85941.59923
C22: ='General Inputs'!#REF! ->  | F22: ='General Inputs'!B28 -> Tariff D: Central | G22: Total | L22: =MAX('Connection Numbers Inputs'!J4,SUM('Connection Numbers Inputs'!J16,'Connection Numbers Inputs'!J28,'Connection Numbers Inputs'!J40,'Connection Numbers Inputs'!J52,'Connection Numbers Inputs'!J64)) -> 121 | M22: =MAX('Connection Numbers Inputs'!J5,SUM('Connection Numbers Inputs'!J17,'Connection Numbers Inputs'!J29,'Connection Numbers Inputs'!J41,'Connection Numbers Inputs'!J53,'Connection Numbers Inputs'!J65)) -> 124 | N22: =MAX('Connection Numbers Inputs'!J6,SUM('Connection Numbers Inputs'!J18,'Connection Numbers Inputs'!J30,'Connection Numbers Inputs'!J42,'Connection Numbers Inputs'!J54,'Connection Numbers Inputs'!J66)) -> 127 | O22: =MAX('Connection Numbers Inputs'!J7,SUM('Connection Numbers Inputs'!J19,'Connection Numbers Inputs'!J31,'Connection Numbers Inputs'!J43,'Connection Numbers Inputs'!J55,'Connection Numbers Inputs'!J67)) -> 133.2121876 | P22: =MAX('Connection Numbers Inputs'!J8,SUM('Connection Numbers Inputs'!J20,'Connection Numbers Inputs'!J32,'Connection Numbers Inputs'!J44,'Connection Numbers Inputs'!J56,'Connection Numbers Inputs'!J68)) -> 137.7282436
C23: ='General Inputs'!#REF! ->  | F23: ='General Inputs'!B30 -> Tariff D: MV (Vic) | G23: Total | L23: =MAX('Connection Numbers Inputs'!L4,SUM('Connection Numbers Inputs'!L16,'Connection Numbers Inputs'!L28,'Connection Numbers Inputs'!L40,'Connection Numbers Inputs'!L52,'Connection Numbers Inputs'!L64)) -> 205 | M23: =MAX('Connection Numbers Inputs'!L5,SUM('Connection Numbers Inputs'!L17,'Connection Numbers Inputs'!L29,'Connection Numbers Inputs'!L41,'Connection Numbers Inputs'!L53,'Connection Numbers Inputs'!L65)) -> 206 | N23: =MAX('Connection Numbers Inputs'!L6,SUM('Connection Numbers Inputs'!L18,'Connection Numbers Inputs'!L30,'Connection Numbers Inputs'!L42,'Connection Numbers Inputs'!L54,'Connection Numbers Inputs'!L66)) -> 209 | O23: =MAX('Connection Numbers Inputs'!L7,SUM('Connection Numbers Inputs'!L19,'Connection Numbers Inputs'!L31,'Connection Numbers Inputs'!L43,'Connection Numbers Inputs'!L55,'Connection Numbers Inputs'!L67)) -> 213.348 | P23: =MAX('Connection Numbers Inputs'!L8,SUM('Connection Numbers Inputs'!L20,'Connection Numbers Inputs'!L32,'Connection Numbers Inputs'!L44,'Connection Numbers Inputs'!L56,'Connection Numbers Inputs'!L68)) -> 216.7375152
C24: ='General Inputs'!#REF! ->  | F24: ='General Inputs'!B31 -> Tariff D: Bairnsdale | G24: Total | L24: =MAX('Connection Numbers Inputs'!M4,SUM('Connection Numbers Inputs'!M16,'Connection Numbers Inputs'!M28,'Connection Numbers Inputs'!M40,'Connection Numbers Inputs'!M52,'Connection Numbers Inputs'!M64)) -> 50 | M24: =MAX('Connection Numbers Inputs'!M5,SUM('Connection Numbers Inputs'!M17,'Connection Numbers Inputs'!M29,'Connection Numbers Inputs'!M41,'Connection Numbers Inputs'!M53,'Connection Numbers Inputs'!M65)) -> 50 | N24: =MAX('Connection Numbers Inputs'!M6,SUM('Connection Numbers Inputs'!M18,'Connection Numbers Inputs'!M30,'Connection Numbers Inputs'!M42,'Connection Numbers Inputs'!M54,'Connection Numbers Inputs'!M66)) -> 51 | O24: =MAX('Connection Numbers Inputs'!M7,SUM('Connection Numbers Inputs'!M19,'Connection Numbers Inputs'!M31,'Connection Numbers Inputs'!M43,'Connection Numbers Inputs'!M55,'Connection Numbers Inputs'!M67)) -> 50 | P24: =MAX('Connection Numbers Inputs'!M8,SUM('Connection Numbers Inputs'!M20,'Connection Numbers Inputs'!M32,'Connection Numbers Inputs'!M44,'Connection Numbers Inputs'!M56,'Connection Numbers Inputs'!M68)) -> 50
C25: ='General Inputs'!#REF! ->  | F25: ='General Inputs'!B33 -> 0 | G25: Total | L25: =MAX('Connection Numbers Inputs'!#REF!,SUM('Connection Numbers Inputs'!#REF!,'Connection Numbers Inputs'!#REF!,'Connection Numbers Inputs'!#REF!,'Connection Numbers Inputs'!#REF!,'Connection Numbers Inputs'!#REF!)) ->  | M25: =MAX('Connection Numbers Inputs'!#REF!,SUM('Connection Numbers Inputs'!#REF!,'Connection Numbers Inputs'!#REF!,'Connection Numbers Inputs'!#REF!,'Connection Numbers Inputs'!#REF!,'Connection Numbers Inputs'!#REF!)) ->  | N25: =MAX('Connection Numbers Inputs'!#REF!,SUM('Connection Numbers Inputs'!#REF!,'Connection Numbers Inputs'!#REF!,'Connection Numbers Inputs'!#REF!,'Connection Numbers Inputs'!#REF!,'Connection Numbers Inputs'!#REF!)) ->  | O25: =MAX('Connection Numbers Inputs'!#REF!,SUM('Connection Numbers Inputs'!#REF!,'Connection Numbers Inputs'!#REF!,'Connection Numbers Inputs'!#REF!,'Connection Numbers Inputs'!#REF!,'Connection Numbers Inputs'!#REF!)) ->  | P25: =MAX('Connection Numbers Inputs'!#REF!,SUM('Connection Numbers Inputs'!#REF!,'Connection Numbers Inputs'!#REF!,'Connection Numbers Inputs'!#REF!,'Connection Numbers Inputs'!#REF!,'Connection Numbers Inputs'!#REF!)) -> 
C26: ='General Inputs'!#REF! ->  | F26: ='General Inputs'!B34 -> 0 | G26: Total | L26: =MAX('Connection Numbers Inputs'!N4,SUM('Connection Numbers Inputs'!N16,'Connection Numbers Inputs'!N28,'Connection Numbers Inputs'!N40,'Connection Numbers Inputs'!N52,'Connection Numbers Inputs'!N64)) -> 7 | M26: =MAX('Connection Numbers Inputs'!N5,SUM('Connection Numbers Inputs'!N17,'Connection Numbers Inputs'!N29,'Connection Numbers Inputs'!N41,'Connection Numbers Inputs'!N53,'Connection Numbers Inputs'!N65)) -> 7 | N26: =MAX('Connection Numbers Inputs'!N6,SUM('Connection Numbers Inputs'!N18,'Connection Numbers Inputs'!N30,'Connection Numbers Inputs'!N42,'Connection Numbers Inputs'!N54,'Connection Numbers Inputs'!N66)) -> 7 | O26: =MAX('Connection Numbers Inputs'!N7,SUM('Connection Numbers Inputs'!N19,'Connection Numbers Inputs'!N31,'Connection Numbers Inputs'!N43,'Connection Numbers Inputs'!N55,'Connection Numbers Inputs'!N67)) -> 7 | P26: =MAX('Connection Numbers Inputs'!N8,SUM('Connection Numbers Inputs'!N20,'Connection Numbers Inputs'!N32,'Connection Numbers Inputs'!N44,'Connection Numbers Inputs'!N56,'Connection Numbers Inputs'!N68)) -> 7
C27: ='General Inputs'!#REF! ->  | F27: ='General Inputs'!B35 -> 0 | G27: Total | L27: =MAX('Connection Numbers Inputs'!#REF!,SUM('Connection Numbers Inputs'!#REF!,'Connection Numbers Inputs'!#REF!,'Connection Numbers Inputs'!#REF!,'Connection Numbers Inputs'!#REF!,'Connection Numbers Inputs'!#REF!)) ->  | M27: =MAX('Connection Numbers Inputs'!#REF!,SUM('Connection Numbers Inputs'!#REF!,'Connection Numbers Inputs'!#REF!,'Connection Numbers Inputs'!#REF!,'Connection Numbers Inputs'!#REF!,'Connection Numbers Inputs'!#REF!)) ->  | N27: =MAX('Connection Numbers Inputs'!#REF!,SUM('Connection Numbers Inputs'!#REF!,'Connection Numbers Inputs'!#REF!,'Connection Numbers Inputs'!#REF!,'Connection Numbers Inputs'!#REF!,'Connection Numbers Inputs'!#REF!)) ->  | O27: =MAX('Connection Numbers Inputs'!#REF!,SUM('Connection Numbers Inputs'!#REF!,'Connection Numbers Inputs'!#REF!,'Connection Numbers Inputs'!#REF!,'Connection Numbers Inputs'!#REF!,'Connection Numbers Inputs'!#REF!)) ->  | P27: =MAX('Connection Numbers Inputs'!#REF!,SUM('Connection Numbers Inputs'!#REF!,'Connection Numbers Inputs'!#REF!,'Connection Numbers Inputs'!#REF!,'Connection Numbers Inputs'!#REF!,'Connection Numbers Inputs'!#REF!)) -> 
C28: ='General Inputs'!#REF! ->  | F28: ='General Inputs'!B36 -> 0 | G28: Total | L28: =MAX('Connection Numbers Inputs'!#REF!,SUM('Connection Numbers Inputs'!#REF!,'Connection Numbers Inputs'!#REF!,'Connection Numbers Inputs'!#REF!,'Connection Numbers Inputs'!#REF!,'Connection Numbers Inputs'!#REF!)) ->  | M28: =MAX('Connection Numbers Inputs'!#REF!,SUM('Connection Numbers Inputs'!#REF!,'Connection Numbers Inputs'!#REF!,'Connection Numbers Inputs'!#REF!,'Connection Numbers Inputs'!#REF!,'Connection Numbers Inputs'!#REF!)) ->  | N28: =MAX('Connection Numbers Inputs'!#REF!,SUM('Connection Numbers Inputs'!#REF!,'Connection Numbers Inputs'!#REF!,'Connection Numbers Inputs'!#REF!,'Connection Numbers Inputs'!#REF!,'Connection Numbers Inputs'!#REF!)) ->  | O28: =MAX('Connection Numbers Inputs'!#REF!,SUM('Connection Numbers Inputs'!#REF!,'Connection Numbers Inputs'!#REF!,'Connection Numbers Inputs'!#REF!,'Connection Numbers Inputs'!#REF!,'Connection Numbers Inputs'!#REF!)) ->  | P28: =MAX('Connection Numbers Inputs'!#REF!,SUM('Connection Numbers Inputs'!#REF!,'Connection Numbers Inputs'!#REF!,'Connection Numbers Inputs'!#REF!,'Connection Numbers Inputs'!#REF!,'Connection Numbers Inputs'!#REF!)) -> 
C29: ='General Inputs'!#REF! ->  | F29: ='General Inputs'!B37 -> 0 | G29: Total | L29: =MAX('Connection Numbers Inputs'!#REF!,SUM('Connection Numbers Inputs'!#REF!,'Connection Numbers Inputs'!#REF!,'Connection Numbers Inputs'!#REF!,'Connection Numbers Inputs'!#REF!,'Connection Numbers Inputs'!#REF!)) ->  | M29: =MAX('Connection Numbers Inputs'!#REF!,SUM('Connection Numbers Inputs'!#REF!,'Connection Numbers Inputs'!#REF!,'Connection Numbers Inputs'!#REF!,'Connection Numbers Inputs'!#REF!,'Connection Numbers Inputs'!#REF!)) ->  | N29: =MAX('Connection Numbers Inputs'!#REF!,SUM('Connection Numbers Inputs'!#REF!,'Connection Numbers Inputs'!#REF!,'Connection Numbers Inputs'!#REF!,'Connection Numbers Inputs'!#REF!,'Connection Numbers Inputs'!#REF!)) ->  | O29: =MAX('Connection Numbers Inputs'!#REF!,SUM('Connection Numbers Inputs'!#REF!,'Connection Numbers Inputs'!#REF!,'Connection Numbers Inputs'!#REF!,'Connection Numbers Inputs'!#REF!,'Connection Numbers Inputs'!#REF!)) ->  | P29: =MAX('Connection Numbers Inputs'!#REF!,SUM('Connection Numbers Inputs'!#REF!,'Connection Numbers Inputs'!#REF!,'Connection Numbers Inputs'!#REF!,'Connection Numbers Inputs'!#REF!,'Connection Numbers Inputs'!#REF!)) -> 
C30: ='General Inputs'!#REF! ->  | F30: ='General Inputs'!B38 -> 0 | G30: Total | L30: =MAX('Connection Numbers Inputs'!Q4,SUM('Connection Numbers Inputs'!Q16,'Connection Numbers Inputs'!Q28,'Connection Numbers Inputs'!Q40,'Connection Numbers Inputs'!Q52,'Connection Numbers Inputs'!Q64)) -> 0 | M30: =MAX('Connection Numbers Inputs'!Q5,SUM('Connection Numbers Inputs'!Q17,'Connection Numbers Inputs'!Q29,'Connection Numbers Inputs'!Q41,'Connection Numbers Inputs'!Q53,'Connection Numbers Inputs'!Q65)) -> 0 | N30: =MAX('Connection Numbers Inputs'!Q6,SUM('Connection Numbers Inputs'!Q18,'Connection Numbers Inputs'!Q30,'Connection Numbers Inputs'!Q42,'Connection Numbers Inputs'!Q54,'Connection Numbers Inputs'!Q66)) -> 0 | O30: =MAX('Connection Numbers Inputs'!Q7,SUM('Connection Numbers Inputs'!Q19,'Connection Numbers Inputs'!Q31,'Connection Numbers Inputs'!Q43,'Connection Numbers Inputs'!Q55,'Connection Numbers Inputs'!Q67)) -> 0 | P30: =MAX('Connection Numbers Inputs'!Q8,SUM('Connection Numbers Inputs'!Q20,'Connection Numbers Inputs'!Q32,'Connection Numbers Inputs'!Q44,'Connection Numbers Inputs'!Q56,'Connection Numbers Inputs'!Q68)) -> 0
C31: ='General Inputs'!#REF! ->  | F31: ='General Inputs'!B39 -> 0 | G31: Total | L31: =MAX('Connection Numbers Inputs'!R4,SUM('Connection Numbers Inputs'!R16,'Connection Numbers Inputs'!R28,'Connection Numbers Inputs'!R40,'Connection Numbers Inputs'!R52,'Connection Numbers Inputs'!R64)) -> 0 | M31: =MAX('Connection Numbers Inputs'!R5,SUM('Connection Numbers Inputs'!R17,'Connection Numbers Inputs'!R29,'Connection Numbers Inputs'!R41,'Connection Numbers Inputs'!R53,'Connection Numbers Inputs'!R65)) -> 0 | N31: =MAX('Connection Numbers Inputs'!R6,SUM('Connection Numbers Inputs'!R18,'Connection Numbers Inputs'!R30,'Connection Numbers Inputs'!R42,'Connection Numbers Inputs'!R54,'Connection Numbers Inputs'!R66)) -> 0 | O31: =MAX('Connection Numbers Inputs'!R7,SUM('Connection Numbers Inputs'!R19,'Connection Numbers Inputs'!R31,'Connection Numbers Inputs'!R43,'Connection Numbers Inputs'!R55,'Connection Numbers Inputs'!R67)) -> 0 | P31: =MAX('Connection Numbers Inputs'!R8,SUM('Connection Numbers Inputs'!R20,'Connection Numbers Inputs'!R32,'Connection Numbers Inputs'!R44,'Connection Numbers Inputs'!R56,'Connection Numbers Inputs'!R68)) -> 0
C32: ='General Inputs'!#REF! ->  | F32: ='General Inputs'!B40 -> 0 | G32: Total | L32: =MAX('Connection Numbers Inputs'!T4,SUM('Connection Numbers Inputs'!T16,'Connection Numbers Inputs'!T28,'Connection Numbers Inputs'!T40,'Connection Numbers Inputs'!T52,'Connection Numbers Inputs'!T64)) -> 0 | M32: =MAX('Connection Numbers Inputs'!T5,SUM('Connection Numbers Inputs'!T17,'Connection Numbers Inputs'!T29,'Connection Numbers Inputs'!T41,'Connection Numbers Inputs'!T53,'Connection Numbers Inputs'!T65)) -> 0 | N32: =MAX('Connection Numbers Inputs'!T6,SUM('Connection Numbers Inputs'!T18,'Connection Numbers Inputs'!T30,'Connection Numbers Inputs'!T42,'Connection Numbers Inputs'!T54,'Connection Numbers Inputs'!T66)) -> 0 | O32: =MAX('Connection Numbers Inputs'!T7,SUM('Connection Numbers Inputs'!T19,'Connection Numbers Inputs'!T31,'Connection Numbers Inputs'!T43,'Connection Numbers Inputs'!T55,'Connection Numbers Inputs'!T67)) -> 0 | P32: =MAX('Connection Numbers Inputs'!T8,SUM('Connection Numbers Inputs'!T20,'Connection Numbers Inputs'!T32,'Connection Numbers Inputs'!T44,'Connection Numbers Inputs'!T56,'Connection Numbers Inputs'!T68)) -> 0
C33: ='General Inputs'!#REF! ->  | F33: ='General Inputs'!B41 -> 0 | G33: Total | L33: =MAX('Connection Numbers Inputs'!S4,SUM('Connection Numbers Inputs'!S16,'Connection Numbers Inputs'!S28,'Connection Numbers Inputs'!S40,'Connection Numbers Inputs'!S52,'Connection Numbers Inputs'!S64)) -> 0 | M33: =MAX('Connection Numbers Inputs'!S5,SUM('Connection Numbers Inputs'!S17,'Connection Numbers Inputs'!S29,'Connection Numbers Inputs'!S41,'Connection Numbers Inputs'!S53,'Connection Numbers Inputs'!S65)) -> 0 | N33: =MAX('Connection Numbers Inputs'!S6,SUM('Connection Numbers Inputs'!S18,'Connection Numbers Inputs'!S30,'Connection Numbers Inputs'!S42,'Connection Numbers Inputs'!S54,'Connection Numbers Inputs'!S66)) -> 0 | O33: =MAX('Connection Numbers Inputs'!S7,SUM('Connection Numbers Inputs'!S19,'Connection Numbers Inputs'!S31,'Connection Numbers Inputs'!S43,'Connection Numbers Inputs'!S55,'Connection Numbers Inputs'!S67)) -> 0 | P33: =MAX('Connection Numbers Inputs'!S8,SUM('Connection Numbers Inputs'!S20,'Connection Numbers Inputs'!S32,'Connection Numbers Inputs'!S44,'Connection Numbers Inputs'!S56,'Connection Numbers Inputs'!S68)) -> 0
C34: ='General Inputs'!#REF! ->  | F34: ='General Inputs'!#REF! ->  | G34: Total | L34: =MAX('Connection Numbers Inputs'!#REF!,SUM('Connection Numbers Inputs'!#REF!,'Connection Numbers Inputs'!#REF!,'Connection Numbers Inputs'!#REF!,'Connection Numbers Inputs'!#REF!,'Connection Numbers Inputs'!#REF!)) ->  | M34: =MAX('Connection Numbers Inputs'!#REF!,SUM('Connection Numbers Inputs'!#REF!,'Connection Numbers Inputs'!#REF!,'Connection Numbers Inputs'!#REF!,'Connection Numbers Inputs'!#REF!,'Connection Numbers Inputs'!#REF!)) ->  | N34: =MAX('Connection Numbers Inputs'!#REF!,SUM('Connection Numbers Inputs'!#REF!,'Connection Numbers Inputs'!#REF!,'Connection Numbers Inputs'!#REF!,'Connection Numbers Inputs'!#REF!,'Connection Numbers Inputs'!#REF!)) ->  | O34: =MAX('Connection Numbers Inputs'!#REF!,SUM('Connection Numbers Inputs'!#REF!,'Connection Numbers Inputs'!#REF!,'Connection Numbers Inputs'!#REF!,'Connection Numbers Inputs'!#REF!,'Connection Numbers Inputs'!#REF!)) ->  | P34: =MAX('Connection Numbers Inputs'!#REF!,SUM('Connection Numbers Inputs'!#REF!,'Connection Numbers Inputs'!#REF!,'Connection Numbers Inputs'!#REF!,'Connection Numbers Inputs'!#REF!,'Connection Numbers Inputs'!#REF!)) -> 
C35: ='General Inputs'!#REF! ->  | F35: ='General Inputs'!#REF! ->  | G35: Total | L35: =MAX('Connection Numbers Inputs'!#REF!,SUM('Connection Numbers Inputs'!#REF!,'Connection Numbers Inputs'!#REF!,'Connection Numbers Inputs'!#REF!,'Connection Numbers Inputs'!#REF!,'Connection Numbers Inputs'!#REF!)) ->  | M35: =MAX('Connection Numbers Inputs'!#REF!,SUM('Connection Numbers Inputs'!#REF!,'Connection Numbers Inputs'!#REF!,'Connection Numbers Inputs'!#REF!,'Connection Numbers Inputs'!#REF!,'Connection Numbers Inputs'!#REF!)) ->  | N35: =MAX('Connection Numbers Inputs'!#REF!,SUM('Connection Numbers Inputs'!#REF!,'Connection Numbers Inputs'!#REF!,'Connection Numbers Inputs'!#REF!,'Connection Numbers Inputs'!#REF!,'Connection Numbers Inputs'!#REF!)) ->  | O35: =MAX('Connection Numbers Inputs'!#REF!,SUM('Connection Numbers Inputs'!#REF!,'Connection Numbers Inputs'!#REF!,'Connection Numbers Inputs'!#REF!,'Connection Numbers Inputs'!#REF!,'Connection Numbers Inputs'!#REF!)) ->  | P35: =MAX('Connection Numbers Inputs'!#REF!,SUM('Connection Numbers Inputs'!#REF!,'Connection Numbers Inputs'!#REF!,'Connection Numbers Inputs'!#REF!,'Connection Numbers Inputs'!#REF!,'Connection Numbers Inputs'!#REF!)) -> 
C36: ='General Inputs'!#REF! ->  | F36: ='General Inputs'!#REF! ->  | G36: Total | L36: =MAX('Connection Numbers Inputs'!#REF!,SUM('Connection Numbers Inputs'!#REF!,'Connection Numbers Inputs'!#REF!,'Connection Numbers Inputs'!#REF!,'Connection Numbers Inputs'!#REF!,'Connection Numbers Inputs'!#REF!)) ->  | M36: =MAX('Connection Numbers Inputs'!#REF!,SUM('Connection Numbers Inputs'!#REF!,'Connection Numbers Inputs'!#REF!,'Connection Numbers Inputs'!#REF!,'Connection Numbers Inputs'!#REF!,'Connection Numbers Inputs'!#REF!)) ->  | N36: =MAX('Connection Numbers Inputs'!#REF!,SUM('Connection Numbers Inputs'!#REF!,'Connection Numbers Inputs'!#REF!,'Connection Numbers Inputs'!#REF!,'Connection Numbers Inputs'!#REF!,'Connection Numbers Inputs'!#REF!)) ->  | O36: =MAX('Connection Numbers Inputs'!#REF!,SUM('Connection Numbers Inputs'!#REF!,'Connection Numbers Inputs'!#REF!,'Connection Numbers Inputs'!#REF!,'Connection Numbers Inputs'!#REF!,'Connection Numbers Inputs'!#REF!)) ->  | P36: =MAX('Connection Numbers Inputs'!#REF!,SUM('Connection Numbers Inputs'!#REF!,'Connection Numbers Inputs'!#REF!,'Connection Numbers Inputs'!#REF!,'Connection Numbers Inputs'!#REF!,'Connection Numbers Inputs'!#REF!)) -> 
C37: ='General Inputs'!#REF! ->  | F37: ='General Inputs'!#REF! ->  | G37: Total | L37: =MAX('Connection Numbers Inputs'!#REF!,SUM('Connection Numbers Inputs'!#REF!,'Connection Numbers Inputs'!#REF!,'Connection Numbers Inputs'!#REF!,'Connection Numbers Inputs'!#REF!,'Connection Numbers Inputs'!#REF!)) ->  | M37: =MAX('Connection Numbers Inputs'!#REF!,SUM('Connection Numbers Inputs'!#REF!,'Connection Numbers Inputs'!#REF!,'Connection Numbers Inputs'!#REF!,'Connection Numbers Inputs'!#REF!,'Connection Numbers Inputs'!#REF!)) ->  | N37: =MAX('Connection Numbers Inputs'!#REF!,SUM('Connection Numbers Inputs'!#REF!,'Connection Numbers Inputs'!#REF!,'Connection Numbers Inputs'!#REF!,'Connection Numbers Inputs'!#REF!,'Connection Numbers Inputs'!#REF!)) ->  | O37: =MAX('Connection Numbers Inputs'!#REF!,SUM('Connection Numbers Inputs'!#REF!,'Connection Numbers Inputs'!#REF!,'Connection Numbers Inputs'!#REF!,'Connection Numbers Inputs'!#REF!,'Connection Numbers Inputs'!#REF!)) ->  | P37: =MAX('Connection Numbers Inputs'!#REF!,SUM('Connection Numbers Inputs'!#REF!,'Connection Numbers Inputs'!#REF!,'Connection Numbers Inputs'!#REF!,'Connection Numbers Inputs'!#REF!,'Connection Numbers Inputs'!#REF!)) -> 
C38: ='General Inputs'!#REF! ->  | F38: ='General Inputs'!#REF! ->  | G38: Total | L38: =MAX('Connection Numbers Inputs'!#REF!,SUM('Connection Numbers Inputs'!#REF!,'Connection Numbers Inputs'!#REF!,'Connection Numbers Inputs'!#REF!,'Connection Numbers Inputs'!#REF!,'Connection Numbers Inputs'!#REF!)) ->  | M38: =MAX('Connection Numbers Inputs'!#REF!,SUM('Connection Numbers Inputs'!#REF!,'Connection Numbers Inputs'!#REF!,'Connection Numbers Inputs'!#REF!,'Connection Numbers Inputs'!#REF!,'Connection Numbers Inputs'!#REF!)) ->  | N38: =MAX('Connection Numbers Inputs'!#REF!,SUM('Connection Numbers Inputs'!#REF!,'Connection Numbers Inputs'!#REF!,'Connection Numbers Inputs'!#REF!,'Connection Numbers Inputs'!#REF!,'Connection Numbers Inputs'!#REF!)) ->  | O38: =MAX('Connection Numbers Inputs'!#REF!,SUM('Connection Numbers Inputs'!#REF!,'Connection Numbers Inputs'!#REF!,'Connection Numbers Inputs'!#REF!,'Connection Numbers Inputs'!#REF!,'Connection Numbers Inputs'!#REF!)) ->  | P38: =MAX('Connection Numbers Inputs'!#REF!,SUM('Connection Numbers Inputs'!#REF!,'Connection Numbers Inputs'!#REF!,'Connection Numbers Inputs'!#REF!,'Connection Numbers Inputs'!#REF!,'Connection Numbers Inputs'!#REF!)) -> 
C39: ='General Inputs'!#REF! ->  | F39: ='General Inputs'!#REF! ->  | G39: Total | L39: =MAX('Connection Numbers Inputs'!#REF!,SUM('Connection Numbers Inputs'!#REF!,'Connection Numbers Inputs'!#REF!,'Connection Numbers Inputs'!#REF!,'Connection Numbers Inputs'!#REF!,'Connection Numbers Inputs'!#REF!)) ->  | M39: =MAX('Connection Numbers Inputs'!#REF!,SUM('Connection Numbers Inputs'!#REF!,'Connection Numbers Inputs'!#REF!,'Connection Numbers Inputs'!#REF!,'Connection Numbers Inputs'!#REF!,'Connection Numbers Inputs'!#REF!)) ->  | N39: =MAX('Connection Numbers Inputs'!#REF!,SUM('Connection Numbers Inputs'!#REF!,'Connection Numbers Inputs'!#REF!,'Connection Numbers Inputs'!#REF!,'Connection Numbers Inputs'!#REF!,'Connection Numbers Inputs'!#REF!)) ->  | O39: =MAX('Connection Numbers Inputs'!#REF!,SUM('Connection Numbers Inputs'!#REF!,'Connection Numbers Inputs'!#REF!,'Connection Numbers Inputs'!#REF!,'Connection Numbers Inputs'!#REF!,'Connection Numbers Inputs'!#REF!)) ->  | P39: =MAX('Connection Numbers Inputs'!#REF!,SUM('Connection Numbers Inputs'!#REF!,'Connection Numbers Inputs'!#REF!,'Connection Numbers Inputs'!#REF!,'Connection Numbers Inputs'!#REF!,'Connection Numbers Inputs'!#REF!)) -> 
C40: ='General Inputs'!#REF! ->  | F40: ='General Inputs'!#REF! ->  | G40: Total | L40: =MAX('Connection Numbers Inputs'!#REF!,SUM('Connection Numbers Inputs'!#REF!,'Connection Numbers Inputs'!#REF!,'Connection Numbers Inputs'!#REF!,'Connection Numbers Inputs'!#REF!,'Connection Numbers Inputs'!#REF!)) ->  | M40: =MAX('Connection Numbers Inputs'!#REF!,SUM('Connection Numbers Inputs'!#REF!,'Connection Numbers Inputs'!#REF!,'Connection Numbers Inputs'!#REF!,'Connection Numbers Inputs'!#REF!,'Connection Numbers Inputs'!#REF!)) ->  | N40: =MAX('Connection Numbers Inputs'!#REF!,SUM('Connection Numbers Inputs'!#REF!,'Connection Numbers Inputs'!#REF!,'Connection Numbers Inputs'!#REF!,'Connection Numbers Inputs'!#REF!,'Connection Numbers Inputs'!#REF!)) ->  | O40: =MAX('Connection Numbers Inputs'!#REF!,SUM('Connection Numbers Inputs'!#REF!,'Connection Numbers Inputs'!#REF!,'Connection Numbers Inputs'!#REF!,'Connection Numbers Inputs'!#REF!,'Connection Numbers Inputs'!#REF!)) ->  | P40: =MAX('Connection Numbers Inputs'!#REF!,SUM('Connection Numbers Inputs'!#REF!,'Connection Numbers Inputs'!#REF!,'Connection Numbers Inputs'!#REF!,'Connection Numbers Inputs'!#REF!,'Connection Numbers Inputs'!#REF!)) -> 
C41: ='General Inputs'!#REF! ->  | F41: ='General Inputs'!#REF! ->  | G41: Total | L41: =MAX('Connection Numbers Inputs'!#REF!,SUM('Connection Numbers Inputs'!#REF!,'Connection Numbers Inputs'!#REF!,'Connection Numbers Inputs'!#REF!,'Connection Numbers Inputs'!#REF!,'Connection Numbers Inputs'!#REF!)) ->  | M41: =MAX('Connection Numbers Inputs'!#REF!,SUM('Connection Numbers Inputs'!#REF!,'Connection Numbers Inputs'!#REF!,'Connection Numbers Inputs'!#REF!,'Connection Numbers Inputs'!#REF!,'Connection Numbers Inputs'!#REF!)) ->  | N41: =MAX('Connection Numbers Inputs'!#REF!,SUM('Connection Numbers Inputs'!#REF!,'Connection Numbers Inputs'!#REF!,'Connection Numbers Inputs'!#REF!,'Connection Numbers Inputs'!#REF!,'Connection Numbers Inputs'!#REF!)) ->  | O41: =MAX('Connection Numbers Inputs'!#REF!,SUM('Connection Numbers Inputs'!#REF!,'Connection Numbers Inputs'!#REF!,'Connection Numbers Inputs'!#REF!,'Connection Numbers Inputs'!#REF!,'Connection Numbers Inputs'!#REF!)) ->  | P41: =MAX('Connection Numbers Inputs'!#REF!,SUM('Connection Numbers Inputs'!#REF!,'Connection Numbers Inputs'!#REF!,'Connection Numbers Inputs'!#REF!,'Connection Numbers Inputs'!#REF!,'Connection Numbers Inputs'!#REF!)) -> 
C42: ='General Inputs'!#REF! ->  | F42: ='General Inputs'!#REF! ->  | G42: Total | L42: =MAX('Connection Numbers Inputs'!#REF!,SUM('Connection Numbers Inputs'!#REF!,'Connection Numbers Inputs'!#REF!,'Connection Numbers Inputs'!#REF!,'Connection Numbers Inputs'!#REF!,'Connection Numbers Inputs'!#REF!)) ->  | M42: =MAX('Connection Numbers Inputs'!#REF!,SUM('Connection Numbers Inputs'!#REF!,'Connection Numbers Inputs'!#REF!,'Connection Numbers Inputs'!#REF!,'Connection Numbers Inputs'!#REF!,'Connection Numbers Inputs'!#REF!)) ->  | N42: =MAX('Connection Numbers Inputs'!#REF!,SUM('Connection Numbers Inputs'!#REF!,'Connection Numbers Inputs'!#REF!,'Connection Numbers Inputs'!#REF!,'Connection Numbers Inputs'!#REF!,'Connection Numbers Inputs'!#REF!)) ->  | O42: =MAX('Connection Numbers Inputs'!#REF!,SUM('Connection Numbers Inputs'!#REF!,'Connection Numbers Inputs'!#REF!,'Connection Numbers Inputs'!#REF!,'Connection Numbers Inputs'!#REF!,'Connection Numbers Inputs'!#REF!)) ->  | P42: =MAX('Connection Numbers Inputs'!#REF!,SUM('Connection Numbers Inputs'!#REF!,'Connection Numbers Inputs'!#REF!,'Connection Numbers Inputs'!#REF!,'Connection Numbers Inputs'!#REF!,'Connection Numbers Inputs'!#REF!)) -> 
C43: ='General Inputs'!#REF! ->  | F43: ='General Inputs'!#REF! ->  | G43: Total | L43: =MAX('Connection Numbers Inputs'!#REF!,SUM('Connection Numbers Inputs'!#REF!,'Connection Numbers Inputs'!#REF!,'Connection Numbers Inputs'!#REF!,'Connection Numbers Inputs'!#REF!,'Connection Numbers Inputs'!#REF!)) ->  | M43: =MAX('Connection Numbers Inputs'!#REF!,SUM('Connection Numbers Inputs'!#REF!,'Connection Numbers Inputs'!#REF!,'Connection Numbers Inputs'!#REF!,'Connection Numbers Inputs'!#REF!,'Connection Numbers Inputs'!#REF!)) ->  | N43: =MAX('Connection Numbers Inputs'!#REF!,SUM('Connection Numbers Inputs'!#REF!,'Connection Numbers Inputs'!#REF!,'Connection Numbers Inputs'!#REF!,'Connection Numbers Inputs'!#REF!,'Connection Numbers Inputs'!#REF!)) ->  | O43: =MAX('Connection Numbers Inputs'!#REF!,SUM('Connection Numbers Inputs'!#REF!,'Connection Numbers Inputs'!#REF!,'Connection Numbers Inputs'!#REF!,'Connection Numbers Inputs'!#REF!,'Connection Numbers Inputs'!#REF!)) ->  | P43: =MAX('Connection Numbers Inputs'!#REF!,SUM('Connection Numbers Inputs'!#REF!,'Connection Numbers Inputs'!#REF!,'Connection Numbers Inputs'!#REF!,'Connection Numbers Inputs'!#REF!,'Connection Numbers Inputs'!#REF!)) -> 
C44: ='General Inputs'!#REF! ->  | F44: ='General Inputs'!#REF! ->  | G44: Total | L44: =MAX('Connection Numbers Inputs'!#REF!,SUM('Connection Numbers Inputs'!#REF!,'Connection Numbers Inputs'!#REF!,'Connection Numbers Inputs'!#REF!,'Connection Numbers Inputs'!#REF!,'Connection Numbers Inputs'!#REF!)) ->  | M44: =MAX('Connection Numbers Inputs'!#REF!,SUM('Connection Numbers Inputs'!#REF!,'Connection Numbers Inputs'!#REF!,'Connection Numbers Inputs'!#REF!,'Connection Numbers Inputs'!#REF!,'Connection Numbers Inputs'!#REF!)) ->  | N44: =MAX('Connection Numbers Inputs'!#REF!,SUM('Connection Numbers Inputs'!#REF!,'Connection Numbers Inputs'!#REF!,'Connection Numbers Inputs'!#REF!,'Connection Numbers Inputs'!#REF!,'Connection Numbers Inputs'!#REF!)) ->  | O44: =MAX('Connection Numbers Inputs'!#REF!,SUM('Connection Numbers Inputs'!#REF!,'Connection Numbers Inputs'!#REF!,'Connection Numbers Inputs'!#REF!,'Connection Numbers Inputs'!#REF!,'Connection Numbers Inputs'!#REF!)) ->  | P44: =MAX('Connection Numbers Inputs'!#REF!,SUM('Connection Numbers Inputs'!#REF!,'Connection Numbers Inputs'!#REF!,'Connection Numbers Inputs'!#REF!,'Connection Numbers Inputs'!#REF!,'Connection Numbers Inputs'!#REF!)) -> 
C45: ='General Inputs'!#REF! ->  | F45: ='General Inputs'!#REF! ->  | G45: Total | L45: =MAX('Connection Numbers Inputs'!#REF!,SUM('Connection Numbers Inputs'!#REF!,'Connection Numbers Inputs'!#REF!,'Connection Numbers Inputs'!#REF!,'Connection Numbers Inputs'!#REF!,'Connection Numbers Inputs'!#REF!)) ->  | M45: =MAX('Connection Numbers Inputs'!#REF!,SUM('Connection Numbers Inputs'!#REF!,'Connection Numbers Inputs'!#REF!,'Connection Numbers Inputs'!#REF!,'Connection Numbers Inputs'!#REF!,'Connection Numbers Inputs'!#REF!)) ->  | N45: =MAX('Connection Numbers Inputs'!#REF!,SUM('Connection Numbers Inputs'!#REF!,'Connection Numbers Inputs'!#REF!,'Connection Numbers Inputs'!#REF!,'Connection Numbers Inputs'!#REF!,'Connection Numbers Inputs'!#REF!)) ->  | O45: =MAX('Connection Numbers Inputs'!#REF!,SUM('Connection Numbers Inputs'!#REF!,'Connection Numbers Inputs'!#REF!,'Connection Numbers Inputs'!#REF!,'Connection Numbers Inputs'!#REF!,'Connection Numbers Inputs'!#REF!)) ->  | P45: =MAX('Connection Numbers Inputs'!#REF!,SUM('Connection Numbers Inputs'!#REF!,'Connection Numbers Inputs'!#REF!,'Connection Numbers Inputs'!#REF!,'Connection Numbers Inputs'!#REF!,'Connection Numbers Inputs'!#REF!)) -> 
C46: ='General Inputs'!#REF! ->  | F46: ='General Inputs'!#REF! ->  | G46: Total | L46: =MAX('Connection Numbers Inputs'!#REF!,SUM('Connection Numbers Inputs'!#REF!,'Connection Numbers Inputs'!#REF!,'Connection Numbers Inputs'!#REF!,'Connection Numbers Inputs'!#REF!,'Connection Numbers Inputs'!#REF!)) ->  | M46: =MAX('Connection Numbers Inputs'!#REF!,SUM('Connection Numbers Inputs'!#REF!,'Connection Numbers Inputs'!#REF!,'Connection Numbers Inputs'!#REF!,'Connection Numbers Inputs'!#REF!,'Connection Numbers Inputs'!#REF!)) ->  | N46: =MAX('Connection Numbers Inputs'!#REF!,SUM('Connection Numbers Inputs'!#REF!,'Connection Numbers Inputs'!#REF!,'Connection Numbers Inputs'!#REF!,'Connection Numbers Inputs'!#REF!,'Connection Numbers Inputs'!#REF!)) ->  | O46: =MAX('Connection Numbers Inputs'!#REF!,SUM('Connection Numbers Inputs'!#REF!,'Connection Numbers Inputs'!#REF!,'Connection Numbers Inputs'!#REF!,'Connection Numbers Inputs'!#REF!,'Connection Numbers Inputs'!#REF!)) ->  | P46: =MAX('Connection Numbers Inputs'!#REF!,SUM('Connection Numbers Inputs'!#REF!,'Connection Numbers Inputs'!#REF!,'Connection Numbers Inputs'!#REF!,'Connection Numbers Inputs'!#REF!,'Connection Numbers Inputs'!#REF!)) -> 
C47: ='General Inputs'!#REF! ->  | F47: ='General Inputs'!#REF! ->  | G47: Total | L47: =MAX('Connection Numbers Inputs'!#REF!,SUM('Connection Numbers Inputs'!#REF!,'Connection Numbers Inputs'!#REF!,'Connection Numbers Inputs'!#REF!,'Connection Numbers Inputs'!#REF!,'Connection Numbers Inputs'!#REF!)) ->  | M47: =MAX('Connection Numbers Inputs'!#REF!,SUM('Connection Numbers Inputs'!#REF!,'Connection Numbers Inputs'!#REF!,'Connection Numbers Inputs'!#REF!,'Connection Numbers Inputs'!#REF!,'Connection Numbers Inputs'!#REF!)) ->  | N47: =MAX('Connection Numbers Inputs'!#REF!,SUM('Connection Numbers Inputs'!#REF!,'Connection Numbers Inputs'!#REF!,'Connection Numbers Inputs'!#REF!,'Connection Numbers Inputs'!#REF!,'Connection Numbers Inputs'!#REF!)) ->  | O47: =MAX('Connection Numbers Inputs'!#REF!,SUM('Connection Numbers Inputs'!#REF!,'Connection Numbers Inputs'!#REF!,'Connection Numbers Inputs'!#REF!,'Connection Numbers Inputs'!#REF!,'Connection Numbers Inputs'!#REF!)) ->  | P47: =MAX('Connection Numbers Inputs'!#REF!,SUM('Connection Numbers Inputs'!#REF!,'Connection Numbers Inputs'!#REF!,'Connection Numbers Inputs'!#REF!,'Connection Numbers Inputs'!#REF!,'Connection Numbers Inputs'!#REF!)) -> 
C48: ='General Inputs'!#REF! ->  | F48: ='General Inputs'!#REF! ->  | G48: Total | L48: =MAX('Connection Numbers Inputs'!#REF!,SUM('Connection Numbers Inputs'!#REF!,'Connection Numbers Inputs'!#REF!,'Connection Numbers Inputs'!#REF!,'Connection Numbers Inputs'!#REF!,'Connection Numbers Inputs'!#REF!)) ->  | M48: =MAX('Connection Numbers Inputs'!#REF!,SUM('Connection Numbers Inputs'!#REF!,'Connection Numbers Inputs'!#REF!,'Connection Numbers Inputs'!#REF!,'Connection Numbers Inputs'!#REF!,'Connection Numbers Inputs'!#REF!)) ->  | N48: =MAX('Connection Numbers Inputs'!#REF!,SUM('Connection Numbers Inputs'!#REF!,'Connection Numbers Inputs'!#REF!,'Connection Numbers Inputs'!#REF!,'Connection Numbers Inputs'!#REF!,'Connection Numbers Inputs'!#REF!)) ->  | O48: =MAX('Connection Numbers Inputs'!#REF!,SUM('Connection Numbers Inputs'!#REF!,'Connection Numbers Inputs'!#REF!,'Connection Numbers Inputs'!#REF!,'Connection Numbers Inputs'!#REF!,'Connection Numbers Inputs'!#REF!)) ->  | P48: =MAX('Connection Numbers Inputs'!#REF!,SUM('Connection Numbers Inputs'!#REF!,'Connection Numbers Inputs'!#REF!,'Connection Numbers Inputs'!#REF!,'Connection Numbers Inputs'!#REF!,'Connection Numbers Inputs'!#REF!)) -> 
C49: ='General Inputs'!#REF! ->  | F49: ='General Inputs'!#REF! ->  | G49: Total | L49: =MAX('Connection Numbers Inputs'!#REF!,SUM('Connection Numbers Inputs'!#REF!,'Connection Numbers Inputs'!#REF!,'Connection Numbers Inputs'!#REF!,'Connection Numbers Inputs'!#REF!,'Connection Numbers Inputs'!#REF!)) ->  | M49: =MAX('Connection Numbers Inputs'!#REF!,SUM('Connection Numbers Inputs'!#REF!,'Connection Numbers Inputs'!#REF!,'Connection Numbers Inputs'!#REF!,'Connection Numbers Inputs'!#REF!,'Connection Numbers Inputs'!#REF!)) ->  | N49: =MAX('Connection Numbers Inputs'!#REF!,SUM('Connection Numbers Inputs'!#REF!,'Connection Numbers Inputs'!#REF!,'Connection Numbers Inputs'!#REF!,'Connection Numbers Inputs'!#REF!,'Connection Numbers Inputs'!#REF!)) ->  | O49: =MAX('Connection Numbers Inputs'!#REF!,SUM('Connection Numbers Inputs'!#REF!,'Connection Numbers Inputs'!#REF!,'Connection Numbers Inputs'!#REF!,'Connection Numbers Inputs'!#REF!,'Connection Numbers Inputs'!#REF!)) ->  | P49: =MAX('Connection Numbers Inputs'!#REF!,SUM('Connection Numbers Inputs'!#REF!,'Connection Numbers Inputs'!#REF!,'Connection Numbers Inputs'!#REF!,'Connection Numbers Inputs'!#REF!,'Connection Numbers Inputs'!#REF!)) -> 
C50: Total | L50: =SUM(L20:L49) ->  | M50: =SUM(M20:M49) ->  | N50: =SUM(N20:N49) ->  | O50: =SUM(O20:O49) ->  | P50: =SUM(P20:P49) -> 

Sheet Volume Inputs
A1: Volume Inputs
B3: GJ/day | J3: MHQ(GJ)
A4: Peak Price Band 1 | B4: ='Connection Numbers Inputs'!B3 -> Tariff R: Res Central | C4: ='Connection Numbers Inputs'!C3 -> Tariff R: Res North | D4: ='Connection Numbers Inputs'!D3 -> Tariff R: Res MV (Vic) | E4: ='Connection Numbers Inputs'!E3 -> Tariff R: Res Bairnsdale | F4: ='Connection Numbers Inputs'!F3 -> Tariff R: Res Albury | G4: ='Connection Numbers Inputs'!G3 -> Tariff C: Non- Res Central | H4: ='Connection Numbers Inputs'!H3 -> Tariff C: Non- Res North | I4: ='Connection Numbers Inputs'!I3 -> Tariff C: Non- Res MV (Vic) | J4: ='Connection Numbers Inputs'!J3 -> Tariff C: Non- Res Bairnsdale | K4: ='Connection Numbers Inputs'!K3 -> Tariff C: Non- Res Albury | L4: ='Connection Numbers Inputs'!L3 -> Tariff D: Central | M4: ='Connection Numbers Inputs'!M3 -> Tariff D: North | N4: ='Connection Numbers Inputs'!N3 -> Tariff D: MV (Vic) | O4: ='Connection Numbers Inputs'!O3 -> Tariff D: Bairnsdale | P4: ='Connection Numbers Inputs'!P3 -> Tariff D: Albury
A5: ='Connection Numbers Inputs'!A4 -> 2018/19 | B5: =B273*B337 -> 4688106.34 | C5: =C273*C337 -> 679314.9309 | D5: 60447.70113 | E5: 28768.23253 | F5: 199466.145 | G5: 296137.572 | H5: 40515.19969 | I5: 4462.468425 | J5: 1265.633113 | K5: 11721.31415 | L5: 1223.320259 | M5: 281.5750464 | N5: 151.1726519 | O5: 14.49699009 | P5: 14.32610096
A6: ='Connection Numbers Inputs'!A5 -> 2019/20 | B6: =B274*B338 -> 5071735.836 | C6: 694508.6817 | D6: 59432.96162 | E6: 30577.30062 | F6: 199640.6539 | G6: 295879.1097 | H6: 40320.79814 | I6: 4502.852598 | J6: 1256.808901 | K6: 10888.01939 | L6: 1226.146767 | M6: 315.1114876 | N6: 78.54161212 | O6: 13.8125 | P6: 20.74340815
A7: ='Connection Numbers Inputs'!A6 -> 2020/21 | B7: =B275*B339 -> 4608295.01 | C7: 645395.3576 | D7: 56129.09577 | E7: 30120.34967 | F7: 182315.28 | G7: 242518.8108 | H7: 34939.28 | I7: 4041.196308 | J7: 1273.034802 | K7: 9640.504859 | L7: 1193.436357 | M7: 306.6640712 | N7: 86.35679121 | O7: 16.25 | P7: 10.33117448
A8: ='Connection Numbers Inputs'!A7 -> 2021-22 | B8: =B276*B340 -> 4703585.988 | C8: 513979.9825 | D8: 41861.94207 | E8: 54882.47639 | F8: 187582.1579 | G8: 249861.5824 | H8: 35089.90471 | I8: 4098.428724 | J8: 1319.757653 | K8: 11630.10747 | L8: 1222.953409 | M8: 288.0055946 | N8: 86.35679121 | O8: 16.4248359 | P8: 10.33117448
A9: ='Connection Numbers Inputs'!A8 -> 2022-23 | B9: =B277*B341 -> 4694093.545 | C9: 522891.4697 | D9: 42711.54936 | E9: 56567.3834 | F9: 192881.6949 | G9: 287196.9307 | H9: 34717.62072 | I9: 4042.230075 | J9: 1288.375371 | K9: 11640.39683 | L9: 1262.990046 | M9: 290.3190609 | N9: 87.63487172 | O9: 17.27399991 | P9: 9.880735269
A10: ='Connection Numbers Inputs'!A9 -> 2023-24 | B10: =B278*B342 -> 4573260.486 | C10: 529721.1092 | D10: 43312.00768 | E10: 58115.5488 | F10: 193753.1353 | G10: 292308.5101 | H10: 33598.99331 | I10: 3933.194738 | J10: 1253.648631 | K10: 11157.56557 | L10: 1251.282721 | M10: 290.1041534 | N10: 88.93186782 | O10: 18.16706571 | P10: 9.449935211
A11: ='Connection Numbers Inputs'!A10 -> 2024-25 | B11: =B279*B343 -> 4462848.298 | C11: 538649.7025 | D11: 44171.33243 | E11: 59872.56858 | F11: 195439.0252 | G11: 289204.0881 | H11: 33204.68276 | I11: 3878.661136 | J11: 1228.692382 | K11: 11128.79555 | L11: 1239.575753 | M11: 284.0712739 | N11: 90.24805947 | O11: 19.106303 | P11: 9.037918036
A12: ='Connection Numbers Inputs'!A11 -> 2025-26 | B12: =B280*B344 -> 4363960.866 | C12: 550045.3968 | D12: 45326.90874 | E12: 61886.25394 | F12: 197943.8365 | G12: 292870.6985 | H12: 33548.78596 | I12: 3877.02285 | J12: 1208.329689 | K12: 11255.09467 | L12: 1227.867464 | M12: 275.0877315 | N12: 91.58373075 | O12: 20.09409887 | P12: 8.643864809
A13: ='Connection Numbers Inputs'!A12 -> 2026-27 | B13: =B281*B345 -> 4241285.308 | C13: 561683.2393 | D13: 46514.39119 | E13: 63969.73019 | F13: 199943.8052 | G13: 295654.7876 | H13: 33896.45514 | I13: 3875.385255 | J13: 1188.30446 | K13: 11351.02078 | L13: 1216.156109 | M13: 280.278213 | N13: 92.93916996 | O13: 21.13296378 | P13: 8.266992304
A14: ='Connection Numbers Inputs'!A13 -> 2027-28 | B14: =B282*B346 -> 4134139.43 | C14: 573572.1448 | D14: 47734.86155 | E14: 66125.78564 | F14: 202664.082 | G14: 298525.6497 | H14: 34247.72724 | I14: 3873.748352 | J14: 1168.611102 | K14: 11449.90566 | L14: 1204.439879 | M14: 277.080541 | N14: 94.31466968 | O14: 22.22553801 | P14: 7.906551439
A16: Peak Price Band 2 | B16: =B$4 -> Tariff R: Res Central | C16: =C$4 -> Tariff R: Res North | D16: Tariff R: Res MV (Vic) | E16: Tariff R: Res Bairnsdale | F16: Tariff R: Res Albury | G16: Tariff C: Non- Res Central | H16: Tariff C: Non- Res North | I16: Tariff C: Non- Res MV (Vic) | J16: Tariff C: Non- Res Bairnsdale | K16: Tariff C: Non- Res Albury | L16: Tariff D: Central | M16: Tariff D: North | N16: Tariff D: MV (Vic) | O16: Tariff D: Bairnsdale | P16: Tariff D: Albury
A17: =A5 -> 2018/19 | B17: =B337*B285 -> 3064763.793 | C17: =C337*C285 -> 419430.1672 | D17: 33320.52278 | E17: 14928.75723 | F17: 122239.5865 | G17: 1472325.607 | H17: 185427.7067 | I17: 20355.92208 | J17: 9827.035459 | K17: 57916.57905 | L17: 1104.371838 | M17: 459.0736635 | N17: 221.8273481 | O17: 4.503009907 | P17: 21.93221237
A18: 2019/20 | B18: =B338*B286 -> 3299712.814 | C18: 425617.3626 | D18: 32483.57959 | E18: 15676.95528 | F18: 120529.1874 | G18: 1474512.283 | H18: 184606.6174 | I18: 20770.46688 | J18: 9605.486241 | K18: 54210.94755 | L18: 1100.366511 | M18: 490.4893761 | N18: 144.5135555 | O18: 3.1875 | P18: 31.89081106
A19: 2020/21 | B19: 2991059.036 | C19: 390436.5695 | D19: 30590.50228 | E19: 15475.10358 | F19: 109003.9172 | G19: 1252917.365 | H19: 167221.8441 | I19: 18742.08539 | J19: 9527.065282 | K19: 49063.9978 | L19: 1041.510179 | M19: 513.754818 | N19: 135.6839022 | O19: 3.75 | P19: 21.08185687
A20: 2021-22 | B20: 3055209.009 | C20: 311196.8377 | D20: 22837.7655 | E20: 28227.07001 | F20: 112247.8983 | G20: 1290852.097 | H20: 167942.7445 | I20: 19007.51541 | J20: 9876.727086 | K20: 59189.80134 | L20: 1067.269667 | M20: 482.4962417 | N20: 135.6839022 | O20: 3.575164105 | P20: 21.08185687
A21: 2022-23 | B21: 3049043.203 | C21: 316592.4304 | D21: 23301.26841 | E21: 29093.64877 | F21: 115419.1055 | G21: 1483736.542 | H21: 166160.9672 | I21: 18746.87975 | J21: 9641.870155 | K21: 59242.1676 | L21: 1102.209583 | M21: 486.3719957 | N21: 137.6920239 | O21: 3.760000089 | P21: 20.16268791
A22: 2023-24 | B22: 2970556.226 | C22: 320727.5374 | D22: 23628.84821 | E22: 29889.89879 | F22: 115940.5696 | G22: 1510144.336 | H22: 160807.1379 | I22: 18241.20038 | J22: 9381.98416 | K22: 56784.86557 | L22: 1091.992617 | M22: 486.0119607 | N22: 139.7298659 | O22: 3.954392094 | P22: 19.28359471
A23: 2024-25 | B23: 2901039.272 | C23: 326405.0959 | D23: 24120.20686 | E23: 30824.36883 | F23: 117046.367 | G23: 1494106.057 | H23: 158919.94 | I23: 17988.2868 | J23: 9195.218004 | K23: 56638.44458 | L23: 1081.775963 | M23: 475.9050679 | N23: 141.7978679 | O23: 4.158834165 | P23: 18.44282998
A24: 2025-26 | B24: 2838920.119 | C24: 333584.9194 | D24: 24772.80452 | E24: 31891.30492 | F24: 118642.3349 | G24: 1513048.752 | H24: 160566.8421 | I24: 17980.68883 | J24: 9042.828845 | K24: 57281.22626 | L24: 1071.558156 | M24: 460.8549246 | N24: 143.8964764 | O24: 4.373845891 | P24: 17.6387226
A25: 2026-27 | B25: 2761242.373 | C25: 340922.3783 | D25: 25442.69426 | E25: 32995.01698 | F25: 119936.394 | G25: 1527432.105 | H25: 162230.8111 | I25: 17973.09406 | J25: 8892.965179 | K25: 57769.42877 | L25: 1061.337674 | M25: 469.5505469 | N25: 146.0261442 | O25: 4.599973724 | P25: 16.86967429
A26: 2027-28 | B26: 2693562.993 | C26: 348420.0973 | D26: 26130.29096 | E26: 34136.74567 | F26: 121662.1907 | G26: 1542263.75 | H26: 163912.0241 | I26: 17965.5025 | J26: 8745.585151 | K26: 58272.68947 | L26: 1051.112937 | M26: 464.1934817 | N26: 148.1873311 | O26: 4.837792365 | P26: 16.13415649
A28: Peak Price Band 3 | B28: =B$4 -> Tariff R: Res Central | C28: =C$4 -> Tariff R: Res North | D28: Tariff R: Res MV (Vic) | E28: Tariff R: Res Bairnsdale | F28: Tariff R: Res Albury | G28: Tariff C: Non- Res Central | H28: Tariff C: Non- Res North | I28: Tariff C: Non- Res MV (Vic) | J28: Tariff C: Non- Res Bairnsdale | K28: Tariff C: Non- Res Albury | L28: Tariff D: Central | M28: Tariff D: North | N28: Tariff D: MV (Vic) | O28: Tariff D: Bairnsdale | P28: Tariff D: Albury
A29: =A17 -> 2018/19 | B29: =B297*B337 -> 17589141.35 | C29: =C297*C337 -> 2412957.836 | D29: 182879.5321 | E29: 66262.60785 | F29: 657648.1948 | G29: =G297*G337 -> 1099856.595 | H29: 122336.4187 | I29: 13295.04845 | J29: 8300.636763 | K29: 41761.92375 | L29: 1158.307903 | M29: 360.35129 | N29: 0 | O29: 0 | P29: =P297*P337 -> 38.74168667
A30: 2019/20 | B30: =B298*B338 -> 17867399.22 | C30: 2445816.418 | D30: 184371.2456 | E30: =E298*E338 -> 68880.21498 | F30: 659741.1935 | G30: 1115135.018 | H30: 123022.368 | I30: 12699.0799 | J30: 7978.009298 | K30: 38162.06997 | L30: 1017.486722 | M30: 406.3991362 | N30: 153.9448323 | O30: 0 | P30: 52.36578079
A31: 2020/21 | B31: =B299*B339 -> 18654383.71 | C31: 2554358.004 | D31: 200594.2721 | E31: 77122.51583 | F31: 686872.7354 | G31: 960220.758 | H31: 112844.0028 | I31: 11537.42009 | J31: 8056.004783 | K31: 35577.00808 | L31: 1040.053464 | M31: 341.5811108 | N31: 157.9593066 | O31: 0 | P31: 36.58696866
A32: 2021-22 | B32: =B300*B340 -> 19053397.72 | C32: 2035734.951 | D32: 149737.7289 | E32: 140702.4733 | F32: 707263.505 | G32: 989293.4791 | H32: 113330.4781 | I32: 11700.81587 | J32: 8351.67581 | K32: 42919.37337 | L32: 1065.776924 | M32: 320.7981637 | N32: 157.9593066 | O32: 0 | P32: 36.58696866
A33: 2022-23 | B33: =B301*B341 -> 19014945.51 | C33: 2071030.929 | D33: 152776.7247 | E33: 145022.0776 | F33: 727244.9851 | G33: 1137117.791 | H33: 112128.1059 | I33: 11540.37144 | J33: 8153.082801 | K33: 42957.3449 | L33: 1100.66797 | M33: 323.3750434 | N33: 160.2971043 | O33: 0 | P33: 34.99177682
A34: 2023-24 | B34: =B302*B342 -> 18525472.09 | C34: 2098081.274 | D34: 154924.5292 | E34: 148991.1168 | F34: 730530.6812 | G34: 1157356.406 | H34: 108515.2555 | I34: 11229.08082 | J34: 7933.32543 | K34: 41175.51997 | L34: 1090.465294 | M34: 323.1356663 | N34: 162.6695015 | O34: 0 | P34: 33.46613535
A35: 2024-25 | B35: =B303*B343 -> 18090914.9 | C35: 2135001.317 | D35: 158127.7451 | E35: 153678.6866 | F35: 737446.472 | G35: 1145064.863 | H35: 107241.7438 | I35: 11073.39003 | J35: 7775.397568 | K35: 41069.34802 | L35: 1080.262931 | M35: 316.4158778 | N35: 165.0770101 | O35: 0 | P35: 32.00701185
A36: 2025-26 | B36: =B304*B344 -> 17702534.07 | C36: 2181741.707 | D36: 162388.4491 | E36: 159026.9948 | F36: 747450.7102 | G36: 1159582.315 | H36: 108353.0999 | I36: 11068.7128 | J36: 7646.538601 | K36: 41535.43822 | L36: 1070.059415 | M36: 306.4094614 | N36: 167.5201499 | O36: 0 | P36: 30.61150614
A37: 2026-27 | B37: =B305*B345 -> 17217173.99 | C37: 2229504.342 | D37: 166762.6234 | E37: 164559.4643 | F37: 755552.5502 | G37: 1170605.544 | H37: 109475.9731 | I37: 11064.03754 | J37: 7519.815169 | K37: 41889.44086 | L37: 1059.853227 | M37: 312.1909358 | N37: 169.9994481 | O37: 0 | P37: 29.27684447
A38: 2027-28 | B38: =B306*B346 -> 16794208.74 | C38: 2278308.643 | D38: 171253.1315 | E38: 170282.0937 | F38: 766374.3492 | G38: 1181972.337 | H38: 110610.4828 | I38: 11059.36427 | J38: 7395.19188 | K38: 42254.36241 | L38: 1049.642791 | M38: 308.629174 | N38: 172.5154399 | O38: 0 | P38: 28.00037405
A40: Peak Price Band 4 | B40: =B$4 -> Tariff R: Res Central | C40: =C$4 -> Tariff R: Res North | D40: Tariff R: Res MV (Vic) | E40: Tariff R: Res Bairnsdale | F40: Tariff R: Res Albury | G40: Tariff C: Non- Res Central | H40: Tariff C: Non- Res North | I40: Tariff C: Non- Res MV (Vic) | J40: Tariff C: Non- Res Bairnsdale | K40: Tariff C: Non- Res Albury | L40: Tariff D: Central | M40: Tariff D: North | N40: Tariff D: MV (Vic) | O40: Tariff D: Bairnsdale | P40: Tariff D: Albury
A41: =A29 -> 2018/19 | B41: =B309*B337 -> 0 | C41: =C309*C337 -> 0 | D41: 0 | E41: 0 | F41: 0 | G41: =G309*G337 -> 4100361.208 | H41: 487458.201 | I41: 28762.16507 | J41: 46913.37219 | K41: 173753.0134 | L41: 0 | M41: 0 | N41: 0 | O41: 0 | P41: 0
A42: 2019/20 | B42: =B310*B338 -> 0 | C42: 0 | D42: 0 | E42: 0 | F42: 0 | G42: 3938666.802 | H42: 455892.5825 | I42: 25581.5196 | J42: 49180.21752 | K42: 162110.5331 | L42: 0 | M42: 0 | N42: 0 | O42: 0 | P42: 0
A43: 2020/21 | B43: =B311*B339 -> 0 | C43: 0 | D43: 0 | E43: 0 | F43: 0 | G43: 3494871.474 | H43: 438500.2593 | I43: 27497.89494 | J43: 51286.80805 | K43: 146823.5018 | L43: 0 | M43: 0 | N43: 0 | O43: 0 | P43: 0
A44: 2021-22 | B44: =B312*B340 -> 0 | C44: 0 | D44: 0 | E44: 0 | F44: 0 | G44: 3600686.124 | H44: 440390.6524 | I44: 27887.3269 | J44: 53169.13354 | K44: 177124.8633 | L44: 0 | M44: 0 | N44: 0 | O44: 0 | P44: 0
A45: 2022-23 | B45: =B313*B341 -> 0 | C45: 0 | D45: 0 | E45: 0 | F45: 0 | G45: 4138715.497 | H45: 435718.3572 | I45: 27504.9291 | J45: 51904.83421 | K45: 177281.5687 | L45: 0 | M45: 0 | N45: 0 | O45: 0 | P45: 0
A46: 2023-24 | B46: =B314*B342 -> 0 | C46: 0 | D46: 0 | E46: 0 | F46: 0 | G46: 4212377.054 | H46: 421679.1896 | I46: 26763.00962 | J46: 50505.79654 | K46: 169928.118 | L46: 0 | M46: 0 | N46: 0 | O46: 0 | P46: 0
A47: 2024-25 | B47: =B315*B343 -> 0 | C47: 0 | D47: 0 | E47: 0 | F47: 0 | G47: 4167640.088 | H47: 416730.4534 | I47: 26391.94147 | J47: 49500.38305 | K47: 169489.9548 | L47: 0 | M47: 0 | N47: 0 | O47: 0 | P47: 0
A48: 2025-26 | B48: =B316*B344 -> 0 | C48: 0 | D48: 0 | E48: 0 | F48: 0 | G48: 4220478.595 | H48: 421049.0697 | I48: 26380.79392 | J48: 48680.03037 | K48: 171413.4722 | L48: 0 | M48: 0 | N48: 0 | O48: 0 | P48: 0
A49: 2026-27 | B49: =B317*B345 -> 0 | C49: 0 | D49: 0 | E49: 0 | F49: 0 | G49: 4260599.333 | H49: 425412.4403 | I49: 26369.65108 | J49: 47873.27311 | K49: 172874.4132 | L49: 0 | M49: 0 | N49: 0 | O49: 0 | P49: 0
A50: 2027-28 | B50: =B318*B346 -> 0 | C50: 0 | D50: 0 | E50: 0 | F50: 0 | G50: 4301970.532 | H50: 429821.0288 | I50: 26358.51295 | J50: 47079.88596 | K50: 174380.4156 | L50: 0 | M50: 0 | N50: 0 | O50: 0 | P50: 0
A52: Peak Price Band 5 | B52: =B$4 -> Tariff R: Res Central | C52: =C$4 -> Tariff R: Res North | D52: Tariff R: Res MV (Vic) | E52: Tariff R: Res Bairnsdale | F52: Tariff R: Res Albury | G52: Tariff C: Non- Res Central | H52: Tariff C: Non- Res North | I52: Tariff C: Non- Res MV (Vic) | J52: Tariff C: Non- Res Bairnsdale | K52: Tariff C: Non- Res Albury | L52: Tariff D: Central | M52: Tariff D: North | N52: Tariff D: MV (Vic) | O52: Tariff D: Bairnsdale | P52: Tariff D: Albury
A53: =A41 -> 2018/19
A54: 2019/20
A55: 2020/21
A56: 2021-22
A57: 2022-23
A58: 2023-24
A59: 2024-25
A60: 2025-26
A61: 2026-27
A62: 2027-28
A64: Peak Price Band 6 | B64: =B$4 -> Tariff R: Res Central | C64: =C$4 -> Tariff R: Res North | D64: Tariff R: Res MV (Vic) | E64: Tariff R: Res Bairnsdale | F64: Tariff R: Res Albury | G64: Tariff C: Non- Res Central | H64: Tariff C: Non- Res North | I64: Tariff C: Non- Res MV (Vic) | J64: Tariff C: Non- Res Bairnsdale | K64: Tariff C: Non- Res Albury | L64: Tariff D: Central | M64: Tariff D: North | N64: Tariff D: MV (Vic) | O64: Tariff D: Bairnsdale | P64: Tariff D: Albury
A65: =A53 -> 2018/19
A66: 2019/20
A67: 2020/21
A68: 2021-22
A69: 2022-23
A70: 2023-24
A71: 2024-25
A72: 2025-26
A73: 2026-27
A74: 2027-28
A76: Peak Price Band 7 | B76: =B$4 -> Tariff R: Res Central | C76: =C$4 -> Tariff R: Res North | D76: Tariff R: Res MV (Vic) | E76: Tariff R: Res Bairnsdale | F76: Tariff R: Res Albury | G76: Tariff C: Non- Res Central | H76: Tariff C: Non- Res North | I76: Tariff C: Non- Res MV (Vic) | J76: Tariff C: Non- Res Bairnsdale | K76: Tariff C: Non- Res Albury | L76: Tariff D: Central | M76: Tariff D: North | N76: Tariff D: MV (Vic) | O76: Tariff D: Bairnsdale | P76: Tariff D: Albury
A77: =A65 -> 2018/19
A78: 2019/20
A79: 2020/21
A80: 2021-22
A81: 2022-23
A82: 2023-24
A83: 2024-25
A84: 2025-26
A85: 2026-27
A86: 2027-28
A88: Off Peak Price Band 1 | B88: ='Connection Numbers Inputs'!B87 -> Tariff R: Res Central | C88: ='Connection Numbers Inputs'!C87 -> Tariff R: Res North | D88: ='Connection Numbers Inputs'!D87 -> Tariff R: Res MV (Vic) | E88: ='Connection Numbers Inputs'!E87 -> Tariff R: Res Bairnsdale | F88: ='Connection Numbers Inputs'!F87 -> Tariff R: Res Albury | G88: ='Connection Numbers Inputs'!G87 -> Tariff C: Non- Res Central | H88: ='Connection Numbers Inputs'!H87 -> Tariff C: Non- Res North | I88: ='Connection Numbers Inputs'!I87 -> Tariff C: Non- Res MV (Vic) | J88: ='Connection Numbers Inputs'!J87 -> Tariff C: Non- Res Bairnsdale | K88: ='Connection Numbers Inputs'!K87 -> Tariff C: Non- Res Albury | L88: ='Connection Numbers Inputs'!L87 -> Tariff D: Central | M88: ='Connection Numbers Inputs'!M87 -> Tariff D: North | N88: ='Connection Numbers Inputs'!N87 -> Tariff D: MV (Vic) | O88: ='Connection Numbers Inputs'!O87 -> Tariff D: Bairnsdale | P88: ='Connection Numbers Inputs'!P87 -> Tariff D: Albury
A89: ='Connection Numbers Inputs'!A88 -> 2008
A90: ='Connection Numbers Inputs'!A89 -> 2009
A91: ='Connection Numbers Inputs'!A90 -> 2010
A92: ='Connection Numbers Inputs'!A91 -> 2011
A93: ='Connection Numbers Inputs'!A92 -> 2012
A94: ='Connection Numbers Inputs'!A93 -> 2013
A95: ='Connection Numbers Inputs'!A94 -> 2014
A96: ='Connection Numbers Inputs'!A95 -> 2015
A97: ='Connection Numbers Inputs'!A96 -> 2016
A98: ='Connection Numbers Inputs'!A97 -> 2017
A100: Off Peak Price Band 2 | B100: =B$4 -> Tariff R: Res Central | C100: =C$4 -> Tariff R: Res North | D100: Tariff R: Res MV (Vic) | E100: Tariff R: Res Bairnsdale | F100: Tariff R: Res Albury | G100: Tariff C: Non- Res Central | H100: Tariff C: Non- Res North | I100: Tariff C: Non- Res MV (Vic) | J100: Tariff C: Non- Res Bairnsdale | K100: Tariff C: Non- Res Albury | L100: Tariff D: Central | M100: Tariff D: North | N100: Tariff D: MV (Vic) | O100: Tariff D: Bairnsdale | P100: Tariff D: Albury
A101: =A89 -> 2008
A102: 2009
A103: 2010
A104: 2011
A105: 2012
A106: 2013
A107: 2014
A108: 2015
A109: 2016
A110: 2017
A112: Off Peak Price Band 3 | B112: =B$4 -> Tariff R: Res Central | C112: =C$4 -> Tariff R: Res North | D112: Tariff R: Res MV (Vic) | E112: Tariff R: Res Bairnsdale | F112: Tariff R: Res Albury | G112: Tariff C: Non- Res Central | H112: Tariff C: Non- Res North | I112: Tariff C: Non- Res MV (Vic) | J112: Tariff C: Non- Res Bairnsdale | K112: Tariff C: Non- Res Albury | L112: Tariff D: Central | M112: Tariff D: North | N112: Tariff D: MV (Vic) | O112: Tariff D: Bairnsdale | P112: Tariff D: Albury
A113: =A101 -> 2008
A114: 2009
A115: 2010
A116: 2011
A117: 2012
A118: 2013
A119: 2014
A120: 2015
A121: 2016
A122: 2017
A124: Off Peak Price Band 4 | B124: =B$4 -> Tariff R: Res Central | C124: =C$4 -> Tariff R: Res North | D124: Tariff R: Res MV (Vic) | E124: Tariff R: Res Bairnsdale | F124: Tariff R: Res Albury | G124: Tariff C: Non- Res Central | H124: Tariff C: Non- Res North | I124: Tariff C: Non- Res MV (Vic) | J124: Tariff C: Non- Res Bairnsdale | K124: Tariff C: Non- Res Albury | L124: Tariff D: Central | M124: Tariff D: North | N124: Tariff D: MV (Vic) | O124: Tariff D: Bairnsdale | P124: Tariff D: Albury
A125: =A113 -> 2008
A126: 2009
A127: 2010
A128: 2011
A129: 2012
A130: 2013
A131: 2014
A132: 2015
A133: 2016
A134: 2017
A136: Off Peak Price Band 5 | B136: =B$4 -> Tariff R: Res Central | C136: =C$4 -> Tariff R: Res North | D136: Tariff R: Res MV (Vic) | E136: Tariff R: Res Bairnsdale | F136: Tariff R: Res Albury | G136: Tariff C: Non- Res Central | H136: Tariff C: Non- Res North | I136: Tariff C: Non- Res MV (Vic) | J136: Tariff C: Non- Res Bairnsdale | K136: Tariff C: Non- Res Albury | L136: Tariff D: Central | M136: Tariff D: North | N136: Tariff D: MV (Vic) | O136: Tariff D: Bairnsdale | P136: Tariff D: Albury
A137: =A125 -> 2008
A138: 2009
A139: 2010
A140: 2011
A141: 2012
A142: 2013
A143: 2014
A144: 2015
A145: 2016
A146: 2017
A148: Off Peak Price Band 6 | B148: =B$4 -> Tariff R: Res Central | C148: =C$4 -> Tariff R: Res North | D148: Tariff R: Res MV (Vic) | E148: Tariff R: Res Bairnsdale | F148: Tariff R: Res Albury | G148: Tariff C: Non- Res Central | H148: Tariff C: Non- Res North | I148: Tariff C: Non- Res MV (Vic) | J148: Tariff C: Non- Res Bairnsdale | K148: Tariff C: Non- Res Albury | L148: Tariff D: Central | M148: Tariff D: North | N148: Tariff D: MV (Vic) | O148: Tariff D: Bairnsdale | P148: Tariff D: Albury
A149: =A137 -> 2008
A150: 2009
A151: 2010
A152: 2011
A153: 2012
A154: 2013
A155: 2014
A156: 2015
A157: 2016
A158: 2017
A160: Off Peak Price Band 7 | B160: =B$4 -> Tariff R: Res Central | C160: =C$4 -> Tariff R: Res North | D160: Tariff R: Res MV (Vic) | E160: Tariff R: Res Bairnsdale | F160: Tariff R: Res Albury | G160: Tariff C: Non- Res Central | H160: Tariff C: Non- Res North | I160: Tariff C: Non- Res MV (Vic) | J160: Tariff C: Non- Res Bairnsdale | K160: Tariff C: Non- Res Albury | L160: Tariff D: Central | M160: Tariff D: North | N160: Tariff D: MV (Vic) | O160: Tariff D: Bairnsdale | P160: Tariff D: Albury
A161: =A149 -> 2008
A162: 2009
A163: 2010
A164: 2011
A165: 2012
A166: 2013
A167: 2014
A168: 2015
A169: 2016
A170: 2017
A172: Summary | B172: =B$4 -> Tariff R: Res Central | C172: =C$4 -> Tariff R: Res North | D172: Tariff R: Res MV (Vic) | E172: Tariff R: Res Bairnsdale | F172: Tariff R: Res Albury | G172: Tariff C: Non- Res Central | H172: Tariff C: Non- Res North | I172: Tariff C: Non- Res MV (Vic) | J172: Tariff C: Non- Res Bairnsdale | K172: Tariff C: Non- Res Albury | L172: Tariff D: Central | M172: Tariff D: North | N172: Tariff D: MV (Vic) | O172: Tariff D: Bairnsdale | P172: Tariff D: Albury
A173: =A53 -> 2018/19 | B173: =SUMIF($A$5:$A$170,$A173,B$5:B$170) -> 25342011.48 | C173: =SUMIF($A$5:$A$170,$A173,C$5:C$170) -> 3511702.935 | D173: 276647.756 | E173: 109959.5976 | F173: 979353.9263 | G173: =SUMIF($A$5:$A$170,$A173,G$5:G$170) -> 6968680.981 | H173: 835737.5261 | I173: =SUMIF($A$5:$A$170,$A173,I$5:I$170) -> 66875.60402 | J173: 66306.67753 | K173: 285152.8303 | L173: 3486 | M173: =SUMIF($A$5:$A$170,$A173,M$5:M$170) -> 1101 | N173: 373 | O173: 19 | P173: 75
A174: 2019/20 | B174: =SUMIF($A$5:$A$170,$A174,B$5:B$170) -> 26238847.87 | C174: 3565942.462 | D174: 276287.7869 | E174: 115134.4709 | F174: 979911.0348 | G174: 6824193.212 | H174: 803842.3661 | I174: 63553.91898 | J174: 68020.52196 | K174: 265371.57 | L174: 3344 | M174: 1212 | N174: 377 | O174: 17 | P174: 105
A175: 2020/21 | B175: 26253737.76 | C175: 3590189.931 | D175: 287313.8701 | E175: 122717.9691 | F175: 978191.9326 | G175: 5950528.408 | H175: 753505.3861 | I175: 61818.59673 | J175: 70142.91292 | K175: =SUMIF($A$5:$A$170,$A175,K$5:K$170) -> 241105.0125 | L175: 3275 | M175: =SUMIF($A$5:$A$170,$A175,M$5:M$170) -> 1162 | N175: 380 | O175: 20 | P175: 68
A176: 2021-22 | B176: 26812192.72 | C176: 2860911.771 | D176: 214437.4365 | E176: 223812.0197 | F176: 1007093.561 | G176: 6130693.283 | H176: 756753.7796 | I176: 62694.0869 | J176: 72717.29409 | K176: 290864.1454 | L176: 3356 | M176: 1091.3 | N176: 380 | O176: 20 | P176: 68
A177: 2022-23 | B177: =SUMIF($A$5:$A$170,$A177,B$5:B$170) -> 26758082.25 | C177: 2910514.829 | D177: 218789.5425 | E177: 230683.1098 | F177: 1035545.786 | G177: 7046766.762 | H177: 748725.0511 | I177: 61834.41037 | J177: 70988.16253 | K177: 291121.4781 | L177: 3465.8676 | M177: 1100.0661 | N177: 385.624 | O177: 21.034 | P177: 65.0352
A178: 2023-24 | B178: 26069288.8 | C178: 2948529.92 | D178: 221865.3851 | E178: 236996.5644 | F178: 1040224.386 | G178: 7172186.305 | H178: 724600.5763 | I178: 60166.48556 | J178: 69074.75476 | K178: 279046.0692 | L178: =SUMIF($A$5:$A$170,$A178,L$5:L$170) -> 3433.740631 | M178: 1099.25178 | N178: 391.3312352 | O178: 22.1214578 | P178: 62.19966528
A179: 2024-25 | B179: 25454802.47 | C179: 3000056.115 | D179: 226419.2844 | E179: 244375.624 | F179: 1049931.864 | G179: 7096015.096 | H179: 716096.82 | I179: 59332.27943 | J179: 67699.691 | K179: 278326.5429 | L179: 3401.614647 | M179: 1076.39222 | N179: 397.1229375 | O179: 23.26513717 | P179: 59.48775987
A180: 2025-26 | B180: =SUMIF($A$5:$A$170,$A180,B$5:B$170) -> 24905415.06 | C180: 3065372.023 | D180: 232488.1624 | E180: 252804.5537 | F180: 1064036.882 | G180: 7185980.36 | H180: 723517.7977 | I180: 59307.21839 | J180: 66577.7275 | K180: 281485.2314 | L180: 3369.485035 | M180: 1042.352118 | N180: 403.000357 | O180: 24.46794476 | P180: 56.89409354
A181: 2026-27 | B181: 24219701.67 | C181: 3132109.96 | D181: 238719.7089 | E181: 261524.2115 | F181: 1075432.749 | G181: 7254291.769 | H181: 731015.6797 | I181: 59282.16794 | J181: 65474.35792 | K181: 283884.3036 | L181: 3337.34701 | M181: 1062.019696 | N181: 408.9647622 | O181: 25.7329375 | P181: 54.41351106
A182: 2027-28 | B182: =SUMIF($A$5:$A$170,$A182,B$5:B$170) -> 23621911.16 | C182: 3200300.886 | D182: 245118.284 | E182: 270544.6251 | F182: 1090700.622 | G182: 7324732.269 | H182: 738591.2629 | I182: 59257.12807 | J182: 64389.27409 | K182: 286357.3731 | L182: 3305.195606 | M182: 1049.903197 | N182: 415.0174407 | O182: 27.06333037 | P182: 52.04108198
A184: Ancillary Reference Services
A185: Volumes | B185: Disconnection | C185: Reconnection | D185: Special Meter Read - Metropolitan | E185: Special Meter Read - Non Metropolitan | F185: Meter Removal | G185: Meter Reinstallation | H185: Meter and Gas Installation Test
A186: =A178 -> 2023-24 | B186: 4833.666667 | C186: 6185.666667 | D186: 153846 | E186: 58195.66667 | F186: 2007 | G186: 66 | H186: 142.6666667
A187: =A179 -> 2024-25 | B187: 4901.950403 | C187: 6273.049695 | D187: 156019.3356 | E187: 59017.77912 | F187: 2035.352277 | G187: 66.93236189 | H187: 144.6820752
A188: 2025-26 | B188: 4976.25379 | C188: 6368.1361 | D188: 158384.2647 | E188: 59912.36608 | F188: 2066.203991 | G188: 67.94691749 | H188: 146.875155
A189: 2026-27 | B189: 5048.782688 | C189: 6460.951682 | D189: 160692.7153 | E189: 60785.58879 | F189: 2096.318913 | G189: 68.93724379 | H189: 149.0158603
A190: 2027-28 | B190: 5121.434607 | C190: 6553.924695 | D190: 163005.0814 | E190: 61660.29265 | F190: 2126.484916 | G190: 69.92924986 | H190: 151.1601967
A192: Prices | B192: Disconnection | C192: Reconnection | D192: Special Meter Read - Metropolitan | E192: Special Meter Read - Non Metropolitan | F192: Meter Removal | G192: Meter Reinstallation | H192: Meter and Gas Installation Test
A193: 2023-24 | B193: 87 | C193: 101 | D193: 11.1 | E193: 15.2 | F193: 124 | G193: 124 | H193: 261
A194: 2024-25 | B194: 89 | C194: 104 | D194: 11.4 | E194: 15.6 | F194: 127 | G194: 127 | H194: 268
A195: 2025-26 | B195: 91 | C195: 107 | D195: 11.7 | E195: 16 | F195: 131 | G195: 131 | H195: 276
A196: 2026-27 | B196: 94 | C196: 110 | D196: 12 | E196: 16.4 | F196: 135 | G196: 135 | H196: 284 | L196: Tariff D 2013 - 2015 Split Central and Northern (Band 1)
A197: 2027-28 | B197: 97 | C197: 113 | D197: 12.3 | E197: 16.9 | F197: 139 | G197: 139 | H197: 292 | L197: =SUM(L5:L7)/SUM(L5:M7) -> 0.801297814 | M197: =1-L197 -> 0.198702186 | N197: =SUM(L197:M197) -> 1
A199: Revenues | B199: Disconnection | C199: Reconnection | D199: Special Meter Read - Metropolitan | E199: Special Meter Read - Non Metropolitan | F199: Meter Removal | G199: Meter Reinstallation | H199: Meter and Gas Installation Test
A200: 2023-24 | B200: =B186*B193 -> 420529 | C200: =C186*C193 -> 624752.3333 | D200: 1707690.6 | E200: 884574.1333 | F200: 248868 | G200: 8184 | H200: 37236
A201: 2024-25 | B201: =B187*B194 -> 436273.5859 | C201: 652397.1683 | D201: 1778620.425 | E201: 920677.3542 | F201: 258489.7392 | G201: 8500.40996 | H201: 38774.79615
A202: 2025-26 | B202: =B188*B195 -> 452839.0949 | C202: 681390.5627 | D202: 1853095.897 | E202: 958597.8572 | F202: 270672.7228 | G202: 8901.046191 | H202: 40537.54277
A203: 2026-27 | B203: =B189*B196 -> 474585.5726 | C203: 710704.685 | D203: 1928312.583 | E203: 996883.6562 | F203: 283003.0533 | G203: 9306.527911 | H203: 42320.50433
A204: 2027-28 | B204: =B190*B197 -> 496779.1569 | C204: 740593.4905 | D204: 2004962.501 | E204: 1042058.946 | F204: 295581.4033 | G204: 9720.16573 | H204: 44138.77743 | I204: =SUM(B200:H204) -> 21370553.29
B208: GJ/day | J208: MHQ(GJ)
A209: Peak Price Band 1 | B209: Tariff R: Res Central | C209: Tariff R: Res North | D209: Tariff R: Res MV (Vic) | E209: Tariff R: Res Bairnsdale | F209: Tariff R: Res Albury | G209: Tariff C: Non- Res Central | H209: Tariff C: Non- Res North | I209: Tariff C: Non- Res MV (Vic) | J209: Tariff C: Non- Res Bairnsdale | K209: Tariff C: Non- Res Albury | L209: Tariff D: Central | M209: Tariff D: North | N209: Tariff D: MV (Vic) | O209: Tariff D: Bairnsdale | P209: Tariff D: Albury
A210: 2018/19 | B210: 4384838.689 | C210: 588999.065 | D210: 49681.54685 | E210: 21153.32802 | F210: 166004.6427 | G210: 263770.7218 | H210: 38558.93382 | I210: 4071.508382 | J210: 1263.113605 | K210: 11025.74581 | L210: 1416.9754 | M210: 406.8596 | N210: 40 | O210: 12.8776 | P210: 66.8772
A211: 2019/20 | B211: 4472289.253 | C211: 600542.3217 | D211: 51754.70734 | E211: 24288.79181 | F211: 169544.2798 | G211: 266739.7974 | H211: 38308.45392 | I211: 4208.629624 | J211: 1405.549529 | K211: 11150.55598 | L211: 1415.6868 | M211: 368.1083 | N211: 60 | O211: 13 | P211: 67.4837
A212: 2020/21 | B212: 4557394.333 | C212: 606892.9919 | D212: 52551.43079 | E212: 26809.94568 | F212: 172251.6231 | G212: 270528.2982 | H212: 37742.10817 | I212: 4348.678024 | J212: 1455.466113 | K212: 11176.57238 | L212: 1434.9436 | M212: 367.4133 | N212: 64.7418 | O212: 13 | P212: 54.1299
A213: 2021-22 | B213: 4286562.483 | C213: 575461.3383 | D213: 51872.77094 | E213: 26376.23128 | F213: 165148.5595 | G213: 265639.1608 | H213: 37162.20803 | I213: 4383.247674 | J213: 1478.241116 | K213: 11066.5231 | L213: 0 | M213: 0 | N213: 67.46866799 | O213: 13.46813915 | P213: 53.66196974
A214: 2022-23 | B214: 4269999.565 | C214: 577825.7181 | D214: 54093.2754 | E214: 27382.63243 | F214: 166708.0091 | G214: 265351.1464 | H214: 36733.78315 | I214: 4481.628654 | J214: 1491.330611 | K214: 11102.16254 | L214: 0 | M214: 0 | N214: 67.50388694 | O214: 13.47516958 | P214: 57.26327764
A215: 2023-24 | B215: 4246054.136 | C215: 579073.5116 | D215: 56056.79575 | E215: 28200.10571 | F215: 168075.8286 | G215: 265201.1181 | H215: 36329.28766 | I215: 4584.576359 | J215: 1494.011006 | K215: 11156.58911 | L215: 0 | M215: 0 | N215: 67.53912426 | O215: 13.48220368 | P215: 58.59856564
A216: 2024-25 | B216: 4228164.228 | C216: 581051.3157 | D216: 57985.98171 | E216: 28954.62874 | F216: 169782.8191 | G216: 265903.6168 | H216: 36045.60046 | I216: 4704.836575 | J216: 1492.285538 | K216: 11227.69125 | L216: 0 | M216: 0 | N216: 67.57112681 | O216: 13.48859205 | P216: 58.42715596
A217: 2025-26 | B217: 4216044.978 | C217: 583793.057 | D217: 59975.98408 | E217: 29708.07302 | F217: 171721.0594 | G217: 266933.0893 | H217: 35808.04197 | I217: 4834.086383 | J217: 1484.341138 | K217: 11303.19171 | L217: 0 | M217: 0 | N217: 67.92509866 | O217: 13.55925214 | P217: 58.26806114
A218: 2026-27 | B218: 4196854.463 | C218: 585541.7835 | D218: 61857.74967 | E218: 30377.46833 | F218: 173367.1879 | G218: 267814.6337 | H218: 35551.74376 | I218: 4964.096321 | J218: 1468.526438 | K218: 11370.35829 | L218: 0 | M218: 0 | N218: 67.95713463 | O218: 13.56564718 | P218: 58.12104708
A219: 2027-28 | B219: 4184114.516 | C219: 588164.5024 | D219: 63824.32334 | E219: 31060.42905 | F219: 175288.1105 | G219: 268030.2472 | H219: 35208.8121 | I219: 5085.027597 | J219: 1442.957364 | K219: 11407.73378 | L219: 0 | M219: 0 | N219: 67.98918732 | O219: 13.57204556 | P219: 57.98592232
A221: Peak Price Band 2 | B221: Tariff R: Res Central | C221: Tariff R: Res North | D221: Tariff R: Res MV (Vic) | E221: Tariff R: Res Bairnsdale | F221: Tariff R: Res Albury | G221: Tariff C: Non- Res Central | H221: Tariff C: Non- Res North | I221: Tariff C: Non- Res MV (Vic) | J221: Tariff C: Non- Res Bairnsdale | K221: Tariff C: Non- Res Albury | L221: Tariff D: Central | M221: Tariff D: North | N221: Tariff D: MV (Vic) | O221: Tariff D: Bairnsdale | P221: Tariff D: Albury
A222: 2018/19 | B222: 2866508.113 | C222: 363666.3425 | D222: 27385.90687 | E222: 10977.13939 | F222: 101733.2484 | G222: 1311405.322 | H222: 176474.3782 | I222: 18572.52522 | J222: 9807.472681 | K222: 54479.68301 | L222: 1279.1971 | M222: 663.3348 | N222: 58.6951 | O222: 4 | P222: 102.3841
... 124 more rows

Sheet RAB Calculations (hidden)
B1: ="ENVESTRA - Cost allocation model for "&'General Inputs'!#REF!&" ("&'General Inputs'!#REF!&")" -> 
B2: Regulatory Asset Base Calculations
B7: Period Ending 30 June | J7: 2005 | K7: =J7+1 -> 2006 | L7: 2007 | M7: 2008 | N7: 2009 | O7: 2010 | P7: 2011
B11: Summary of Regulatory Asset Base Calculations (in $million)
C12: Depreciation | I12: 5-year NPV
E13: Mains and Inlets | I13: =NPV(realpretaxwacc,L13:P13) -> 44.58443172 | K13: =K82 ->  | L13: 8.229431322 | M13: 8.78436781 | N13: 9.515194969 | O13: 10.16377271 | P13: 10.82815563
E14: Meters | I14: 19.08912699 | K14: =K183 ->  | L14: 3.243611481 | M14: 3.611067427 | N14: 4.062632668 | O14: 4.501658544 | P14: 4.958169578
E15: Telemetry | I15: 0.3850797768 | K15: =+K278 ->  | L15: 0.0330111862 | M15: 0.06029364986 | N15: 0.08374465191 | O15: 0.1062534621 | P15: 0.1309245159
E16: IT Systems | I16: 11.78575903 | K16: =+K383 ->  | L16: 0.9268954705 | M16: 1.76269944 | N16: 3.015914533 | O16: 3.46894675 | P16: 3.492349319
E17: Other Distribution Equipment | I17: 32.27410784 | K17: =+K483 ->  | L17: 6.367853716 | M17: 6.551339947 | N17: 6.851877563 | O17: 7.128210712 | P17: 7.459560126
E18: Other Assets | I18: 4.99000815 | K18: =+K583 ->  | L18: 0.8634685565 | M18: 0.9572901887 | N18: 1.073771653 | O18: 1.166238008 | P18: 1.263487708
D19: Total | I19: =SUM(I13:I18) -> 113.1085135 | K19: =SUM(K13:K18) ->  | L19: 19.66427173 | M19: 21.72705846 | N19: 24.60313604 | O19: 26.53508018 | P19: 28.13264688
C22: Asset return
E23: =E13 -> Mains and Inlets | I23: =NPV(NompretaxWACC,L23:P23) -> 171.5970907 | K23: =K115 ->  | L23: 34.74441109 | M23: 37.37545493 | N23: 40.33128804 | O23: 42.7832982 | P23: 45.24680553
E24: Meters | I24: 21.86704899 | K24: =K216 ->  | L24: 4.177223692 | M24: 4.642658937 | N24: 5.147506284 | O24: 5.600869307 | P24: 6.046685691
E25: Telemetry | I25: 1.015117408 | K25: =K316 ->  | L25: 0.09569911621 | M25: 0.1788543451 | N25: 0.2475225934 | O25: 0.3113030984 | P25: 0.3801311603
E26: IT Systems | I26: 1.954142327 | K26: =K416 ->  | L26: 0.1789110276 | M26: 0.3561481222 | N26: 0.591988572 | O26: 0.6408343434 | P26: 0.5530043123
E27: Other Distribution Equipment | I27: 56.91089983 | K27: =K516 ->  | L27: 12.83080704 | M27: 13.00539173 | N27: 13.23487476 | O27: 13.39594608 | P27: 13.68721066
E28: Other Assets | I28: 1.182150441 | K28: =K616 ->  | L28: 0.292352449 | M28: 0.2915760343 | N28: 0.2874172275 | O28: 0.2620369925 | P28: 0.2309973587
D29: =D19 -> Total | I29: =SUM(I23:I28) -> 254.5264496 | K29: =SUM(K23:K28) ->  | L29: 52.31940442 | M29: 55.8500841 | N29: 59.84059748 | O29: 62.99428802 | P29: 66.14483471
C32: Closing written down value
E33: =E23 -> Mains and Inlets | K33: =K147 -> 
E34: =E24 -> Meters | K34: =K247 -> 
E35: Telemetry | K35: =K347 -> 
E36: IT Systems | K36: =K447 -> 
E37: Other Distribution Equipment | K37: =K547 -> 
E38: Other Assets | K38: =K647 -> 
D39: Total | I39: =SUM(I33:I38) -> 0 | K39: =SUM(K34:K38) ->  | L39: =SUM(L33:L38) ->  | M39: =SUM(M33:M38) ->  | N39: =SUM(N33:N38) ->  | O39: =SUM(O33:O38) ->  | P39: =SUM(P33:P38) -> 
C46: Index
D47: For initial capital base and 2005/06 capex | J47: 1 | K47: =J47*(1+'General Inputs'!$B$4) -> 1.030481278 | L47: =K47*(1+'General Inputs'!$B$4) -> 1.061891664 | M47: =L47*(1+'General Inputs'!$B$4) -> 1.094259479 | N47: =M47*(1+'General Inputs'!$B$4) -> 1.127613907 | O47: =N47*(1+'General Inputs'!$B$4) -> 1.16198502 | P47: =O47*(1+'General Inputs'!$B$4) -> 1.197403808
D48: For capex from | G48: 2005/06 | K48: 1 | L48: =K48*(1+'General Inputs'!$B$4) -> 1.030481278 | M48: =L48*(1+'General Inputs'!$B$4) -> 1.061891664 | N48: =M48*(1+'General Inputs'!$B$4) -> 1.094259479 | O48: =N48*(1+'General Inputs'!$B$4) -> 1.127613907 | P48: =O48*(1+'General Inputs'!$B$4) -> 1.16198502
G49: 2006/07 | L49: 1 | M49: =L49*(1+'General Inputs'!$B$4) -> 1.030481278 | N49: =M49*(1+'General Inputs'!$B$4) -> 1.061891664 | O49: =N49*(1+'General Inputs'!$B$4) -> 1.094259479 | P49: =O49*(1+'General Inputs'!$B$4) -> 1.127613907
G50: 2007/08 | M50: 1 | N50: =M50*(1+'General Inputs'!$B$4) -> 1.030481278 | O50: =N50*(1+'General Inputs'!$B$4) -> 1.061891664 | P50: =O50*(1+'General Inputs'!$B$4) -> 1.094259479
G51: 2008/09 | N51: 1 | O51: =N51*(1+'General Inputs'!$B$4) -> 1.030481278 | P51: =O51*(1+'General Inputs'!$B$4) -> 1.061891664
G52: 2009/10 | O52: 1 | P52: =O52*(1+'General Inputs'!$B$4) -> 1.030481278
G53: 2010/11 | P53: 1
B60: RAB Calculations
C61: ="Asset Class 1 - "&E13 -> Asset Class 1 - Mains and Inlets
C63: Real calculations
D65: Real asset value
E67: Opening balance | K67: =#REF! ->  | L67: =K75 ->  | M67: =L75 ->  | N67: =M75 ->  | O67: =N75 ->  | P67: =O75 -> 
E69: Capex
F70: First 50% | K70: =#REF!/2 ->  | L70: =#REF!/2 ->  | M70: =#REF!/2 ->  | N70: =#REF!/2 ->  | O70: =#REF!/2 ->  | P70: =#REF!/2 -> 
F71: Remainder | K71: =K70 -> 
E73: Depreciation | K73: =K77 -> 
E75: Closing balance | K75: =-K73+K71+K70+K67 -> 
E77: Depreciation | J77: ='General Inputs'!#REF! ->  | K77: ='General Inputs'!#REF! ->  | L77: ='General Inputs'!#REF! ->  | M77: ='General Inputs'!#REF! ->  | N77: ='General Inputs'!#REF! ->  | O77: ='General Inputs'!#REF! ->  | P77: ='General Inputs'!#REF! -> 
C80: Depreciation
D82: Total depreciation | J82: =J77 -> 
C85: Asset Returns
D87: Initial assets
E88: Regulatory value of initial assets | K88: =IF($K82=0,0,$K67*'RAB Calculations'!K$47*('RAB Calculations'!K82/'RAB Calculations'!$K82)) ->  | L88: =IF($K82=0,0,$K67*'RAB Calculations'!L$47*('RAB Calculations'!L82/'RAB Calculations'!$K82)) ->  | M88: =IF($K82=0,0,$K67*'RAB Calculations'!M$47*('RAB Calculations'!M82/'RAB Calculations'!$K82)) ->  | N88: =IF($K82=0,0,$K67*'RAB Calculations'!N$47*('RAB Calculations'!N82/'RAB Calculations'!$K82)) ->  | O88: =IF($K82=0,0,$K67*'RAB Calculations'!O$47*('RAB Calculations'!O82/'RAB Calculations'!$K82)) ->  | P88: =IF($K82=0,0,$K67*'RAB Calculations'!P$47*('RAB Calculations'!P82/'RAB Calculations'!$K82)) -> 
D91: Capex
E92: Regulatory value of remainder of year1 capex | K92: =$K70*'RAB Calculations'!K$47 ->  | L92: =$K70*'RAB Calculations'!L$47 ->  | M92: =$K70*'RAB Calculations'!M$47 ->  | N92: =$K70*'RAB Calculations'!N$47 ->  | O92: =$K70*'RAB Calculations'!O$47 ->  | P92: =$K70*'RAB Calculations'!P$47 -> 
E93: cost base of 50% of capex
F94: Year 1 capex | K94: =$K70*'RAB Calculations'!K$47 ->  | L94: =$K70*'RAB Calculations'!L$47 ->  | M94: =$K70*'RAB Calculations'!M$47 ->  | N94: =$K70*'RAB Calculations'!N$47 ->  | O94: =$K70*'RAB Calculations'!O$47 ->  | P94: =$K70*'RAB Calculations'!P$47 -> 
F95: Year 2 capex | L95: =$L70*'RAB Calculations'!L$48 ->  | M95: =$L70*'RAB Calculations'!M$48 ->  | N95: =$L70*'RAB Calculations'!N$48 ->  | O95: =$L70*'RAB Calculations'!O$48 ->  | P95: =$L70*'RAB Calculations'!P$48 -> 
F96: Year 3 capex | M96: =$M70*'RAB Calculations'!M$49 ->  | N96: =$M70*'RAB Calculations'!N$49 ->  | O96: =$M70*'RAB Calculations'!O$49 ->  | P96: =$M70*'RAB Calculations'!P$49 -> 
F97: Year 4 capex | N97: =$N70*'RAB Calculations'!N$50 ->  | O97: =$N70*'RAB Calculations'!O$50 ->  | P97: =$N70*'RAB Calculations'!P$50 -> 
F98: Year 5 capex | O98: =$O70*'RAB Calculations'!O$51 ->  | P98: =$O70*'RAB Calculations'!P$51 -> 
F99: Year 6 capex | P99: =$P70*'RAB Calculations'!P$52 -> 
D100: Total | K100: =SUM(K94:K99) -> 
D103: Asset returns
E104: Regulatory value of initial assets for return purposes
F105: cost base | K105: =$K67*'RAB Calculations'!K$47 ->  | L105: =$K67*'RAB Calculations'!L$47 ->  | M105: =$K67*'RAB Calculations'!M$47 ->  | N105: =$K67*'RAB Calculations'!N$47 ->  | O105: =$K67*'RAB Calculations'!O$47 ->  | P105: =$K67*'RAB Calculations'!P$47 -> 
E106: Value of Year 1 remainder assets for return purposes
F107: cost base | K107: =$K92/'RAB Calculations'!$K$48*'RAB Calculations'!K$48 ->  | L107: =$K92/'RAB Calculations'!$K$48*'RAB Calculations'!L$48 ->  | M107: =$K92/'RAB Calculations'!$K$48*'RAB Calculations'!M$48 ->  | N107: =$K92/'RAB Calculations'!$K$48*'RAB Calculations'!N$48 ->  | O107: =$K92/'RAB Calculations'!$K$48*'RAB Calculations'!O$48 ->  | P107: =$K92/'RAB Calculations'!$K$48*'RAB Calculations'!P$48 -> 
E108: WDV of 50% of capex
F109: cost base | K109: =K94 ->  | L109: =K109*(1+'General Inputs'!$B$4)+'RAB Calculations'!L95 ->  | M109: =L109*(1+'General Inputs'!$B$4)+'RAB Calculations'!M96 ->  | N109: =M109*(1+'General Inputs'!$B$4)+'RAB Calculations'!N97 ->  | O109: =N109*(1+'General Inputs'!$B$4)+'RAB Calculations'!O98 ->  | P109: =O109*(1+'General Inputs'!$B$4)+'RAB Calculations'!P99 -> 
F111: accumulated depreciation (to start of year) | K111: =J82*'RAB Calculations'!K$47 ->  | L111: =(K111+K82)*(1+'General Inputs'!$B$4) ->  | M111: =(L111+L82)*(1+'General Inputs'!$B$4) ->  | N111: =(M111+M82)*(1+'General Inputs'!$B$4) ->  | O111: =(N111+N82)*(1+'General Inputs'!$B$4) ->  | P111: =(O111+O82)*(1+'General Inputs'!$B$4) -> 
E113: Total WDV of 50% of capex | K113: =K105-K111+K109+(K109+((J109-(J109/'RAB Calculations'!$J$47*'RAB Calculations'!I47)))+K70) ->  | L113: =L105-L111+L109+(L109+((K109-(K109/'RAB Calculations'!$J$47*'RAB Calculations'!J$47)))+L70) ->  | M113: =M105-M111+M109+(M109+((L109-(L109/'RAB Calculations'!$J$47*'RAB Calculations'!K$47)))+M70) ->  | N113: =N105-N111+N109+(N109+((M109-(M109/'RAB Calculations'!$J$47*'RAB Calculations'!L$47)))+N70) ->  | O113: =O105-O111+O109+(O109+((N109-(N109/'RAB Calculations'!$J$47*'RAB Calculations'!M$47)))+O70) ->  | P113: =P105-P111+P109+(P109+((O109-(O109/'RAB Calculations'!$J$47*'RAB Calculations'!N$47)))+P70) -> 
D115: Total asset returns | K115: =(K105+K109-K111)*'General Inputs'!$B$5 ->  | L115: =(L105+L109-L111)*'General Inputs'!$B$5+((K109-($K109/'RAB Calculations'!$K$47*'RAB Calculations'!K$47)))*'General Inputs'!$B$5+L107*'General Inputs'!$B$5 ->  | M115: =(M105+M109-M111)*'General Inputs'!$B$5+((L109-($K109/'RAB Calculations'!$K$47*'RAB Calculations'!L$47)))*'General Inputs'!$B$5+M107*'General Inputs'!$B$5 ->  | N115: =(N105+N109-N111)*'General Inputs'!$B$5+((M109-($K109/'RAB Calculations'!$K$47*'RAB Calculations'!M$47)))*'General Inputs'!$B$5+N107*'General Inputs'!$B$5 ->  | O115: =(O105+O109-O111)*'General Inputs'!$B$5+((N109-($K109/'RAB Calculations'!$K$47*'RAB Calculations'!N$47)))*'General Inputs'!$B$5+O107*'General Inputs'!$B$5 ->  | P115: =(P105+P109-P111)*'General Inputs'!$B$5+((O109-($K109/'RAB Calculations'!$K$47*'RAB Calculations'!O$47)))*'General Inputs'!$B$5+P107*'General Inputs'!$B$5 -> 
C119: Proof of Calculations
D121: Initial assets
E122: Opening balance | L122: =K88-K82-K111 -> 
D124: First 50% of capex
E125: Spend | K125: =K70 -> 
E126: Carried forward balance | L126: =K94 -> 
E127: NPV at nominal WACC of | I127: ='General Inputs'!B6 -> 0.0517784862 | L127: =L126+L125+NPV(I127,M125:P125) -> 
D129: Remainder of capex
E130: Spend | K130: =K71 -> 
E131: Carried forward balance | L131: =K92 -> 
E132: NPV at nominal WACC of | I132: =I127 -> 0.0517784862 | L132: =L131+NPV(I132,L130:P130) -> 
L133: =L135-L127-L132 -> 
D135: Total opening balance | L135: =L122+L127+L132 -> 
E136: Revenue stream
F137: depreciation | L137: =L82 ->  | M137: =M82 ->  | N137: =N82 ->  | O137: =O82 ->  | P137: =P82 -> 
F138: Return on assets | L138: =L115 ->  | M138: =M115 ->  | N138: =N115 ->  | O138: =O115 ->  | P138: =P115 -> 
F139: Residual value
F140: residual value of initial assets | P140: =(P105-P111-P137+P109+P107+P130)+(O109-(K109/'RAB Calculations'!K47*'RAB Calculations'!O47)) -> 
F141: residual value of remainder of capex
E142: Total | L142: =L137+L138+L140 ->  | M142: =M137+M138+M140 ->  | N142: =N137+N138+N140 ->  | O142: =O137+O138+O140 ->  | P142: =P137+P138+P140 -> 
E144: NPV at nominal WACC of | I144: =I132 -> 0.0517784862 | L144: =NPV(I144,L142:P142) ->  | M144: =L135-L144 -> 
F145: Check | L145: =IF(ROUND(L135-L144,5)=0,"ok","problem") -> 
D147: Closing written down value | K147: =K105-K111-K82+K100+K109 -> 
B161: RAB Calculations
C162: ="Asset Class 2 - "&E14 -> Asset Class 2 - Meters
C164: Real calculations
D166: Real asset value
E168: Opening balance | K168: =#REF! ->  | L168: =K176 ->  | M168: =L176 ->  | N168: =M176 ->  | O168: =N176 ->  | P168: =O176 -> 
E170: Capex
F171: First 50% | K171: =#REF!/2 ->  | L171: =#REF!/2 ->  | M171: =#REF!/2 ->  | N171: =#REF!/2 ->  | O171: =#REF!/2 ->  | P171: =#REF!/2 -> 
F172: Remainder | K172: =K171 -> 
E174: Depreciation | K174: =K178 -> 
E176: Closing balance | K176: =-K174+K172+K171+K168 -> 
E178: Depreciation | J178: ='General Inputs'!#REF! ->  | K178: ='General Inputs'!#REF! ->  | L178: ='General Inputs'!#REF! ->  | M178: ='General Inputs'!#REF! ->  | N178: ='General Inputs'!#REF! ->  | O178: ='General Inputs'!#REF! ->  | P178: ='General Inputs'!#REF! -> 
C181: Depreciation
D183: Total depreciation | J183: =J178 -> 
C186: Asset Returns
D188: Initial assets
E189: Regulatory value of initial assets | K189: =IF($K183=0,0,$K168*'RAB Calculations'!K$47*('RAB Calculations'!K183/'RAB Calculations'!$K183)) ->  | L189: =IF($K183=0,0,$K168*'RAB Calculations'!L$47*('RAB Calculations'!L183/'RAB Calculations'!$K183)) ->  | M189: =IF($K183=0,0,$K168*'RAB Calculations'!M$47*('RAB Calculations'!M183/'RAB Calculations'!$K183)) ->  | N189: =IF($K183=0,0,$K168*'RAB Calculations'!N$47*('RAB Calculations'!N183/'RAB Calculations'!$K183)) ->  | O189: =IF($K183=0,0,$K168*'RAB Calculations'!O$47*('RAB Calculations'!O183/'RAB Calculations'!$K183)) ->  | P189: =IF($K183=0,0,$K168*'RAB Calculations'!P$47*('RAB Calculations'!P183/'RAB Calculations'!$K183)) -> 
D192: Capex
E193: Regulatory value of remainder of year1 capex | K193: =$K171*'RAB Calculations'!K$47 ->  | L193: =$K171*'RAB Calculations'!L$47 ->  | M193: =$K171*'RAB Calculations'!M$47 ->  | N193: =$K171*'RAB Calculations'!N$47 ->  | O193: =$K171*'RAB Calculations'!O$47 ->  | P193: =$K171*'RAB Calculations'!P$47 -> 
E194: cost base of 50% of capex
F195: Year 1 capex | K195: =$K171*'RAB Calculations'!K$47 ->  | L195: =$K171*'RAB Calculations'!L$47 ->  | M195: =$K171*'RAB Calculations'!M$47 ->  | N195: =$K171*'RAB Calculations'!N$47 ->  | O195: =$K171*'RAB Calculations'!O$47 ->  | P195: =$K171*'RAB Calculations'!P$47 -> 
F196: Year 2 capex | L196: =$L171*'RAB Calculations'!L$48 ->  | M196: =$L171*'RAB Calculations'!M$48 ->  | N196: =$L171*'RAB Calculations'!N$48 ->  | O196: =$L171*'RAB Calculations'!O$48 ->  | P196: =$L171*'RAB Calculations'!P$48 -> 
F197: Year 3 capex | M197: =$M171*'RAB Calculations'!M$49 ->  | N197: =$M171*'RAB Calculations'!N$49 ->  | O197: =$M171*'RAB Calculations'!O$49 ->  | P197: =$M171*'RAB Calculations'!P$49 -> 
F198: Year 4 capex | N198: =$N171*'RAB Calculations'!N$50 ->  | O198: =$N171*'RAB Calculations'!O$50 ->  | P198: =$N171*'RAB Calculations'!P$50 -> 
F199: Year 5 capex | O199: =$O171*'RAB Calculations'!O$51 ->  | P199: =$O171*'RAB Calculations'!P$51 -> 
F200: Year 6 capex | P200: =$P171*'RAB Calculations'!P$52 -> 
D201: Total | K201: =SUM(K195:K200) -> 
D204: Asset returns
E205: Regulatory value of initial assets for return purposes
F206: cost base | K206: =$K168*'RAB Calculations'!K$47 ->  | L206: =$K168*'RAB Calculations'!L$47 ->  | M206: =$K168*'RAB Calculations'!M$47 ->  | N206: =$K168*'RAB Calculations'!N$47 ->  | O206: =$K168*'RAB Calculations'!O$47 ->  | P206: =$K168*'RAB Calculations'!P$47 -> 
E207: Value of Year 1 remainder assets for return purposes
F208: cost base | K208: =$K193/'RAB Calculations'!$K$48*'RAB Calculations'!K$48 ->  | L208: =$K193/'RAB Calculations'!$K$48*'RAB Calculations'!L$48 ->  | M208: =$K193/'RAB Calculations'!$K$48*'RAB Calculations'!M$48 ->  | N208: =$K193/'RAB Calculations'!$K$48*'RAB Calculations'!N$48 ->  | O208: =$K193/'RAB Calculations'!$K$48*'RAB Calculations'!O$48 ->  | P208: =$K193/'RAB Calculations'!$K$48*'RAB Calculations'!P$48 -> 
E209: WDV of 50% of capex
F210: cost base | K210: =K195 ->  | L210: =K210*(1+'General Inputs'!$B$4)+'RAB Calculations'!L196 ->  | M210: =L210*(1+'General Inputs'!$B$4)+'RAB Calculations'!M197 ->  | N210: =M210*(1+'General Inputs'!$B$4)+'RAB Calculations'!N198 ->  | O210: =N210*(1+'General Inputs'!$B$4)+'RAB Calculations'!O199 ->  | P210: =O210*(1+'General Inputs'!$B$4)+'RAB Calculations'!P200 -> 
F212: accumulated depreciation (to start of year) | K212: =J183*'RAB Calculations'!K$47 ->  | L212: =(K212+K183)*(1+'General Inputs'!$B$4) ->  | M212: =(L212+L183)*(1+'General Inputs'!$B$4) ->  | N212: =(M212+M183)*(1+'General Inputs'!$B$4) ->  | O212: =(N212+N183)*(1+'General Inputs'!$B$4) ->  | P212: =(O212+O183)*(1+'General Inputs'!$B$4) -> 
E214: Total WDV of 50% of capex | K214: =K206-K212+K210+(K210+((J210-(J210/'RAB Calculations'!$J$47*'RAB Calculations'!$I$47)))+K171) ->  | L214: =L206-L212+L210+(L210+((K210-(K210/'RAB Calculations'!$J$47*'RAB Calculations'!J$47)))+L171) ->  | M214: =M206-M212+M210+(M210+((L210-(L210/'RAB Calculations'!$J$47*'RAB Calculations'!K$47)))+M171) ->  | N214: =N206-N212+N210+(N210+((M210-(M210/'RAB Calculations'!$J$47*'RAB Calculations'!L$47)))+N171) ->  | O214: =O206-O212+O210+(O210+((N210-(N210/'RAB Calculations'!$J$47*'RAB Calculations'!M$47)))+O171) ->  | P214: =P206-P212+P210+(P210+((O210-(O210/'RAB Calculations'!$J$47*'RAB Calculations'!N$47)))+P171) -> 
D216: Total asset returns | K216: =(K206+K210-K212)*'General Inputs'!$B$5 ->  | L216: =(L206+L210-L212)*'General Inputs'!$B$5+((K210-($K210/'RAB Calculations'!$K$47*'RAB Calculations'!K$47)))*'General Inputs'!$B$5+L208*'General Inputs'!$B$5 ->  | M216: =(M206+M210-M212)*'General Inputs'!$B$5+((L210-($K210/'RAB Calculations'!$K$47*'RAB Calculations'!L$47)))*'General Inputs'!$B$5+M208*'General Inputs'!$B$5 ->  | N216: =(N206+N210-N212)*'General Inputs'!$B$5+((M210-($K210/'RAB Calculations'!$K$47*'RAB Calculations'!M$47)))*'General Inputs'!$B$5+N208*'General Inputs'!$B$5 ->  | O216: =(O206+O210-O212)*'General Inputs'!$B$5+((N210-($K210/'RAB Calculations'!$K$47*'RAB Calculations'!N$47)))*'General Inputs'!$B$5+O208*'General Inputs'!$B$5 ->  | P216: =(P206+P210-P212)*'General Inputs'!$B$5+((O210-($K210/'RAB Calculations'!$K$47*'RAB Calculations'!O$47)))*'General Inputs'!$B$5+P208*'General Inputs'!$B$5 -> 
C219: Proof of Calculations
D221: Initial assets
E222: Opening balance | L222: =K189-K183-K212 -> 
D224: First 50% of capex
E225: Spend | K225: =K171 -> 
E226: Carried forward balance | L226: =K195 -> 
E227: NPV at nominal WACC of | I227: =NompretaxWACC -> 0.0517784862 | L227: =L226+L225+NPV(I227,M225:P225) -> 
D229: Remainder of capex
E230: Spend | K230: =K172 -> 
E231: Carried forward balance | L231: =K193 -> 
E232: NPV at nominal WACC of | I232: =I227 -> 0.0517784862 | L232: =L231+NPV(I232,L230:P230) -> 
L233: =L235-L227-L232 -> 
D235: Total opening balance | L235: =L222+L227+L232 -> 
E236: Revenue stream
F237: depreciation | L237: =L183 ->  | M237: =M183 ->  | N237: =N183 ->  | O237: =O183 ->  | P237: =P183 -> 
F238: Return on assets | L238: =L216 ->  | M238: =M216 ->  | N238: =N216 ->  | O238: =O216 ->  | P238: =P216 -> 
F239: Residual value
F240: residual value of initial assets | P240: =(P206-P212-P237+P210)+P208+P230+(O210-(K210/'RAB Calculations'!K47*'RAB Calculations'!O47)) -> 
F241: residual value of remainder of capex
E242: Total | L242: =L237+L238+L240 ->  | M242: =M237+M238+M240 ->  | N242: =N237+N238+N240 ->  | O242: =O237+O238+O240 ->  | P242: =P237+P238+P240 -> 
E244: NPV at nominal WACC of | I244: =I232 -> 0.0517784862 | L244: =NPV(I244,L242:P242) ->  | M244: =L235-L244 -> 
F245: Check | L245: =IF(ROUND(L235-L244,5)=0,"ok","problem") -> 
D247: Closing written down value | K247: =K206-K212-K183+K201+K210 -> 
B261: RAB Calculations
C262: ="Asset Class 3 - "&E15 -> Asset Class 3 - Telemetry
C264: Real calculations
D266: Real asset value
E268: Opening balance | K268: =#REF! ->  | L268: =K276 ->  | M268: =L276 ->  | N268: =M276 ->  | O268: =N276 ->  | P268: =O276 -> 
E270: Capex
F271: First 50% | K271: =#REF!/2 ->  | L271: =#REF!/2 ->  | M271: =#REF!/2 ->  | N271: =#REF!/2 ->  | O271: =#REF!/2 ->  | P271: =#REF!/2 -> 
F272: Remainder | K272: =K271 -> 
E274: Depreciation | K274: =K278 -> 
E276: Closing balance | K276: =-K274+K272+K271+K268 -> 
E278: Depreciation | J278: ='General Inputs'!#REF! ->  | K278: ='General Inputs'!#REF! ->  | L278: ='General Inputs'!#REF! ->  | M278: ='General Inputs'!#REF! ->  | N278: ='General Inputs'!#REF! ->  | O278: ='General Inputs'!#REF! ->  | P278: ='General Inputs'!#REF! -> 
C281: Depreciation
D283: Total depreciation | J283: =J278 -> 
C286: Asset Returns
D288: Initial assets
E289: Regulatory value of initial assets | K289: =IF($K283=0,0,$K268*'RAB Calculations'!K$47*('RAB Calculations'!K283/'RAB Calculations'!$K283)) ->  | L289: =IF($K283=0,0,$K268*'RAB Calculations'!L$47*('RAB Calculations'!L283/'RAB Calculations'!$K283)) ->  | M289: =IF($K283=0,0,$K268*'RAB Calculations'!M$47*('RAB Calculations'!M283/'RAB Calculations'!$K283)) ->  | N289: =IF($K283=0,0,$K268*'RAB Calculations'!N$47*('RAB Calculations'!N283/'RAB Calculations'!$K283)) ->  | O289: =IF($K283=0,0,$K268*'RAB Calculations'!O$47*('RAB Calculations'!O283/'RAB Calculations'!$K283)) ->  | P289: =IF($K283=0,0,$K268*'RAB Calculations'!P$47*('RAB Calculations'!P283/'RAB Calculations'!$K283)) -> 
D292: Capex
E293: Regulatory value of remainder of year1 capex | K293: =$K271*'RAB Calculations'!K$47 ->  | L293: =$K271*'RAB Calculations'!L$47 ->  | M293: =$K271*'RAB Calculations'!M$47 ->  | N293: =$K271*'RAB Calculations'!N$47 ->  | O293: =$K271*'RAB Calculations'!O$47 ->  | P293: =$K271*'RAB Calculations'!P$47 -> 
E294: cost base of 50% of capex
F295: Year 1 capex | K295: =$K271*'RAB Calculations'!K$47 ->  | L295: =$K271*'RAB Calculations'!L$47 ->  | M295: =$K271*'RAB Calculations'!M$47 ->  | N295: =$K271*'RAB Calculations'!N$47 ->  | O295: =$K271*'RAB Calculations'!O$47 ->  | P295: =$K271*'RAB Calculations'!P$47 -> 
F296: Year 2 capex | L296: =$L271*'RAB Calculations'!L$48 ->  | M296: =$L271*'RAB Calculations'!M$48 ->  | N296: =$L271*'RAB Calculations'!N$48 ->  | O296: =$L271*'RAB Calculations'!O$48 ->  | P296: =$L271*'RAB Calculations'!P$48 -> 
F297: Year 3 capex | M297: =$M271*'RAB Calculations'!M$49 ->  | N297: =$M271*'RAB Calculations'!N$49 ->  | O297: =$M271*'RAB Calculations'!O$49 ->  | P297: =$M271*'RAB Calculations'!P$49 -> 
F298: Year 4 capex | N298: =$N271*'RAB Calculations'!N$50 ->  | O298: =$N271*'RAB Calculations'!O$50 ->  | P298: =$N271*'RAB Calculations'!P$50 -> 
F299: Year 5 capex | O299: =$O271*'RAB Calculations'!O$51 ->  | P299: =$O271*'RAB Calculations'!P$51 -> 
F300: Year 6 capex | P300: =$P271*'RAB Calculations'!P$52 -> 
D301: Total | K301: =SUM(K295:K300) -> 
D304: Asset returns
E305: Regulatory value of initial assets for return purposes
F306: cost base | K306: =$K268*'RAB Calculations'!K$47 ->  | L306: =$K268*'RAB Calculations'!L$47 ->  | M306: =$K268*'RAB Calculations'!M$47 ->  | N306: =$K268*'RAB Calculations'!N$47 ->  | O306: =$K268*'RAB Calculations'!O$47 ->  | P306: =$K268*'RAB Calculations'!P$47 -> 
E307: Value of Year 1 remainder assets for return purposes
F308: cost base | K308: =$K293/'RAB Calculations'!$K$48*'RAB Calculations'!K$48 ->  | L308: =$K293/'RAB Calculations'!$K$48*'RAB Calculations'!L$48 ->  | M308: =$K293/'RAB Calculations'!$K$48*'RAB Calculations'!M$48 ->  | N308: =$K293/'RAB Calculations'!$K$48*'RAB Calculations'!N$48 ->  | O308: =$K293/'RAB Calculations'!$K$48*'RAB Calculations'!O$48 ->  | P308: =$K293/'RAB Calculations'!$K$48*'RAB Calculations'!P$48 -> 
E309: WDV of 50% of capex
F310: cost base | K310: =K295 ->  | L310: =K310*(1+'General Inputs'!$B$4)+'RAB Calculations'!L296 ->  | M310: =L310*(1+'General Inputs'!$B$4)+'RAB Calculations'!M297 ->  | N310: =M310*(1+'General Inputs'!$B$4)+'RAB Calculations'!N298 ->  | O310: =N310*(1+'General Inputs'!$B$4)+'RAB Calculations'!O299 ->  | P310: =O310*(1+'General Inputs'!$B$4)+'RAB Calculations'!P300 -> 
F312: accumulated depreciation (to start of year) | K312: =J283*'RAB Calculations'!K$47 ->  | L312: =(K312+K283)*(1+'General Inputs'!$B$4) ->  | M312: =(L312+L283)*(1+'General Inputs'!$B$4) ->  | N312: =(M312+M283)*(1+'General Inputs'!$B$4) ->  | O312: =(N312+N283)*(1+'General Inputs'!$B$4) ->  | P312: =(O312+O283)*(1+'General Inputs'!$B$4) -> 
E314: Total WDV of 50% of capex | K314: =K306-K312+K310+(K310+((J310-(J310/'RAB Calculations'!$J$47*'RAB Calculations'!I$47)))+K271) ->  | L314: =L306-L312+L310+(L310+((K310-(K310/'RAB Calculations'!$J$47*'RAB Calculations'!J$47)))+L271) ->  | M314: =M306-M312+M310+(M310+((L310-(L310/'RAB Calculations'!$J$47*'RAB Calculations'!K$47)))+M271) ->  | N314: =N306-N312+N310+(N310+((M310-(M310/'RAB Calculations'!$J$47*'RAB Calculations'!L$47)))+N271) ->  | O314: =O306-O312+O310+(O310+((N310-(N310/'RAB Calculations'!$J$47*'RAB Calculations'!M$47)))+O271) ->  | P314: =P306-P312+P310+(P310+((O310-(O310/'RAB Calculations'!$J$47*'RAB Calculations'!N$47)))+P271) -> 
D316: Total asset returns | K316: =(K306+K310-K312)*'General Inputs'!$B$5 ->  | L316: =(L306+L310-L312)*'General Inputs'!$B$5+((K310-($K310/'RAB Calculations'!$K$47*'RAB Calculations'!K$47)))*'General Inputs'!$B$5+L308*'General Inputs'!$B$5 ->  | M316: =(M306+M310-M312)*'General Inputs'!$B$5+((L310-($K310/'RAB Calculations'!$K$47*'RAB Calculations'!L$47)))*'General Inputs'!$B$5+M308*'General Inputs'!$B$5 ->  | N316: =(N306+N310-N312)*'General Inputs'!$B$5+((M310-($K310/'RAB Calculations'!$K$47*'RAB Calculations'!M$47)))*'General Inputs'!$B$5+N308*'General Inputs'!$B$5 ->  | O316: =(O306+O310-O312)*'General Inputs'!$B$5+((N310-($K310/'RAB Calculations'!$K$47*'RAB Calculations'!N$47)))*'General Inputs'!$B$5+O308*'General Inputs'!$B$5 ->  | P316: =(P306+P310-P312)*'General Inputs'!$B$5+((O310-($K310/'RAB Calculations'!$K$47*'RAB Calculations'!O$47)))*'General Inputs'!$B$5+P308*'General Inputs'!$B$5 -> 
C319: Proof of Calculations
D321: Initial assets
E322: Opening balance | L322: =K289-K283-K312 -> 
D324: First 50% of capex
E325: Spend | K325: =K271 -> 
E326: Carried forward balance | L326: =K295 -> 
E327: NPV at nominal WACC of | I327: =NompretaxWACC -> 0.0517784862 | L327: =L326+L325+NPV(I327,M325:P325) -> 
D329: Remainder of capex
E330: Spend | K330: =K272 -> 
E331: Carried forward balance | L331: =K293 -> 
... 186 more rows

Sheet Tariff Inputs (hidden)
A1: Tariff Inputs
A4: ='General Inputs'!B18 -> Tariff R: Res Central | B4: =TRANSPOSE('Connection Numbers Inputs'!A4:A13) -> 2018/19 | C4: 2019/20 | D4: 2020/21 | E4: 2021-22 | F4: 2022-23 | G4: 2023-24 | H4: 2024-25 | I4: 2025-26 | J4: 2026-27 | K4: 2027-28
A5: ='General Inputs'!E18 -> Residential tariff
A6: Fixed ($/day) | B6: 0 | C6: 0 | D6: 0 | E6: 0 | F6: 0 | G6: 0 | H6: 0 | I6: 0 | J6: 0 | K6: 0
A7: Peak Band 1 ($/GJ) | B7: 0 | C7: 0 | D7: 0 | E7: 0 | F7: 0 | G7: 0 | H7: 0 | I7: 0 | J7: 0 | K7: 0
A8: Peak Band 2 ($/GJ) | B8: 0 | C8: 0 | D8: 0 | E8: 0 | F8: 0 | G8: 0 | H8: 0 | I8: 0 | J8: 0 | K8: 0
A9: Peak Band 3 ($/GJ) | B9: 0 | C9: 0 | D9: 0 | E9: 0 | F9: 0 | G9: 0 | H9: 0 | I9: 0 | J9: 0 | K9: 0
A10: Peak Band 4 ($/GJ) | B10: 0 | C10: 0 | D10: 0 | E10: 0 | F10: 0 | G10: 0 | H10: 0 | I10: 0 | J10: 0 | K10: 0
A11: Peak Band 5 ($/GJ) | B11: 0 | C11: 0 | D11: 0 | E11: 0 | F11: 0 | G11: 0 | H11: 0 | I11: 0 | J11: 0 | K11: 0
A12: Peak Band 6 ($/GJ) | B12: 0 | C12: 0 | D12: 0 | E12: 0 | F12: 0 | G12: 0 | H12: 0 | I12: 0 | J12: 0 | K12: 0
A13: Peak Band 7 ($/GJ) | B13: 0 | C13: 0 | D13: 0 | E13: 0 | F13: 0 | G13: 0 | H13: 0 | I13: 0 | J13: 0 | K13: 0
A14: Off Peak Band 1 ($/GJ) | B14: 0 | C14: 0 | D14: 0 | E14: 0 | F14: 0 | G14: 0 | H14: 0 | I14: 0 | J14: 0 | K14: 0
A15: Off Peak Band 2 ($/GJ) | B15: 0 | C15: 0 | D15: 0 | E15: 0 | F15: 0 | G15: 0 | H15: 0 | I15: 0 | J15: 0 | K15: 0
A16: Off Peak Band 3 ($/GJ) | B16: 0 | C16: 0 | D16: 0 | E16: 0 | F16: 0 | G16: 0 | H16: 0 | I16: 0 | J16: 0 | K16: 0
A17: Off Peak Band 4 ($/GJ) | B17: 0 | C17: 0 | D17: 0 | E17: 0 | F17: 0 | G17: 0 | H17: 0 | I17: 0 | J17: 0 | K17: 0
A18: Off Peak Band 5 ($/GJ) | B18: 0 | C18: 0 | D18: 0 | E18: 0 | F18: 0 | G18: 0 | H18: 0 | I18: 0 | J18: 0 | K18: 0
A19: Off Peak Band 6 ($/GJ) | B19: 0 | C19: 0 | D19: 0 | E19: 0 | F19: 0 | G19: 0 | H19: 0 | I19: 0 | J19: 0 | K19: 0
A20: Off Peak Band 7 ($/GJ) | B20: 0 | C20: 0 | D20: 0 | E20: 0 | F20: 0 | G20: 0 | H20: 0 | I20: 0 | J20: 0 | K20: 0
A22: ='General Inputs'!B19 -> Tariff R: Res North | B22: =B$4 -> 2018/19 | C22: 2019/20 | D22: 2020/21 | E22: 2021-22 | F22: 2022-23 | G22: 2023-24 | H22: 2024-25 | I22: 2025-26 | J22: 2026-27 | K22: 2027-28
A23: ='General Inputs'!E19 -> Residential tariff
A24: =A6 -> Fixed ($/day) | B24: 0 | C24: 0 | D24: 0 | E24: 0 | F24: 0 | G24: 0 | H24: 0 | I24: 0 | J24: 0 | K24: 0
A25: =A$7 -> Peak Band 1 ($/GJ) | B25: 0 | C25: 0 | D25: 0 | E25: 0 | F25: 0 | G25: 0 | H25: 0 | I25: 0 | J25: 0 | K25: 0
A26: =A$8 -> Peak Band 2 ($/GJ) | B26: 0 | C26: 0 | D26: 0 | E26: 0 | F26: 0 | G26: 0 | H26: 0 | I26: 0 | J26: 0 | K26: 0
A27: =A$9 -> Peak Band 3 ($/GJ) | B27: 0 | C27: 0 | D27: 0 | E27: 0 | F27: 0 | G27: 0 | H27: 0 | I27: 0 | J27: 0 | K27: 0
A28: =A$10 -> Peak Band 4 ($/GJ) | B28: 0 | C28: 0 | D28: 0 | E28: 0 | F28: 0 | G28: 0 | H28: 0 | I28: 0 | J28: 0 | K28: 0
A29: =A$11 -> Peak Band 5 ($/GJ) | B29: 0 | C29: 0 | D29: 0 | E29: 0 | F29: 0 | G29: 0 | H29: 0 | I29: 0 | J29: 0 | K29: 0
A30: =A$12 -> Peak Band 6 ($/GJ) | B30: 0 | C30: 0 | D30: 0 | E30: 0 | F30: 0 | G30: 0 | H30: 0 | I30: 0 | J30: 0 | K30: 0
A31: =A$13 -> Peak Band 7 ($/GJ) | B31: 0 | C31: 0 | D31: 0 | E31: 0 | F31: 0 | G31: 0 | H31: 0 | I31: 0 | J31: 0 | K31: 0
A32: =A$14 -> Off Peak Band 1 ($/GJ) | B32: 0 | C32: 0 | D32: 0 | E32: 0 | F32: 0 | G32: 0 | H32: 0 | I32: 0 | J32: 0 | K32: 0
A33: =A$15 -> Off Peak Band 2 ($/GJ) | B33: 0 | C33: 0 | D33: 0 | E33: 0 | F33: 0 | G33: 0 | H33: 0 | I33: 0 | J33: 0 | K33: 0
A34: =A$16 -> Off Peak Band 3 ($/GJ) | B34: 0 | C34: 0 | D34: 0 | E34: 0 | F34: 0 | G34: 0 | H34: 0 | I34: 0 | J34: 0 | K34: 0
A35: =A$17 -> Off Peak Band 4 ($/GJ) | B35: 0 | C35: 0 | D35: 0 | E35: 0 | F35: 0 | G35: 0 | H35: 0 | I35: 0 | J35: 0 | K35: 0
A36: =A$18 -> Off Peak Band 5 ($/GJ) | B36: 0 | C36: 0 | D36: 0 | E36: 0 | F36: 0 | G36: 0 | H36: 0 | I36: 0 | J36: 0 | K36: 0
A37: =A$19 -> Off Peak Band 6 ($/GJ) | B37: 0 | C37: 0 | D37: 0 | E37: 0 | F37: 0 | G37: 0 | H37: 0 | I37: 0 | J37: 0 | K37: 0
A38: =A$20 -> Off Peak Band 7 ($/GJ) | B38: 0 | C38: 0 | D38: 0 | E38: 0 | F38: 0 | G38: 0 | H38: 0 | I38: 0 | J38: 0 | K38: 0
A40: ='General Inputs'!B20 -> Tariff R: Res MV (Vic) | B40: =B$4 -> 2018/19 | C40: 2019/20 | D40: 2020/21 | E40: 2021-22 | F40: 2022-23 | G40: 2023-24 | H40: 2024-25 | I40: 2025-26 | J40: 2026-27 | K40: 2027-28
A41: ='General Inputs'!E20 -> Residential tariff
A42: Fixed ($/day) | B42: 0 | C42: 0 | D42: 0 | E42: 0 | F42: 0 | G42: 0 | H42: 0 | I42: 0 | J42: 0 | K42: 0
A43: =A$7 -> Peak Band 1 ($/GJ) | B43: 0 | C43: 0 | D43: 0 | E43: 0 | F43: 0 | G43: 0 | H43: 0 | I43: 0 | J43: 0 | K43: 0
A44: =A$8 -> Peak Band 2 ($/GJ) | B44: 0 | C44: 0 | D44: 0 | E44: 0 | F44: 0 | G44: 0 | H44: 0 | I44: 0 | J44: 0 | K44: 0
A45: =A$9 -> Peak Band 3 ($/GJ) | B45: 0 | C45: 0 | D45: 0 | E45: 0 | F45: 0 | G45: 0 | H45: 0 | I45: 0 | J45: 0 | K45: 0
A46: =A$10 -> Peak Band 4 ($/GJ) | B46: 0 | C46: 0 | D46: 0 | E46: 0 | F46: 0 | G46: 0 | H46: 0 | I46: 0 | J46: 0 | K46: 0
A47: =A$11 -> Peak Band 5 ($/GJ) | B47: 0 | C47: 0 | D47: 0 | E47: 0 | F47: 0 | G47: 0 | H47: 0 | I47: 0 | J47: 0 | K47: 0
A48: =A$12 -> Peak Band 6 ($/GJ) | B48: 0 | C48: 0 | D48: 0 | E48: 0 | F48: 0 | G48: 0 | H48: 0 | I48: 0 | J48: 0 | K48: 0
A49: =A$13 -> Peak Band 7 ($/GJ) | B49: 0 | C49: 0 | D49: 0 | E49: 0 | F49: 0 | G49: 0 | H49: 0 | I49: 0 | J49: 0 | K49: 0
A50: =A$14 -> Off Peak Band 1 ($/GJ) | B50: 0 | C50: 0 | D50: 0 | E50: 0 | F50: 0 | G50: 0 | H50: 0 | I50: 0 | J50: 0 | K50: 0
A51: =A$15 -> Off Peak Band 2 ($/GJ) | B51: 0 | C51: 0 | D51: 0 | E51: 0 | F51: 0 | G51: 0 | H51: 0 | I51: 0 | J51: 0 | K51: 0
A52: =A$16 -> Off Peak Band 3 ($/GJ) | B52: 0 | C52: 0 | D52: 0 | E52: 0 | F52: 0 | G52: 0 | H52: 0 | I52: 0 | J52: 0 | K52: 0
A53: =A$17 -> Off Peak Band 4 ($/GJ) | B53: 0 | C53: 0 | D53: 0 | E53: 0 | F53: 0 | G53: 0 | H53: 0 | I53: 0 | J53: 0 | K53: 0
A54: =A$18 -> Off Peak Band 5 ($/GJ) | B54: 0 | C54: 0 | D54: 0 | E54: 0 | F54: 0 | G54: 0 | H54: 0 | I54: 0 | J54: 0 | K54: 0
A55: =A$19 -> Off Peak Band 6 ($/GJ) | B55: 0 | C55: 0 | D55: 0 | E55: 0 | F55: 0 | G55: 0 | H55: 0 | I55: 0 | J55: 0 | K55: 0
A56: =A$20 -> Off Peak Band 7 ($/GJ) | B56: 0 | C56: 0 | D56: 0 | E56: 0 | F56: 0 | G56: 0 | H56: 0 | I56: 0 | J56: 0 | K56: 0
A58: ='General Inputs'!B21 -> Tariff R: Res Bairnsdale | B58: =B$4 -> 2018/19 | C58: 2019/20 | D58: 2020/21 | E58: 2021-22 | F58: 2022-23 | G58: 2023-24 | H58: 2024-25 | I58: 2025-26 | J58: 2026-27 | K58: 2027-28
A59: ='General Inputs'!E21 -> Residential tariff
A60: =A42 -> Fixed ($/day) | B60: 0 | C60: 0 | D60: 0 | E60: 0 | F60: 0 | G60: 0 | H60: 0 | I60: 0 | J60: 0 | K60: 0
A61: =A$7 -> Peak Band 1 ($/GJ) | B61: 0 | C61: 0 | D61: 0 | E61: 0 | F61: 0 | G61: 0 | H61: 0 | I61: 0 | J61: 0 | K61: 0
A62: =A$8 -> Peak Band 2 ($/GJ) | B62: 0 | C62: 0 | D62: 0 | E62: 0 | F62: 0 | G62: 0 | H62: 0 | I62: 0 | J62: 0 | K62: 0
A63: =A$9 -> Peak Band 3 ($/GJ) | B63: 0 | C63: 0 | D63: 0 | E63: 0 | F63: 0 | G63: 0 | H63: 0 | I63: 0 | J63: 0 | K63: 0
A64: =A$10 -> Peak Band 4 ($/GJ) | B64: 0 | C64: 0 | D64: 0 | E64: 0 | F64: 0 | G64: 0 | H64: 0 | I64: 0 | J64: 0 | K64: 0
A65: =A$11 -> Peak Band 5 ($/GJ) | B65: 0 | C65: 0 | D65: 0 | E65: 0 | F65: 0 | G65: 0 | H65: 0 | I65: 0 | J65: 0 | K65: 0
A66: =A$12 -> Peak Band 6 ($/GJ) | B66: 0 | C66: 0 | D66: 0 | E66: 0 | F66: 0 | G66: 0 | H66: 0 | I66: 0 | J66: 0 | K66: 0
A67: =A$13 -> Peak Band 7 ($/GJ) | B67: 0 | C67: 0 | D67: 0 | E67: 0 | F67: 0 | G67: 0 | H67: 0 | I67: 0 | J67: 0 | K67: 0
A68: =A$14 -> Off Peak Band 1 ($/GJ) | B68: 0 | C68: 0 | D68: 0 | E68: 0 | F68: 0 | G68: 0 | H68: 0 | I68: 0 | J68: 0 | K68: 0
A69: =A$15 -> Off Peak Band 2 ($/GJ) | B69: 0 | C69: 0 | D69: 0 | E69: 0 | F69: 0 | G69: 0 | H69: 0 | I69: 0 | J69: 0 | K69: 0
A70: =A$16 -> Off Peak Band 3 ($/GJ) | B70: 0 | C70: 0 | D70: 0 | E70: 0 | F70: 0 | G70: 0 | H70: 0 | I70: 0 | J70: 0 | K70: 0
A71: =A$17 -> Off Peak Band 4 ($/GJ) | B71: 0 | C71: 0 | D71: 0 | E71: 0 | F71: 0 | G71: 0 | H71: 0 | I71: 0 | J71: 0 | K71: 0
A72: =A$18 -> Off Peak Band 5 ($/GJ) | B72: 0 | C72: 0 | D72: 0 | E72: 0 | F72: 0 | G72: 0 | H72: 0 | I72: 0 | J72: 0 | K72: 0
A73: =A$19 -> Off Peak Band 6 ($/GJ) | B73: 0 | C73: 0 | D73: 0 | E73: 0 | F73: 0 | G73: 0 | H73: 0 | I73: 0 | J73: 0 | K73: 0
A74: =A$20 -> Off Peak Band 7 ($/GJ) | B74: 0 | C74: 0 | D74: 0 | E74: 0 | F74: 0 | G74: 0 | H74: 0 | I74: 0 | J74: 0 | K74: 0
A76: ='General Inputs'!B22 -> Tariff R: Res Albury | B76: =B$4 -> 2018/19 | C76: 2019/20 | D76: 2020/21 | E76: 2021-22 | F76: 2022-23 | G76: 2023-24 | H76: 2024-25 | I76: 2025-26 | J76: 2026-27 | K76: 2027-28
A77: ='General Inputs'!E39 -> 0
A78: =A60 -> Fixed ($/day) | B78: 0 | C78: 0 | D78: 0 | E78: 0 | F78: 0 | G78: 0 | H78: 0 | I78: 0 | J78: 0 | K78: 0
A79: =A$7 -> Peak Band 1 ($/GJ) | B79: 0 | C79: 0 | D79: 0 | E79: 0 | F79: 0 | G79: 0 | H79: 0 | I79: 0 | J79: 0 | K79: 0
A80: =A$8 -> Peak Band 2 ($/GJ) | B80: 0 | C80: 0 | D80: 0 | E80: 0 | F80: 0 | G80: 0 | H80: 0 | I80: 0 | J80: 0 | K80: 0
A81: =A$9 -> Peak Band 3 ($/GJ) | B81: 0 | C81: 0 | D81: 0 | E81: 0 | F81: 0 | G81: 0 | H81: 0 | I81: 0 | J81: 0 | K81: 0
A82: =A$10 -> Peak Band 4 ($/GJ) | B82: 0 | C82: 0 | D82: 0 | E82: 0 | F82: 0 | G82: 0 | H82: 0 | I82: 0 | J82: 0 | K82: 0
A83: =A$11 -> Peak Band 5 ($/GJ) | B83: 0 | C83: 0 | D83: 0 | E83: 0 | F83: 0 | G83: 0 | H83: 0 | I83: 0 | J83: 0 | K83: 0
A84: =A$12 -> Peak Band 6 ($/GJ) | B84: 0 | C84: 0 | D84: 0 | E84: 0 | F84: 0 | G84: 0 | H84: 0 | I84: 0 | J84: 0 | K84: 0
A85: =A$13 -> Peak Band 7 ($/GJ) | B85: 0 | C85: 0 | D85: 0 | E85: 0 | F85: 0 | G85: 0 | H85: 0 | I85: 0 | J85: 0 | K85: 0
A86: =A$14 -> Off Peak Band 1 ($/GJ) | B86: 0 | C86: 0 | D86: 0 | E86: 0 | F86: 0 | G86: 0 | H86: 0 | I86: 0 | J86: 0 | K86: 0
A87: =A$15 -> Off Peak Band 2 ($/GJ) | B87: 0 | C87: 0 | D87: 0 | E87: 0 | F87: 0 | G87: 0 | H87: 0 | I87: 0 | J87: 0 | K87: 0
A88: =A$16 -> Off Peak Band 3 ($/GJ) | B88: 0 | C88: 0 | D88: 0 | E88: 0 | F88: 0 | G88: 0 | H88: 0 | I88: 0 | J88: 0 | K88: 0
A89: =A$17 -> Off Peak Band 4 ($/GJ) | B89: 0 | C89: 0 | D89: 0 | E89: 0 | F89: 0 | G89: 0 | H89: 0 | I89: 0 | J89: 0 | K89: 0
A90: =A$18 -> Off Peak Band 5 ($/GJ) | B90: 0 | C90: 0 | D90: 0 | E90: 0 | F90: 0 | G90: 0 | H90: 0 | I90: 0 | J90: 0 | K90: 0
A91: =A$19 -> Off Peak Band 6 ($/GJ) | B91: 0 | C91: 0 | D91: 0 | E91: 0 | F91: 0 | G91: 0 | H91: 0 | I91: 0 | J91: 0 | K91: 0
A92: =A$20 -> Off Peak Band 7 ($/GJ) | B92: 0 | C92: 0 | D92: 0 | E92: 0 | F92: 0 | G92: 0 | H92: 0 | I92: 0 | J92: 0 | K92: 0
A94: ='General Inputs'!B23 -> Tariff C: Non- Res Central | B94: =B$4 -> 2018/19 | C94: 2019/20 | D94: 2020/21 | E94: 2021-22 | F94: 2022-23 | G94: 2023-24 | H94: 2024-25 | I94: 2025-26 | J94: 2026-27 | K94: 2027-28
A95: ='General Inputs'!E23 -> Non- Residential tariff
A96: Fixed ($/day) | B96: 0 | C96: 0 | D96: 0 | E96: 0 | F96: 0 | G96: 0 | H96: 0 | I96: 0 | J96: 0 | K96: 0
A97: Peak Band 1 ($/GJ) | B97: 0 | C97: 0 | D97: 0 | E97: 0 | F97: 0 | G97: 0 | H97: 0 | I97: 0 | J97: 0 | K97: 0
A98: Peak Band 2 ($/GJ) | B98: 0 | C98: 0 | D98: 0 | E98: 0 | F98: 0 | G98: 0 | H98: 0 | I98: 0 | J98: 0 | K98: 0
A99: Peak Band 3 ($/GJ) | B99: 0 | C99: 0 | D99: 0 | E99: 0 | F99: 0 | G99: 0 | H99: 0 | I99: 0 | J99: 0 | K99: 0
A100: Peak Band 4 ($/GJ) | B100: 0 | C100: 0 | D100: 0 | E100: 0 | F100: 0 | G100: 0 | H100: 0 | I100: 0 | J100: 0 | K100: 0
A101: Peak Band 5 ($/GJ) | B101: 0 | C101: 0 | D101: 0 | E101: 0 | F101: 0 | G101: 0 | H101: 0 | I101: 0 | J101: 0 | K101: 0
A102: Peak Band 6 ($/GJ) | B102: 0 | C102: 0 | D102: 0 | E102: 0 | F102: 0 | G102: 0 | H102: 0 | I102: 0 | J102: 0 | K102: 0
A103: Peak Band 7 ($/GJ) | B103: 0 | C103: 0 | D103: 0 | E103: 0 | F103: 0 | G103: 0 | H103: 0 | I103: 0 | J103: 0 | K103: 0
A104: Off Peak Band 1 ($/GJ) | B104: 0 | C104: 0 | D104: 0 | E104: 0 | F104: 0 | G104: 0 | H104: 0 | I104: 0 | J104: 0 | K104: 0
A105: Off Peak Band 2 ($/GJ) | B105: 0 | C105: 0 | D105: 0 | E105: 0 | F105: 0 | G105: 0 | H105: 0 | I105: 0 | J105: 0 | K105: 0
A106: Off Peak Band 3 ($/GJ) | B106: 0 | C106: 0 | D106: 0 | E106: 0 | F106: 0 | G106: 0 | H106: 0 | I106: 0 | J106: 0 | K106: 0
A107: Off Peak Band 4 ($/GJ) | B107: 0 | C107: 0 | D107: 0 | E107: 0 | F107: 0 | G107: 0 | H107: 0 | I107: 0 | J107: 0 | K107: 0
A108: Off Peak Band 5 ($/GJ) | B108: 0 | C108: 0 | D108: 0 | E108: 0 | F108: 0 | G108: 0 | H108: 0 | I108: 0 | J108: 0 | K108: 0
A109: Off Peak Band 6 ($/GJ) | B109: 0 | C109: 0 | D109: 0 | E109: 0 | F109: 0 | G109: 0 | H109: 0 | I109: 0 | J109: 0 | K109: 0
A110: Off Peak Band 7 ($/GJ) | B110: 0 | C110: 0 | D110: 0 | E110: 0 | F110: 0 | G110: 0 | H110: 0 | I110: 0 | J110: 0 | K110: 0
A112: ='General Inputs'!B24 -> Tariff C: Non- Res North | B112: =B$4 -> 2018/19 | C112: 2019/20 | D112: 2020/21 | E112: 2021-22 | F112: 2022-23 | G112: 2023-24 | H112: 2024-25 | I112: 2025-26 | J112: 2026-27 | K112: 2027-28
A113: ='General Inputs'!E24 -> Non- Residential tariff
A114: =A96 -> Fixed ($/day) | B114: 0 | C114: 0 | D114: 0 | E114: 0 | F114: 0 | G114: 0 | H114: 0 | I114: 0 | J114: 0 | K114: 0
A115: =A$7 -> Peak Band 1 ($/GJ) | B115: 0 | C115: 0 | D115: 0 | E115: 0 | F115: 0 | G115: 0 | H115: 0 | I115: 0 | J115: 0 | K115: 0
A116: =A$8 -> Peak Band 2 ($/GJ) | B116: 0 | C116: 0 | D116: 0 | E116: 0 | F116: 0 | G116: 0 | H116: 0 | I116: 0 | J116: 0 | K116: 0
A117: =A$9 -> Peak Band 3 ($/GJ) | B117: 0 | C117: 0 | D117: 0 | E117: 0 | F117: 0 | G117: 0 | H117: 0 | I117: 0 | J117: 0 | K117: 0
A118: =A$10 -> Peak Band 4 ($/GJ) | B118: 0 | C118: 0 | D118: 0 | E118: 0 | F118: 0 | G118: 0 | H118: 0 | I118: 0 | J118: 0 | K118: 0
A119: =A$11 -> Peak Band 5 ($/GJ) | B119: 0 | C119: 0 | D119: 0 | E119: 0 | F119: 0 | G119: 0 | H119: 0 | I119: 0 | J119: 0 | K119: 0
A120: =A$12 -> Peak Band 6 ($/GJ) | B120: 0 | C120: 0 | D120: 0 | E120: 0 | F120: 0 | G120: 0 | H120: 0 | I120: 0 | J120: 0 | K120: 0
A121: =A$13 -> Peak Band 7 ($/GJ) | B121: 0 | C121: 0 | D121: 0 | E121: 0 | F121: 0 | G121: 0 | H121: 0 | I121: 0 | J121: 0 | K121: 0
A122: =A$14 -> Off Peak Band 1 ($/GJ) | B122: 0 | C122: 0 | D122: 0 | E122: 0 | F122: 0 | G122: 0 | H122: 0 | I122: 0 | J122: 0 | K122: 0
A123: =A$15 -> Off Peak Band 2 ($/GJ) | B123: 0 | C123: 0 | D123: 0 | E123: 0 | F123: 0 | G123: 0 | H123: 0 | I123: 0 | J123: 0 | K123: 0
A124: =A$16 -> Off Peak Band 3 ($/GJ) | B124: 0 | C124: 0 | D124: 0 | E124: 0 | F124: 0 | G124: 0 | H124: 0 | I124: 0 | J124: 0 | K124: 0
A125: =A$17 -> Off Peak Band 4 ($/GJ) | B125: 0 | C125: 0 | D125: 0 | E125: 0 | F125: 0 | G125: 0 | H125: 0 | I125: 0 | J125: 0 | K125: 0
A126: =A$18 -> Off Peak Band 5 ($/GJ) | B126: 0 | C126: 0 | D126: 0 | E126: 0 | F126: 0 | G126: 0 | H126: 0 | I126: 0 | J126: 0 | K126: 0
A127: =A$19 -> Off Peak Band 6 ($/GJ) | B127: 0 | C127: 0 | D127: 0 | E127: 0 | F127: 0 | G127: 0 | H127: 0 | I127: 0 | J127: 0 | K127: 0
A128: =A$20 -> Off Peak Band 7 ($/GJ) | B128: 0 | C128: 0 | D128: 0 | E128: 0 | F128: 0 | G128: 0 | H128: 0 | I128: 0 | J128: 0 | K128: 0
A130: ='General Inputs'!B25 -> Tariff C: Non- Res MV (Vic) | B130: =B$4 -> 2018/19 | C130: 2019/20 | D130: 2020/21 | E130: 2021-22 | F130: 2022-23 | G130: 2023-24 | H130: 2024-25 | I130: 2025-26 | J130: 2026-27 | K130: 2027-28
A131: ='General Inputs'!E25 -> Non- Residential tariff
A132: Fixed ($/day) | B132: 0 | C132: 0 | D132: 0 | E132: 0 | F132: 0 | G132: 0 | H132: 0 | I132: 0 | J132: 0 | K132: 0
A133: =A$7 -> Peak Band 1 ($/GJ) | B133: 0 | C133: 0 | D133: 0 | E133: 0 | F133: 0 | G133: 0 | H133: 0 | I133: 0 | J133: 0 | K133: 0
A134: =A$8 -> Peak Band 2 ($/GJ) | B134: 0 | C134: 0 | D134: 0 | E134: 0 | F134: 0 | G134: 0 | H134: 0 | I134: 0 | J134: 0 | K134: 0
A135: =A$9 -> Peak Band 3 ($/GJ) | B135: 0 | C135: 0 | D135: 0 | E135: 0 | F135: 0 | G135: 0 | H135: 0 | I135: 0 | J135: 0 | K135: 0
A136: =A$10 -> Peak Band 4 ($/GJ) | B136: 0 | C136: 0 | D136: 0 | E136: 0 | F136: 0 | G136: 0 | H136: 0 | I136: 0 | J136: 0 | K136: 0
A137: =A$11 -> Peak Band 5 ($/GJ) | B137: 0 | C137: 0 | D137: 0 | E137: 0 | F137: 0 | G137: 0 | H137: 0 | I137: 0 | J137: 0 | K137: 0
A138: =A$12 -> Peak Band 6 ($/GJ) | B138: 0 | C138: 0 | D138: 0 | E138: 0 | F138: 0 | G138: 0 | H138: 0 | I138: 0 | J138: 0 | K138: 0
A139: =A$13 -> Peak Band 7 ($/GJ) | B139: 0 | C139: 0 | D139: 0 | E139: 0 | F139: 0 | G139: 0 | H139: 0 | I139: 0 | J139: 0 | K139: 0
A140: =A$14 -> Off Peak Band 1 ($/GJ) | B140: 0 | C140: 0 | D140: 0 | E140: 0 | F140: 0 | G140: 0 | H140: 0 | I140: 0 | J140: 0 | K140: 0
A141: =A$15 -> Off Peak Band 2 ($/GJ) | B141: 0 | C141: 0 | D141: 0 | E141: 0 | F141: 0 | G141: 0 | H141: 0 | I141: 0 | J141: 0 | K141: 0
A142: =A$16 -> Off Peak Band 3 ($/GJ) | B142: 0 | C142: 0 | D142: 0 | E142: 0 | F142: 0 | G142: 0 | H142: 0 | I142: 0 | J142: 0 | K142: 0
A143: =A$17 -> Off Peak Band 4 ($/GJ) | B143: 0 | C143: 0 | D143: 0 | E143: 0 | F143: 0 | G143: 0 | H143: 0 | I143: 0 | J143: 0 | K143: 0
A144: =A$18 -> Off Peak Band 5 ($/GJ) | B144: 0 | C144: 0 | D144: 0 | E144: 0 | F144: 0 | G144: 0 | H144: 0 | I144: 0 | J144: 0 | K144: 0
A145: =A$19 -> Off Peak Band 6 ($/GJ) | B145: 0 | C145: 0 | D145: 0 | E145: 0 | F145: 0 | G145: 0 | H145: 0 | I145: 0 | J145: 0 | K145: 0
A146: =A$20 -> Off Peak Band 7 ($/GJ) | B146: 0 | C146: 0 | D146: 0 | E146: 0 | F146: 0 | G146: 0 | H146: 0 | I146: 0 | J146: 0 | K146: 0
A148: ='General Inputs'!B26 -> Tariff C: Non- Res Bairnsdale | B148: =B$4 -> 2018/19 | C148: 2019/20 | D148: 2020/21 | E148: 2021-22 | F148: 2022-23 | G148: 2023-24 | H148: 2024-25 | I148: 2025-26 | J148: 2026-27 | K148: 2027-28
A149: ='General Inputs'!E26 -> Non- Residential tariff
A150: =A132 -> Fixed ($/day) | B150: 0 | C150: 0 | D150: 0 | E150: 0 | F150: 0 | G150: 0 | H150: 0 | I150: 0 | J150: 0 | K150: 0
A151: =A$7 -> Peak Band 1 ($/GJ) | B151: 0 | C151: 0 | D151: 0 | E151: 0 | F151: 0 | G151: 0 | H151: 0 | I151: 0 | J151: 0 | K151: 0
A152: =A$8 -> Peak Band 2 ($/GJ) | B152: 0 | C152: 0 | D152: 0 | E152: 0 | F152: 0 | G152: 0 | H152: 0 | I152: 0 | J152: 0 | K152: 0
A153: =A$9 -> Peak Band 3 ($/GJ) | B153: 0 | C153: 0 | D153: 0 | E153: 0 | F153: 0 | G153: 0 | H153: 0 | I153: 0 | J153: 0 | K153: 0
A154: =A$10 -> Peak Band 4 ($/GJ) | B154: 0 | C154: 0 | D154: 0 | E154: 0 | F154: 0 | G154: 0 | H154: 0 | I154: 0 | J154: 0 | K154: 0
A155: =A$11 -> Peak Band 5 ($/GJ) | B155: 0 | C155: 0 | D155: 0 | E155: 0 | F155: 0 | G155: 0 | H155: 0 | I155: 0 | J155: 0 | K155: 0
A156: =A$12 -> Peak Band 6 ($/GJ) | B156: 0 | C156: 0 | D156: 0 | E156: 0 | F156: 0 | G156: 0 | H156: 0 | I156: 0 | J156: 0 | K156: 0
A157: =A$13 -> Peak Band 7 ($/GJ) | B157: 0 | C157: 0 | D157: 0 | E157: 0 | F157: 0 | G157: 0 | H157: 0 | I157: 0 | J157: 0 | K157: 0
A158: =A$14 -> Off Peak Band 1 ($/GJ) | B158: 0 | C158: 0 | D158: 0 | E158: 0 | F158: 0 | G158: 0 | H158: 0 | I158: 0 | J158: 0 | K158: 0
A159: =A$15 -> Off Peak Band 2 ($/GJ) | B159: 0 | C159: 0 | D159: 0 | E159: 0 | F159: 0 | G159: 0 | H159: 0 | I159: 0 | J159: 0 | K159: 0
A160: =A$16 -> Off Peak Band 3 ($/GJ) | B160: 0 | C160: 0 | D160: 0 | E160: 0 | F160: 0 | G160: 0 | H160: 0 | I160: 0 | J160: 0 | K160: 0
A161: =A$17 -> Off Peak Band 4 ($/GJ) | B161: 0 | C161: 0 | D161: 0 | E161: 0 | F161: 0 | G161: 0 | H161: 0 | I161: 0 | J161: 0 | K161: 0
A162: =A$18 -> Off Peak Band 5 ($/GJ) | B162: 0 | C162: 0 | D162: 0 | E162: 0 | F162: 0 | G162: 0 | H162: 0 | I162: 0 | J162: 0 | K162: 0
A163: =A$19 -> Off Peak Band 6 ($/GJ) | B163: 0 | C163: 0 | D163: 0 | E163: 0 | F163: 0 | G163: 0 | H163: 0 | I163: 0 | J163: 0 | K163: 0
A164: =A$20 -> Off Peak Band 7 ($/GJ) | B164: 0 | C164: 0 | D164: 0 | E164: 0 | F164: 0 | G164: 0 | H164: 0 | I164: 0 | J164: 0 | K164: 0
A166: ='General Inputs'!B27 -> Tariff C: Non- Res Albury | B166: =B$4 -> 2018/19 | C166: 2019/20 | D166: 2020/21 | E166: 2021-22 | F166: 2022-23 | G166: 2023-24 | H166: 2024-25 | I166: 2025-26 | J166: 2026-27 | K166: 2027-28
A167: ='General Inputs'!E44 -> 0
A168: =A150 -> Fixed ($/day) | B168: 0 | C168: 0 | D168: 0 | E168: 0 | F168: 0 | G168: 0 | H168: 0 | I168: 0 | J168: 0 | K168: 0
A169: =A$7 -> Peak Band 1 ($/GJ) | B169: 0 | C169: 0 | D169: 0 | E169: 0 | F169: 0 | G169: 0 | H169: 0 | I169: 0 | J169: 0 | K169: 0
A170: =A$8 -> Peak Band 2 ($/GJ) | B170: 0 | C170: 0 | D170: 0 | E170: 0 | F170: 0 | G170: 0 | H170: 0 | I170: 0 | J170: 0 | K170: 0
A171: =A$9 -> Peak Band 3 ($/GJ) | B171: 0 | C171: 0 | D171: 0 | E171: 0 | F171: 0 | G171: 0 | H171: 0 | I171: 0 | J171: 0 | K171: 0
A172: =A$10 -> Peak Band 4 ($/GJ) | B172: 0 | C172: 0 | D172: 0 | E172: 0 | F172: 0 | G172: 0 | H172: 0 | I172: 0 | J172: 0 | K172: 0
A173: =A$11 -> Peak Band 5 ($/GJ) | B173: 0 | C173: 0 | D173: 0 | E173: 0 | F173: 0 | G173: 0 | H173: 0 | I173: 0 | J173: 0 | K173: 0
A174: =A$12 -> Peak Band 6 ($/GJ) | B174: 0 | C174: 0 | D174: 0 | E174: 0 | F174: 0 | G174: 0 | H174: 0 | I174: 0 | J174: 0 | K174: 0
A175: =A$13 -> Peak Band 7 ($/GJ) | B175: 0 | C175: 0 | D175: 0 | E175: 0 | F175: 0 | G175: 0 | H175: 0 | I175: 0 | J175: 0 | K175: 0
A176: =A$14 -> Off Peak Band 1 ($/GJ) | B176: 0 | C176: 0 | D176: 0 | E176: 0 | F176: 0 | G176: 0 | H176: 0 | I176: 0 | J176: 0 | K176: 0
A177: =A$15 -> Off Peak Band 2 ($/GJ) | B177: 0 | C177: 0 | D177: 0 | E177: 0 | F177: 0 | G177: 0 | H177: 0 | I177: 0 | J177: 0 | K177: 0
A178: =A$16 -> Off Peak Band 3 ($/GJ) | B178: 0 | C178: 0 | D178: 0 | E178: 0 | F178: 0 | G178: 0 | H178: 0 | I178: 0 | J178: 0 | K178: 0
A179: =A$17 -> Off Peak Band 4 ($/GJ) | B179: 0 | C179: 0 | D179: 0 | E179: 0 | F179: 0 | G179: 0 | H179: 0 | I179: 0 | J179: 0 | K179: 0
A180: =A$18 -> Off Peak Band 5 ($/GJ) | B180: 0 | C180: 0 | D180: 0 | E180: 0 | F180: 0 | G180: 0 | H180: 0 | I180: 0 | J180: 0 | K180: 0
A181: =A$19 -> Off Peak Band 6 ($/GJ) | B181: 0 | C181: 0 | D181: 0 | E181: 0 | F181: 0 | G181: 0 | H181: 0 | I181: 0 | J181: 0 | K181: 0
A182: =A$20 -> Off Peak Band 7 ($/GJ) | B182: 0 | C182: 0 | D182: 0 | E182: 0 | F182: 0 | G182: 0 | H182: 0 | I182: 0 | J182: 0 | K182: 0
A184: ='General Inputs'!B28 -> Tariff D: Central | B184: =B$4 -> 2018/19 | C184: 2019/20 | D184: 2020/21 | E184: 2021-22 | F184: 2022-23 | G184: 2023-24 | H184: 2024-25 | I184: 2025-26 | J184: 2026-27 | K184: 2027-28
A185: ='General Inputs'!E28 -> Demand customers in region 1
A186: Band 1 ($/GJ) | B186: 0 | C186: 0 | D186: 0 | E186: 0 | F186: 0 | G186: 0 | H186: 0 | I186: 0 | J186: 0 | K186: 0
A187: Band 2 ($/GJ) | B187: 0 | C187: 0 | D187: 0 | E187: 0 | F187: 0 | G187: 0 | H187: 0 | I187: 0 | J187: 0 | K187: 0
A188: Band 3 ($/GJ) | B188: 0 | C188: 0 | D188: 0 | E188: 0 | F188: 0 | G188: 0 | H188: 0 | I188: 0 | J188: 0 | K188: 0
A189: Band 4 ($/GJ) | B189: 0 | C189: 0 | D189: 0 | E189: 0 | F189: 0 | G189: 0 | H189: 0 | I189: 0 | J189: 0 | K189: 0
A190: Band 5 ($/GJ) | B190: 0 | C190: 0 | D190: 0 | E190: 0 | F190: 0 | G190: 0 | H190: 0 | I190: 0 | J190: 0 | K190: 0
A191: Band 6 ($/GJ) | B191: 0 | C191: 0 | D191: 0 | E191: 0 | F191: 0 | G191: 0 | H191: 0 | I191: 0 | J191: 0 | K191: 0
A192: Band 7 ($/GJ) | B192: 0 | C192: 0 | D192: 0 | E192: 0 | F192: 0 | G192: 0 | H192: 0 | I192: 0 | J192: 0 | K192: 0
A194: ='General Inputs'!B29 -> Tariff D: North | B194: =B$4 -> 2018/19 | C194: 2019/20 | D194: 2020/21 | E194: 2021-22 | F194: 2022-23 | G194: 2023-24 | H194: 2024-25 | I194: 2025-26 | J194: 2026-27 | K194: 2027-28
A195: ='General Inputs'!E29 -> Demand customers in region 2
A196: =A158 -> Off Peak Band 1 ($/GJ) | B196: 0 | C196: 0 | D196: 0 | E196: 0 | F196: 0 | G196: 0 | H196: 0 | I196: 0 | J196: 0 | K196: 0
A197: Off Peak Band 2 ($/GJ) | B197: 0 | C197: 0 | D197: 0 | E197: 0 | F197: 0 | G197: 0 | H197: 0 | I197: 0 | J197: 0 | K197: 0
A198: Off Peak Band 3 ($/GJ) | B198: 0 | C198: 0 | D198: 0 | E198: 0 | F198: 0 | G198: 0 | H198: 0 | I198: 0 | J198: 0 | K198: 0
A199: Off Peak Band 4 ($/GJ) | B199: 0 | C199: 0 | D199: 0 | E199: 0 | F199: 0 | G199: 0 | H199: 0 | I199: 0 | J199: 0 | K199: 0
A200: Off Peak Band 5 ($/GJ) | B200: 0 | C200: 0 | D200: 0 | E200: 0 | F200: 0 | G200: 0 | H200: 0 | I200: 0 | J200: 0 | K200: 0
A201: Off Peak Band 6 ($/GJ) | B201: 0 | C201: 0 | D201: 0 | E201: 0 | F201: 0 | G201: 0 | H201: 0 | I201: 0 | J201: 0 | K201: 0
A202: Band 7 ($/GJ) | B202: 0 | C202: 0 | D202: 0 | E202: 0 | F202: 0 | G202: 0 | H202: 0 | I202: 0 | J202: 0 | K202: 0
A204: ='General Inputs'!B30 -> Tariff D: MV (Vic) | B204: =B$4 -> 2018/19 | C204: 2019/20 | D204: 2020/21 | E204: 2021-22 | F204: 2022-23 | G204: 2023-24 | H204: 2024-25 | I204: 2025-26 | J204: 2026-27 | K204: 2027-28
A205: ='General Inputs'!E30 -> Demand customers in region 3
A206: =A186 -> Band 1 ($/GJ) | B206: 0 | C206: 0 | D206: 0 | E206: 0 | F206: 0 | G206: 0 | H206: 0 | I206: 0 | J206: 0 | K206: 0
A207: Band 2 ($/GJ) | B207: 0 | C207: 0 | D207: 0 | E207: 0 | F207: 0 | G207: 0 | H207: 0 | I207: 0 | J207: 0 | K207: 0
A208: Band 3 ($/GJ) | B208: 0 | C208: 0 | D208: 0 | E208: 0 | F208: 0 | G208: 0 | H208: 0 | I208: 0 | J208: 0 | K208: 0
A209: Band 4 ($/GJ) | B209: 0 | C209: 0 | D209: 0 | E209: 0 | F209: 0 | G209: 0 | H209: 0 | I209: 0 | J209: 0 | K209: 0
A210: Band 5 ($/GJ) | B210: 0 | C210: 0 | D210: 0 | E210: 0 | F210: 0 | G210: 0 | H210: 0 | I210: 0 | J210: 0 | K210: 0
A211: Band 6 ($/GJ) | B211: 0 | C211: 0 | D211: 0 | E211: 0 | F211: 0 | G211: 0 | H211: 0 | I211: 0 | J211: 0 | K211: 0
A212: Band 7 ($/GJ) | B212: 0 | C212: 0 | D212: 0 | E212: 0 | F212: 0 | G212: 0 | H212: 0 | I212: 0 | J212: 0 | K212: 0
A214: ='General Inputs'!B31 -> Tariff D: Bairnsdale | B214: =B$4 -> 2018/19 | C214: 2019/20 | D214: 2020/21 | E214: 2021-22 | F214: 2022-23 | G214: 2023-24 | H214: 2024-25 | I214: 2025-26 | J214: 2026-27 | K214: 2027-28
A215: ='General Inputs'!E31 -> Demand customers in region 4
... 16 more rows

Sheet Cost allocators
A1: Cost Allocators
A3: Service Cost Allocator
A4: Reference Services (%) | B4: =100%-SUM(B5:B5) -> 0.9828614684
A5: Ancillary Reference Services (%) | B5: ='Volume Inputs'!I204/('PTRM Inputs'!G11*1000000) -> 0.01713853157
A6: Return on Capital Component | B6: 0
A7: Return of Capital Component | B7: 0
A8: Opex Component | B8: 1
A10: Tariff D Zonal Allocator Selection
A11: ='FDC Calculations'!A12 -> Return on capital | B11: Assets
A12: ='FDC Calculations'!A13 -> Return of capital | B12: Assets
A13: ='FDC Calculations'!A14 -> O&M | B13: Volume and Customer No
A14: ='FDC Calculations'!A15 -> Carry-over amounts | B14: Volume and Customer No
A15: ='FDC Calculations'!A16 -> Benchmark Tax liability | B15: Assets
A17: Tariff R+C Allocator Selection | C17: =TRANSPOSE('General Inputs'!B18:B32) -> Tariff R: Res Central | D17: Tariff R: Res North | E17: Tariff R: Res MV (Vic) | F17: Tariff R: Res Bairnsdale | G17: Tariff R: Res Albury | H17: Tariff C: Non- Res Central | I17: Tariff C: Non- Res North | J17: Tariff C: Non- Res MV (Vic) | K17: ='General Inputs'!B26 -> Tariff C: Non- Res Bairnsdale | L17: ='General Inputs'!B27 -> Tariff C: Non- Res Albury | M17: ='General Inputs'!B28 -> Tariff D: Central | N17: ='General Inputs'!B29 -> Tariff D: North | O17: ='General Inputs'!B30 -> Tariff D: MV (Vic) | P17: ='General Inputs'!B31 -> Tariff D: Bairnsdale | Q17: ='General Inputs'!B25 -> Tariff C: Non- Res MV (Vic) | R17: Total
A18: =A11 -> Return on capital | B18: Volume and Customer No | C18: =IF($B18=$A$26,C$26/SUM($C$26:$Q$26),IF($B18=$A$27,C$27/SUM($C$27:$Q$27),C$28/SUM($C$28:$Q$28))) -> 0.7709245008 | D18: =IF($B18=$A$26,D$26/SUM($C$26:$Q$26),IF($B18=$A$27,D$27/SUM($C$27:$Q$27),D$28/SUM($C$28:$Q$28))) -> 0.1062541275 | E18: 0.0104443542 | F18: 0.006124539988 | G18: 0.03031203733 | H18: 0.06313551203 | I18: 0.008392771913 | J18: 0.0007846483461 | K18: 0.0005812648043 | L18: =IF($B18=$A$26,L$26/SUM($C$26:$Q$26),IF($B18=$A$27,L$27/SUM($C$27:$Q$27),L$28/SUM($C$28:$Q$28))) -> 0.002729282665 | M18: =IF($B18=$A$26,M$26/SUM($C$26:$Q$26),IF($B18=$A$27,M$27/SUM($C$27:$Q$27),M$28/SUM($C$28:$Q$28))) -> 0.0002375616967 | N18: 5.887437525e-05 | O18: 9.635774438e-06 | P18: =IF($B18=$A$26,P$26/SUM($C$26:$Q$26),IF($B18=$A$27,P$27/SUM($C$27:$Q$27),P$28/SUM($C$28:$Q$28))) -> 3.206708513e-06 | Q18: =IF($B18=$A$26,Q$26/SUM($C$26:$Q$26),IF($B18=$A$27,Q$27/SUM($C$27:$Q$27),Q$28/SUM($C$28:$Q$28))) -> 7.68179886e-06 | R18: =SUM(C18:Q18) -> 1
A19: =A12 -> Return of capital | B19: Volume and Customer No | C19: =IF($B19=$A$26,C$26/SUM($C$26:$Q$26),IF($B19=$A$27,C$27/SUM($C$27:$Q$27),C$28/SUM($C$28:$Q$28))) -> 0.7709245008 | D19: 0.1062541275 | E19: 0.0104443542 | F19: 0.006124539988 | G19: 0.03031203733 | H19: 0.06313551203 | I19: 0.008392771913 | J19: 0.0007846483461 | K19: 0.0005812648043 | L19: 0.002729282665 | M19: 0.0002375616967 | N19: 5.887437525e-05 | O19: 9.635774438e-06 | P19: 3.206708513e-06 | Q19: 7.68179886e-06 | R19: =SUM(C19:Q19) -> 1
A20: =A13 -> O&M | B20: Volume and Customer No | C20: =IF($B20=$A$26,C$26/SUM($C$26:$Q$26),IF($B20=$A$27,C$27/SUM($C$27:$Q$27),C$28/SUM($C$28:$Q$28))) -> 0.7709245008 | D20: 0.1062541275 | E20: 0.0104443542 | F20: 0.006124539988 | G20: 0.03031203733 | H20: 0.06313551203 | I20: 0.008392771913 | J20: 0.0007846483461 | K20: 0.0005812648043 | L20: 0.002729282665 | M20: 0.0002375616967 | N20: 5.887437525e-05 | O20: 9.635774438e-06 | P20: 3.206708513e-06 | Q20: 7.68179886e-06 | R20: 1
A21: =A14 -> Carry-over amounts | B21: Volume and Customer No | C21: =IF($B21=$A$26,C$26/SUM($C$26:$Q$26),IF($B21=$A$27,C$27/SUM($C$27:$Q$27),C$28/SUM($C$28:$Q$28))) -> 0.7709245008 | D21: 0.1062541275 | E21: 0.0104443542 | F21: 0.006124539988 | G21: 0.03031203733 | H21: 0.06313551203 | I21: 0.008392771913 | J21: 0.0007846483461 | K21: 0.0005812648043 | L21: 0.002729282665 | M21: 0.0002375616967 | N21: 5.887437525e-05 | O21: 9.635774438e-06 | P21: 3.206708513e-06 | Q21: 7.68179886e-06 | R21: 1
A22: =A15 -> Benchmark Tax liability | B22: Volume and Customer No | C22: 0.7709245008 | D22: 0.1062541275 | E22: 0.0104443542 | F22: 0.006124539988 | G22: 0.03031203733 | H22: 0.06313551203 | I22: 0.008392771913 | J22: 0.0007846483461 | K22: 0.0005812648043 | L22: 0.002729282665 | M22: 0.0002375616967 | N22: 5.887437525e-05 | O22: 9.635774438e-06 | P22: 3.206708513e-06 | Q22: 7.68179886e-06 | R22: 1
A24: Allocators (Percentages) | B24: Total | C24: =C$17 -> Tariff R: Res Central | D24: =D$17 -> Tariff R: Res North | E24: Tariff R: Res MV (Vic) | F24: Tariff R: Res Bairnsdale | G24: Tariff R: Res Albury | H24: Tariff C: Non- Res Central | I24: Tariff C: Non- Res North | J24: Tariff C: Non- Res MV (Vic) | K24: Tariff C: Non- Res Bairnsdale | L24: Tariff C: Non- Res Albury | M24: ='General Inputs'!B28 -> Tariff D: Central | N24: ='General Inputs'!B29 -> Tariff D: North | O24: ='General Inputs'!B30 -> Tariff D: MV (Vic) | P24: ='General Inputs'!B31 -> Tariff D: Bairnsdale | Q24: ='General Inputs'!B32 -> Tariff D: Albury | R24: Total
A25: Assets | B25: =SUM(C25:Q25) -> 0.02089941108 | M25: ='DORC Calculations'!B14/'DORC Calculations'!J5 -> 0.01423220974 | N25: ='DORC Calculations'!B15/'DORC Calculations'!J5 -> 0.005992509363 | O25: ='DORC Calculations'!B16/'DORC Calculations'!J5 -> 0.000234082397 | P25: ='DORC Calculations'!B17/'DORC Calculations'!J5 -> 0.0001 | Q25: ='DORC Calculations'!C17/'DORC Calculations'!K5 -> 0.0003406095835 | R25: =SUM(C25:Q25) -> 0.02089941108
A26: Customer Number | B26: =SUM(C26:Q26) -> 1 | C26: =C42/SUM($C$42:$Q$42) -> 0.8018649055 | D26: =D42/SUM($C$42:$Q$42) -> 0.1133943815 | E26: 0.01173525129 | F26: 0.00678597479 | G26: 0.03184960021 | H26: 0.02755227715 | I26: 0.0044842968 | J26: 0.0005012985032 | K26: 0.000176109937 | L26: 0.001276237019 | M26: 0.0002876323917 | N26: =N42/SUM($C$42:$Q$42) -> 6.875223902e-05 | O26: 9.5869656e-06 | P26: =P42/SUM($C$42:$Q$42) -> 4.108699543e-06 | Q26: 9.5869656e-06 | R26: =SUM(C26:Q26) -> 1
A27: Volume - Total | B27: =SUM(C27:Q27) -> 1 | C27: =C43/SUM($C$43:$Q$43) -> 0.6781032868 | D27: =D43/SUM($C$43:$Q$43) -> 0.08483336553 | E27: 0.006571662933 | F27: 0.004140235582 | G27: 0.02569934871 | H27: =H43/SUM($C$43:$Q$43) -> 0.1698852167 | I27: 0.02011819725 | J27: 0.001634697875 | K27: 0.001796729406 | L27: 0.007088419601 | M27: 8.734961172e-05 | N27: 2.924078397e-05 | O27: 9.782200954e-06 | P27: 5.00735424e-07 | Q27: 1.966298642e-06 | R27: 1
A28: Volume and Customer No | B28: 1 | C28: =$B$29*C26+$B$30*C27 -> 0.7709245008 | D28: =$B$29*D26+$B$30*D27 -> 0.1062541275 | E28: 0.0104443542 | F28: 0.006124539988 | G28: 0.03031203733 | H28: 0.06313551203 | I28: =$B$29*I26+$B$30*I27 -> 0.008392771913 | J28: 0.0007846483461 | K28: 0.0005812648043 | L28: 0.002729282665 | M28: 0.0002375616967 | N28: 5.887437525e-05 | O28: 9.635774438e-06 | P28: =$B$29*P26+$B$30*P27 -> 3.206708513e-06 | Q28: 7.68179886e-06 | R28: 1
A29: % Customer | B29: 0.75
A30: % Volume | B30: 0.25
A31: Ancillary Reference Services
A32: Disconnection | B32: 0.2052168646
A33: Reconnection | B33: 0.1051704481
A34: Special Meter Read - Metropolitan | B34: 0.3384380214
A35: Special Meter Read - Non Metropolitan | B35: 0.1380216048
A36: Meter Removal | B36: 0.04157463468
A37: Meter Reinstallation | B37: 0.1683142786
A38: Meter and Gas Installation Test | B38: 0.003264147825
A40: Allocators (Amounts) | C40: =C$24 -> Tariff R: Res Central | D40: =D$24 -> Tariff R: Res North | E40: Tariff R: Res MV (Vic) | F40: Tariff R: Res Bairnsdale | G40: Tariff R: Res Albury | H40: Tariff C: Non- Res Central | I40: Tariff C: Non- Res North | J40: Tariff C: Non- Res MV (Vic) | K40: Tariff C: Non- Res Bairnsdale | L40: Tariff C: Non- Res Albury | M40: =M$24 -> Tariff D: Central | N40: =N$24 -> Tariff D: North | O40: =O$24 -> Tariff D: MV (Vic) | P40: =P$24 -> Tariff D: Bairnsdale | Q40: =Q$24 -> Tariff D: Albury
A41: Assets | C41: 0 | F41: 0 | M41: ='DORC Calculations'!B14 -> 28116236.78 | N41: ='DORC Calculations'!B15 -> 11838415.49 | O41: ='DORC Calculations'!B16 -> 462438.1049 | P41: ='DORC Calculations'!B17 -> 197553.5584 | Q41: ='DORC Calculations'!C17 -> 197553.5584
A42: Customer Number | C42: =AVERAGE('Connection Numbers Inputs'!B$4:B$8) -> 585488.1067 | D42: =AVERAGE('Connection Numbers Inputs'!C$4:C$8) -> 82795.81923 | E42: =AVERAGE('Connection Numbers Inputs'!D$4:D$8) -> 8568.588065 | F42: =AVERAGE('Connection Numbers Inputs'!E$4:E$8) -> 4954.834044 | G42: =AVERAGE('Connection Numbers Inputs'!F$4:F$8) -> 23255.24162 | H42: =AVERAGE('Connection Numbers Inputs'!G$4:G$8) -> 20117.51665 | I42: =AVERAGE('Connection Numbers Inputs'!H$4:H$8) -> 3274.245357 | J42: =AVERAGE('Connection Numbers Inputs'!I$4:I$8) -> 366.0271319 | K42: =AVERAGE('Connection Numbers Inputs'!J$4:J$8) -> 128.5880862 | L42: =AVERAGE('Connection Numbers Inputs'!K$4:K$8) -> 931.8547189 | M42: =AVERAGE('Connection Numbers Inputs'!L$4:L$8) -> 210.017103 | N42: =AVERAGE('Connection Numbers Inputs'!M$4:M$8) -> 50.2 | O42: =AVERAGE('Connection Numbers Inputs'!N$4:N$8) -> 7 | P42: =AVERAGE('Connection Numbers Inputs'!O$4:O$8) -> 3 | Q42: =AVERAGE('Connection Numbers Inputs'!P$4:P$8) -> 7
A43: Volume - Total | C43: =AVERAGE('Volume Inputs'!B$173:B$177) -> 26280974.42 | D43: =AVERAGE('Volume Inputs'!C$173:C$177) -> 3287852.386 | E43: =AVERAGE('Volume Inputs'!D$173:D$177) -> 254695.2784 | F43: =AVERAGE('Volume Inputs'!E$173:E$177) -> 160461.4334 | G43: =AVERAGE('Volume Inputs'!F$173:F$177) -> 996019.2481 | H43: =AVERAGE('Volume Inputs'!G$173:G$177) -> 6584172.529 | I43: =AVERAGE('Volume Inputs'!H$173:H$177) -> 779712.8218 | J43: =AVERAGE('Volume Inputs'!I$173:I$177) -> 63355.3234 | K43: =AVERAGE('Volume Inputs'!J$173:J$177) -> 69635.11381 | L43: =AVERAGE('Volume Inputs'!K$173:K$177) -> 274723.0073 | M43: =AVERAGE('Volume Inputs'!L$173:L$177) -> 3385.37352 | N43: =AVERAGE('Volume Inputs'!M$173:M$177) -> 1133.27322 | O43: =AVERAGE('Volume Inputs'!N$173:N$177) -> 379.1248 | P43: =AVERAGE('Volume Inputs'!O$173:O$177) -> 19.4068 | Q43: =AVERAGE('Volume Inputs'!P$173:P$177) -> 76.20704
A45: Calculation of Consumption (GJ)
A46: Total MDQ | C46: Tariff R: Res Central | D46: Tariff R: Res North | E46: Tariff R: Res MV (Vic) | F46: Tariff R: Res Bairnsdale | G46: Tariff R: Res Albury | H46: Tariff C: Non- Res Central | I46: Tariff C: Non- Res North | J46: Tariff C: Non- Res MV (Vic) | K46: Tariff C: Non- Res Bairnsdale | L46: Tariff C: Non- Res Albury | M46: Tariff D: Central | N46: Tariff D: North | O46: Tariff D: MV (Vic) | P46: Tariff D: Bairnsdale | Q46: =Q40 -> Tariff D: Albury
A47: Demand Tariff | C47: Non-demand | D47: Non-demand | E47: Non-demand | F47: Non-demand | G47: Non-demand | H47: Non-demand | I47: Non-demand | J47: Non-demand | K47: Non-demand | L47: Non-demand | M47: Demand | N47: Demand | O47: Demand | P47: Demand | Q47: Demand
A48: ='Connection Numbers Inputs'!A4 -> 2018/19 | M48: =IF($M47="Demand",'Volume Inputs'!L173,0) -> 3486 | N48: =IF($M47="Demand",'Volume Inputs'!M173,0) -> 1101 | O48: =IF($M47="Demand",'Volume Inputs'!N173,0) -> 373 | P48: =IF($M47="Demand",'Volume Inputs'!O173,0) -> 19 | Q48: =IF($M47="Demand",'Volume Inputs'!P173,0) -> 75
A49: ='Connection Numbers Inputs'!A5 -> 2019/20 | M49: =IF($M47="Demand",'Volume Inputs'!L174,0) -> 3344 | N49: =IF($M47="Demand",'Volume Inputs'!M174,0) -> 1212 | O49: =IF($M47="Demand",'Volume Inputs'!N174,0) -> 377 | P49: =IF($M47="Demand",'Volume Inputs'!O174,0) -> 17 | Q49: =IF($M47="Demand",'Volume Inputs'!P174,0) -> 105
A50: ='Connection Numbers Inputs'!A6 -> 2020/21 | M50: =IF($M47="Demand",'Volume Inputs'!L175,0) -> 3275 | N50: =IF($M47="Demand",'Volume Inputs'!M175,0) -> 1162 | O50: =IF($M47="Demand",'Volume Inputs'!N175,0) -> 380 | P50: =IF($M47="Demand",'Volume Inputs'!O175,0) -> 20 | Q50: =IF($M47="Demand",'Volume Inputs'!P175,0) -> 68
A51: ='Connection Numbers Inputs'!A7 -> 2021-22 | M51: =IF($M47="Demand",'Volume Inputs'!L176,0) -> 3356 | N51: =IF($M47="Demand",'Volume Inputs'!M176,0) -> 1091.3 | O51: =IF($M47="Demand",'Volume Inputs'!N176,0) -> 380 | P51: =IF($M47="Demand",'Volume Inputs'!O176,0) -> 20 | Q51: =IF($M47="Demand",'Volume Inputs'!P176,0) -> 68
A52: ='Connection Numbers Inputs'!A8 -> 2022-23 | M52: =IF($M47="Demand",'Volume Inputs'!L177,0) -> 3465.8676 | N52: =IF($M47="Demand",'Volume Inputs'!M177,0) -> 1100.0661 | O52: =IF($M47="Demand",'Volume Inputs'!N177,0) -> 385.624 | P52: =IF($M47="Demand",'Volume Inputs'!O177,0) -> 21.034 | Q52: =IF($M47="Demand",'Volume Inputs'!P177,0) -> 65.0352
A53: ='Connection Numbers Inputs'!A9 -> 2023-24 | M53: =IF($M47="Demand",'Volume Inputs'!L178,0) -> 3433.740631 | N53: =IF($M47="Demand",'Volume Inputs'!M178,0) -> 1099.25178 | O53: =IF($M47="Demand",'Volume Inputs'!N178,0) -> 391.3312352 | P53: =IF($M47="Demand",'Volume Inputs'!O178,0) -> 22.1214578 | Q53: =IF($M47="Demand",'Volume Inputs'!P178,0) -> 62.19966528
A54: ='Connection Numbers Inputs'!A10 -> 2024-25 | M54: =IF($M47="Demand",'Volume Inputs'!L179,0) -> 3401.614647 | N54: =IF($M47="Demand",'Volume Inputs'!M179,0) -> 1076.39222 | O54: =IF($M47="Demand",'Volume Inputs'!N179,0) -> 397.1229375 | P54: =IF($M47="Demand",'Volume Inputs'!O179,0) -> 23.26513717 | Q54: =IF($M47="Demand",'Volume Inputs'!P179,0) -> 59.48775987
A55: ='Connection Numbers Inputs'!A11 -> 2025-26 | M55: =IF($M47="Demand",'Volume Inputs'!L180,0) -> 3369.485035 | N55: =IF($M47="Demand",'Volume Inputs'!M180,0) -> 1042.352118 | O55: =IF($M47="Demand",'Volume Inputs'!N180,0) -> 403.000357 | P55: =IF($M47="Demand",'Volume Inputs'!O180,0) -> 24.46794476 | Q55: =IF($M47="Demand",'Volume Inputs'!P180,0) -> 56.89409354
A56: ='Connection Numbers Inputs'!A12 -> 2026-27 | M56: =IF($M47="Demand",'Volume Inputs'!L181,0) -> 3337.34701 | N56: =IF($M47="Demand",'Volume Inputs'!M181,0) -> 1062.019696 | O56: =IF($M47="Demand",'Volume Inputs'!N181,0) -> 408.9647622 | P56: =IF($M47="Demand",'Volume Inputs'!O181,0) -> 25.7329375 | Q56: =IF($M47="Demand",'Volume Inputs'!P181,0) -> 54.41351106
A57: ='Connection Numbers Inputs'!A13 -> 2027-28 | M57: =IF($M47="Demand",'Volume Inputs'!L182,0) -> 3305.195606 | N57: =IF($M47="Demand",'Volume Inputs'!M182,0) -> 1049.903197 | O57: =IF($M47="Demand",'Volume Inputs'!N182,0) -> 415.0174407 | P57: =IF($M47="Demand",'Volume Inputs'!O182,0) -> 27.06333037 | Q57: =IF($M47="Demand",'Volume Inputs'!P182,0) -> 52.04108198
A59: Calculated Consumption | C59: =C$24 -> Tariff R: Res Central | D59: =D$24 -> Tariff R: Res North | E59: Tariff R: Res MV (Vic) | F59: Tariff R: Res Bairnsdale | G59: Tariff R: Res Albury | H59: Tariff C: Non- Res Central | I59: Tariff C: Non- Res North | J59: Tariff C: Non- Res MV (Vic) | K59: Tariff C: Non- Res Bairnsdale | L59: Tariff C: Non- Res Albury | M59: =M$24 -> Tariff D: Central | N59: =N$24 -> Tariff D: North | O59: =O$24 -> Tariff D: MV (Vic) | P59: =P$24 -> Tariff D: Bairnsdale | Q59: =Q$24 -> Tariff D: Albury
A60: =A48 -> 2018/19 | M60: 14174282.31 | N60: 5024033 | O60: 372011 | P60: 82914.34027 | Q60: =Q48/$B$73*$B$74 -> 270000
A61: =A49 -> 2019/20 | M61: 13157251.24 | N61: 4850671 | O61: 361271 | P61: 80621.49567 | Q61: 378000
A62: 2020/21 | M62: 14040124.17 | N62: 4928736 | O62: 376736 | P62: 107846.5937 | Q62: 244800
A63: 2021-22 | M63: =M51/$B$73*$B$74 -> 12081600 | N63: =N51/$B$73*$B$74 -> 3928680 | O63: =O51/$B$73*$B$74 -> 1368000 | P63: =P51/$B$73*$B$74 -> 72000 | Q63: =Q51/$B$73*$B$74 -> 244800
A64: 2022-23 | M64: =M52/$B$73*$B$74 -> 12477123.36 | N64: 3960237.96 | O64: 1388246.4 | P64: 75722.4 | Q64: =Q52/$B$73*$B$74 -> 234126.72
A65: 2023-24 | M65: =M53/$B$73*$B$74 -> 12361466.27 | N65: 3957306.409 | O65: 1408792.447 | P65: 79637.24808 | Q65: =Q53/$B$73*$B$74 -> 223918.795
A66: 2024-25 | M66: =M54/$B$73*$B$74 -> 12245812.73 | N66: 3875011.99 | O66: 1429642.575 | P66: 83754.49381 | Q66: =Q54/$B$73*$B$74 -> 214155.9355
A67: 2025-26 | M67: =M55/$B$73*$B$74 -> 12130146.13 | N67: 3752467.623 | O67: 1450801.285 | P67: 88084.60114 | Q67: =Q55/$B$73*$B$74 -> 204818.7368
A68: 2026-27 | M68: =M56/$B$73*$B$74 -> 12014449.24 | N68: 3823270.904 | O68: 1472273.144 | P68: 92638.57501 | Q68: =Q56/$B$73*$B$74 -> 195888.6398
A69: 2027-28 | M69: =M57/$B$73*$B$74 -> 11898704.18 | N69: 3779651.508 | O69: 1494062.787 | P69: 97427.98934 | Q69: =Q57/$B$73*$B$74 -> 187347.8951
A70: Average | M70: =AVERAGE(M60:M69) -> 12658095.96 | N70: 4188006.64 | O70: =AVERAGE(O60:O69) -> 1112183.664 | P70: 86064.7737 | Q70: =AVERAGE(Q60:Q69) -> 239785.6722
A72: Other Calculation of Consumption Inputs
A73: Load factor | B73: 1.3
A74: Days x Hours | B74: =B75*B76 -> 4680
A75: Days | B75: 260
A76: Hours | B76: 18

Sheet PTRM Inputs
A1: PTRM Inputs
A3: Building block components ($M NOMINAL) | B3: ='Tariff Inputs'!G4 -> 2023-24 | C3: ='Tariff Inputs'!H4 -> 2024-25 | D3: ='Tariff Inputs'!I4 -> 2025-26 | E3: ='Tariff Inputs'!J4 -> 2026-27 | F3: ='Tariff Inputs'!K4 -> 2027-28 | G3: TOTAL
A5: Return on Capital | B5: 101.9107231 | C5: 106.9433252 | D5: 110.866364 | E5: 115.0479876 | F5: 118.2773576 | G5: =SUM(B5:F5) -> 553.0457575
A6: Return of Capital (regulatory depreciation) | B6: 34.79714079 | C6: 40.06655236 | D6: 46.37932133 | E6: 54.07077914 | F6: 61.68323221 | G6: =SUM(B6:F6) -> 236.9970258
A7: Operating Expenditure | B7: 98.46658424 | C7: 104.0829201 | D7: 107.5267267 | E7: 113.7728911 | F7: 117.1340771 | G7: =SUM(B7:F7) -> 540.9831991
A8: Revenue Adjustments | B8: -12.66795623 | C8: -16.08223289 | D8: -17.23240169 | E8: -16.18334788 | F8: -15.5845844 | G8: -77.75052309
A9: Net Tax Allowance | B9: 4.789617553 | C9: 2.917328161 | D9: 2.407630792 | E9: 3.257387622 | F9: 2.831981561 | G9: 16.20394569
A10: TOTAL REVENUE | B10: 227.2961094 | C10: 237.9278929 | D10: 249.9476411 | E10: 269.9656976 | F10: 284.3420641 | G10: =SUM(B10:F10) -> 1269.479405
A11: TOTAL REVENUE (SMOOTHED) | B11: 224.8628883 | C11: 236.1142126 | D11: 248.9412817 | E11: 261.5835053 | F11: 275.4283524 | G11: =SUM(B11:F11) -> 1246.93024
A14: PTRM Opening RAB 2023/24
A15: Asset Class Name (Victoria and Albury combined) | B15: Opening Asset Value
A16: Mains & Services | B16: 1821.180423
A17: Meters | B17: 91.80249503
A18: Buildings | B18: 4.579314525
A19: SCADA | B19: 2.751852847
A20: Computer Equipment | B20: 6.148662741
A21: Other Assets | B21: 47.69485815
A22: Equity Raising Costs | B22: 1.377977704
A23: Land | B23: 0

Sheet FDC Calculations
A1: Fully Distributed Cost Calculations
A3: Building Block Components - Total ($M NOMINAL) | B3: ='Tariff Inputs'!G4 -> 2023-24 | C3: ='Tariff Inputs'!H4 -> 2024-25 | D3: ='Tariff Inputs'!I4 -> 2025-26 | E3: ='Tariff Inputs'!J4 -> 2026-27 | F3: ='Tariff Inputs'!K4 -> 2027-28 | G3: TOTAL
A4: Return on capital | B4: ='PTRM Inputs'!B5 -> 101.9107231 | C4: ='PTRM Inputs'!C5 -> 106.9433252 | D4: ='PTRM Inputs'!D5 -> 110.866364 | E4: ='PTRM Inputs'!E5 -> 115.0479876 | F4: ='PTRM Inputs'!F5 -> 118.2773576 | G4: ='PTRM Inputs'!G5 -> 553.0457575
A5: Return of capital | B5: ='PTRM Inputs'!B6 -> 34.79714079 | C5: ='PTRM Inputs'!C6 -> 40.06655236 | D5: ='PTRM Inputs'!D6 -> 46.37932133 | E5: ='PTRM Inputs'!E6 -> 54.07077914 | F5: ='PTRM Inputs'!F6 -> 61.68323221 | G5: ='PTRM Inputs'!G6 -> 236.9970258
A6: O&M | B6: ='PTRM Inputs'!B7 -> 98.46658424 | C6: ='PTRM Inputs'!C7 -> 104.0829201 | D6: ='PTRM Inputs'!D7 -> 107.5267267 | E6: ='PTRM Inputs'!E7 -> 113.7728911 | F6: ='PTRM Inputs'!F7 -> 117.1340771 | G6: ='PTRM Inputs'!G7 -> 540.9831991
A7: Carry-over amounts | B7: ='PTRM Inputs'!B8 -> -12.66795623 | C7: ='PTRM Inputs'!C8 -> -16.08223289 | D7: ='PTRM Inputs'!D8 -> -17.23240169 | E7: ='PTRM Inputs'!E8 -> -16.18334788 | F7: ='PTRM Inputs'!F8 -> -15.5845844 | G7: ='PTRM Inputs'!G8 -> -77.75052309
A8: Benchmark Tax liability | B8: ='PTRM Inputs'!B9 -> 4.789617553 | C8: ='PTRM Inputs'!C9 -> 2.917328161 | D8: ='PTRM Inputs'!D9 -> 2.407630792 | E8: ='PTRM Inputs'!E9 -> 3.257387622 | F8: ='PTRM Inputs'!F9 -> 2.831981561 | G8: ='PTRM Inputs'!G9 -> 16.20394569
A9: Total Revenue | B9: =SUM(B4:B8) -> 227.2961094 | C9: =SUM(C4:C8) -> 237.9278929 | D9: =SUM(D4:D8) -> 249.9476411 | E9: =SUM(E4:E8) -> 269.9656976 | F9: =SUM(F4:F8) -> 284.3420641 | G9: =SUM(B9:F9) -> 1269.479405
A11: Building Block Components - Total for Reference Services ($M NOMINAL) | B11: =B$3 -> 2023-24 | C11: =C$3 -> 2024-25 | D11: 2025-26 | E11: 2026-27 | F11: 2027-28 | G11: TOTAL
A12: Return on capital | B12: ='PTRM Inputs'!B5-('Cost allocators'!$B$5*B$9*'Cost allocators'!$B6) -> 101.9107231 | C12: ='PTRM Inputs'!C5-('Cost allocators'!$B$5*C$9*'Cost allocators'!$B6) -> 106.9433252 | D12: ='PTRM Inputs'!D5-('Cost allocators'!$B$5*D$9*'Cost allocators'!$B6) -> 110.866364 | E12: ='PTRM Inputs'!E5-('Cost allocators'!$B$5*E$9*'Cost allocators'!$B6) -> 115.0479876 | F12: ='PTRM Inputs'!F5-('Cost allocators'!$B$5*F$9*'Cost allocators'!$B6) -> 118.2773576 | G12: =SUM(B12:F12) -> 553.0457575
A13: Return of capital | B13: ='PTRM Inputs'!B6-('Cost allocators'!$B$5*B$9*'Cost allocators'!$B7) -> 34.79714079 | C13: ='PTRM Inputs'!C6-('Cost allocators'!$B$5*C$9*'Cost allocators'!$B7) -> 40.06655236 | D13: ='PTRM Inputs'!D6-('Cost allocators'!$B$5*D$9*'Cost allocators'!$B7) -> 46.37932133 | E13: ='PTRM Inputs'!E6-('Cost allocators'!$B$5*E$9*'Cost allocators'!$B7) -> 54.07077914 | F13: ='PTRM Inputs'!F6-('Cost allocators'!$B$5*F$9*'Cost allocators'!$B7) -> 61.68323221 | G13: =SUM(B13:F13) -> 236.9970258
A14: O&M | B14: ='PTRM Inputs'!B7-('Cost allocators'!$B$5*B$9*'Cost allocators'!$B8) -> 94.57106269 | C14: ='PTRM Inputs'!C7-('Cost allocators'!$B$5*C$9*'Cost allocators'!$B8) -> 100.0051854 | D14: ='PTRM Inputs'!D7-('Cost allocators'!$B$5*D$9*'Cost allocators'!$B8) -> 103.2429911 | E14: ='PTRM Inputs'!E7-('Cost allocators'!$B$5*E$9*'Cost allocators'!$B8) -> 109.1460755 | F14: ='PTRM Inputs'!F7-('Cost allocators'!$B$5*F$9*'Cost allocators'!$B8) -> 112.2608716 | G14: 519.2261863
A15: Carry-over amounts | B15: ='PTRM Inputs'!B8 -> -12.66795623 | C15: ='PTRM Inputs'!C8 -> -16.08223289 | D15: ='PTRM Inputs'!D8 -> -17.23240169 | E15: ='PTRM Inputs'!E8 -> -16.18334788 | F15: ='PTRM Inputs'!F8 -> -15.5845844 | G15: -77.75052309
A16: Benchmark Tax liability | B16: ='PTRM Inputs'!B9 -> 4.789617553 | C16: ='PTRM Inputs'!C9 -> 2.917328161 | D16: ='PTRM Inputs'!D9 -> 2.407630792 | E16: ='PTRM Inputs'!E9 -> 3.257387622 | F16: ='PTRM Inputs'!F9 -> 2.831981561 | G16: 16.20394569
A17: Total Revenue | B17: =SUM(B12:B16) -> 223.4005879 | C17: =SUM(C12:C16) -> 233.8501582 | D17: =SUM(D12:D16) -> 245.6639056 | E17: =SUM(E12:E16) -> 265.338882 | F17: =SUM(F12:F16) -> 279.4688586 | G17: 1247.722392
A19: Building Block Components - Total for Ancillary Reference Services ($M NOMINAL) | B19: =B$3 -> 2023-24 | C19: =C$3 -> 2024-25 | D19: 2025-26 | E19: 2026-27 | F19: 2027-28 | G19: TOTAL
A20: Return on capital | B20: =('Cost allocators'!$B$5*B$9*'Cost allocators'!$B6) -> 0 | C20: =('Cost allocators'!$B$5*C$9*'Cost allocators'!$B6) -> 0 | D20: =('Cost allocators'!$B$5*D$9*'Cost allocators'!$B6) -> 0 | E20: =('Cost allocators'!$B$5*E$9*'Cost allocators'!$B6) -> 0 | F20: =('Cost allocators'!$B$5*F$9*'Cost allocators'!$B6) -> 0 | G20: =SUM(B20:F20) -> 0
A21: Return of capital | B21: =('Cost allocators'!$B$5*B$9*'Cost allocators'!$B7) -> 0 | C21: =('Cost allocators'!$B$5*C$9*'Cost allocators'!$B7) -> 0 | D21: =('Cost allocators'!$B$5*D$9*'Cost allocators'!$B7) -> 0 | E21: =('Cost allocators'!$B$5*E$9*'Cost allocators'!$B7) -> 0 | F21: =('Cost allocators'!$B$5*F$9*'Cost allocators'!$B7) -> 0 | G21: =SUM(B21:F21) -> 0
A22: O&M | B22: =('Cost allocators'!$B$5*B$9*'Cost allocators'!$B8) -> 3.895521548 | C22: =('Cost allocators'!$B$5*C$9*'Cost allocators'!$B8) -> 4.077734704 | D22: =('Cost allocators'!$B$5*D$9*'Cost allocators'!$B8) -> 4.283735538 | E22: =('Cost allocators'!$B$5*E$9*'Cost allocators'!$B8) -> 4.626815631 | F22: =('Cost allocators'!$B$5*F$9*'Cost allocators'!$B8) -> 4.873205442 | G22: 21.75701286
A23: Carry-over amounts | B23: =('Cost allocators'!$B$5*B$9*'Cost allocators'!$B9) -> 0 | C23: =('Cost allocators'!$B$5*C$9*'Cost allocators'!$B9) -> 0 | D23: =('Cost allocators'!$B$5*D$9*'Cost allocators'!$B9) -> 0 | E23: =('Cost allocators'!$B$5*E$9*'Cost allocators'!$B9) -> 0 | F23: =('Cost allocators'!$B$5*F$9*'Cost allocators'!$B9) -> 0 | G23: 0
A24: Benchmark Tax liability | B24: =('Cost allocators'!$B$5*B$9*'Cost allocators'!$B10) -> 0 | C24: =('Cost allocators'!$B$5*C$9*'Cost allocators'!$B10) -> 0 | D24: =('Cost allocators'!$B$5*D$9*'Cost allocators'!$B10) -> 0 | E24: =('Cost allocators'!$B$5*E$9*'Cost allocators'!$B10) -> 0 | F24: =('Cost allocators'!$B$5*F$9*'Cost allocators'!$B10) -> 0 | G24: 0
A25: Total Revenue | B25: =SUM(B20:B24) -> 3.895521548 | C25: =SUM(C20:C24) -> 4.077734704 | D25: =SUM(D20:D24) -> 4.283735538 | E25: =SUM(E20:E24) -> 4.626815631 | F25: =SUM(F20:F24) -> 4.873205442 | G25: =SUM(B25:F25) -> 21.75701286
A27: Building Block Components Tariff V (Total) ($M NOMINAL) | B27: =B$3 -> 2023-24 | C27: =C$3 -> 2024-25 | D27: 2025-26 | E27: 2026-27 | F27: 2027-28 | G27: TOTAL
A28: =A12 -> Return on capital | B28: =B12-B116 -> 99.78084899 | C28: =C12-C116 -> 104.7082726 | D28: 108.5493223 | E28: 112.6435524 | F28: 115.8054305 | G28: =SUM(B28:F28) -> 541.4874268
A29: =A13 -> Return of capital | B29: =B13-B117 -> 34.06990104 | C29: 39.22918501 | D29: 45.41002082 | E29: 52.9407317 | F29: 60.39408898 | G29: 232.0439275
A30: =A14 -> O&M | B30: =B14-B118 -> 94.54108741 | C30: 99.9734877 | D30: 103.2102672 | E30: 109.1114805 | F30: 112.2252894 | G30: 519.0616122
A31: =A15 -> Carry-over amounts | B31: -12.66394099 | C31: -16.07713546 | D31: -17.2269397 | E31: -16.1782184 | F31: -15.5796447 | G31: -77.72587925
A32: =A16 -> Benchmark Tax liability | B32: 4.689517367 | C32: 2.856357721 | D32: 2.357312727 | E32: 3.189310139 | F32: 2.772794814 | G32: 15.86529277
A33: Total Revenue | B33: =SUM(B28:B32) -> 220.4174138 | C33: =SUM(C28:C32) -> 230.6901676 | D33: =SUM(D28:D32) -> 242.2999833 | E33: =SUM(E28:E32) -> 261.7068563 | F33: =SUM(F28:F32) -> 275.617959 | G33: 1230.73238
A35: Building Block Components Tariff V: Res Central ($M NOMINAL) | B35: =B$3 -> 2023-24 | C35: =C$3 -> 2024-25 | D35: 2025-26 | E35: 2026-27 | F35: 2027-28 | G35: TOTAL
A36: =A28 -> Return on capital | B36: ='Cost allocators'!$C$18*B$28 -> 76.9235012 | C36: ='Cost allocators'!$C$18*C$28 -> 80.72217281 | D36: ='Cost allocators'!$C$18*D$28 -> 83.68333209 | E36: ='Cost allocators'!$C$18*E$28 -> 86.83967443 | F36: ='Cost allocators'!$C$18*F$28 -> 89.27724371 | G36: =SUM(B36:F36) -> 417.4459242
A37: =A29 -> Return of capital | B37: ='Cost allocators'!$C$19*B$29 -> 26.26532145 | C37: ='Cost allocators'!$C$19*C$29 -> 30.24273987 | D37: ='Cost allocators'!$C$19*D$29 -> 35.00769764 | E37: ='Cost allocators'!$C$19*E$29 -> 40.81330716 | F37: ='Cost allocators'!$C$19*F$29 -> 46.5592829 | G37: 178.888349
A38: =A30 -> O&M | B38: ='Cost allocators'!$C$20*B$30 -> 72.88404062 | C38: ='Cost allocators'!$C$20*C$30 -> 77.0720111 | D38: ='Cost allocators'!$C$20*D$30 -> 79.56732372 | E38: ='Cost allocators'!$C$20*E$30 -> 84.11671362 | F38: ='Cost allocators'!$C$20*F$30 -> 86.51722519 | G38: 400.1573142
A39: =A31 -> Carry-over amounts | B39: ='Cost allocators'!$C$21*B$31 -> -9.762942383 | C39: ='Cost allocators'!$C$21*C$31 -> -12.39425763 | D39: ='Cost allocators'!$C$21*D$31 -> -13.28066989 | E39: ='Cost allocators'!$C$21*E$31 -> -12.47218495 | F39: ='Cost allocators'!$C$21*F$31 -> -12.01072982 | G39: -59.92078467
A40: =A32 -> Benchmark Tax liability | B40: ='Cost allocators'!$C$22*B$32 -> 3.615263835 | C40: ='Cost allocators'!$C$22*C$32 -> 2.20203615 | D40: ='Cost allocators'!$C$22*D$32 -> 1.817310137 | E40: ='Cost allocators'!$C$22*E$32 -> 2.458717327 | F40: ='Cost allocators'!$C$22*F$32 -> 2.137615458 | G40: 12.23094291
A41: Total Revenue | B41: =SUM(B36:B40) -> 169.9251847 | C41: =SUM(C36:C40) -> 177.8447023 | D41: =SUM(D36:D40) -> 186.7949937 | E41: =SUM(E36:E40) -> 201.7562276 | F41: =SUM(F36:F40) -> 212.4806374 | G41: 948.8017458
A43: Building Block Components Tariff V: Res North ($M NOMINAL) | B43: =B$3 -> 2023-24 | C43: =C$3 -> 2024-25 | D43: 2025-26 | E43: 2026-27 | F43: 2027-28 | G43: TOTAL
A44: =A20 -> Return on capital | B44: ='Cost allocators'!$D$18*B$28 -> 10.60212705 | C44: ='Cost allocators'!$D$18*C$28 -> 11.12568615 | D44: ='Cost allocators'!$D$18*D$28 -> 11.53381353 | E44: ='Cost allocators'!$D$18*E$28 -> 11.96884239 | F44: ='Cost allocators'!$D$18*F$28 -> 12.30480498 | G44: =SUM(B44:F44) -> 57.53527411
A45: =A21 -> Return of capital | B45: ='Cost allocators'!$D$19*B$29 -> 3.62006761 | C45: ='Cost allocators'!$D$19*C$29 -> 4.168262827 | D45: ='Cost allocators'!$D$19*D$29 -> 4.825002144 | E45: ='Cost allocators'!$D$19*E$29 -> 5.625171257 | F45: ='Cost allocators'!$D$19*F$29 -> 6.417121233 | G45: 24.65562507
A46: =A22 -> O&M | B46: ='Cost allocators'!$D$20*B$30 -> 10.04538076 | C46: ='Cost allocators'!$D$20*C$30 -> 10.62259571 | D46: ='Cost allocators'!$D$20*D$30 -> 10.96651689 | E46: ='Cost allocators'!$D$20*E$30 -> 11.59354516 | F46: ='Cost allocators'!$D$20*F$30 -> 11.92440021 | G46: 55.15243874
A47: =A23 -> Carry-over amounts | B47: ='Cost allocators'!$D$21*B$31 -> -1.345596001 | C47: ='Cost allocators'!$D$21*C$31 -> -1.708262002 | D47: ='Cost allocators'!$D$21*D$31 -> -1.830433448 | E47: ='Cost allocators'!$D$21*E$31 -> -1.719002481 | F47: ='Cost allocators'!$D$21*F$31 -> -1.655401555 | G47: -8.258695487
A48: =A24 -> Benchmark Tax liability | B48: ='Cost allocators'!$D$22*B$32 -> 0.4982805764 | C48: ='Cost allocators'!$D$22*C$32 -> 0.3034997975 | D48: ='Cost allocators'!$D$22*D$32 -> 0.2504742071 | E48: ='Cost allocators'!$D$22*E$32 -> 0.3388773662 | F48: ='Cost allocators'!$D$22*F$32 -> 0.2946208938 | G48: 1.685752841
A49: Total Revenue | B49: =SUM(B44:B48) -> 23.42026 | C49: =SUM(C44:C48) -> 24.51178249 | D49: =SUM(D44:D48) -> 25.74537333 | E49: =SUM(E44:E48) -> 27.80743369 | F49: =SUM(F44:F48) -> 29.28554576 | G49: 130.7703953
A51: Building Block Components Tariff V: Res MV (Vic) ($M NOMINAL) | B51: =B$3 -> 2023-24 | C51: =C$3 -> 2024-25 | D51: 2025-26 | E51: 2026-27 | F51: 2027-28 | G51: TOTAL
A52: =A28 -> Return on capital | B52: ='Cost allocators'!$E$18*B$28 -> 1.042146529 | C52: ='Cost allocators'!$E$18*C$28 -> 1.093610287 | D52: ='Cost allocators'!$E$18*D$28 -> 1.13372757 | E52: ='Cost allocators'!$E$18*E$28 -> 1.17648916 | F52: ='Cost allocators'!$E$18*F$28 -> 1.209512935 | G52: =SUM(B52:F52) -> 5.655486481
A53: =A29 -> Return of capital | B53: ='Cost allocators'!$E$19*B$29 -> 0.355838114 | C53: ='Cost allocators'!$E$19*C$29 -> 0.4097235032 | D53: ='Cost allocators'!$E$19*D$29 -> 0.4742783417 | E53: ='Cost allocators'!$E$19*E$29 -> 0.5529317534 | F53: ='Cost allocators'!$E$19*F$29 -> 0.6307772569 | G53: 2.423548969
A54: =A30 -> O&M | B54: ='Cost allocators'!$E$20*B$30 -> 0.9874206034 | C54: ='Cost allocators'!$E$20*C$30 -> 1.044158516 | D54: ='Cost allocators'!$E$20*D$30 -> 1.077964588 | E54: ='Cost allocators'!$E$20*E$30 -> 1.139598949 | F54: ='Cost allocators'!$E$20*F$30 -> 1.172120672 | G54: 5.421263329
A55: =A31 -> Carry-over amounts | B55: ='Cost allocators'!$E$21*B$31 -> -0.1322666852 | C55: ='Cost allocators'!$E$21*C$31 -> -0.1679152973 | D55: ='Cost allocators'!$E$21*D$31 -> -0.17992426 | E55: ='Cost allocators'!$E$21*E$31 -> -0.1689710433 | F55: ='Cost allocators'!$E$21*F$31 -> -0.1627193276 | G55: -0.8117966134
A56: =A32 -> Benchmark Tax liability | B56: ='Cost allocators'!$E$22*B$32 -> 0.04897898041 | C56: ='Cost allocators'!$E$22*C$32 -> 0.02983281176 | D56: ='Cost allocators'!$E$22*D$32 -> 0.02462060908 | E56: ='Cost allocators'!$E$22*E$32 -> 0.03331028474 | F56: ='Cost allocators'!$E$22*F$32 -> 0.02896005116 | G56: 0.1657027371
A57: Total Revenue | B57: =SUM(B52:B56) -> 2.302117542 | C57: =SUM(C52:C56) -> 2.409409821 | D57: =SUM(D52:D56) -> 2.530666849 | E57: =SUM(E52:E56) -> 2.733359104 | F57: =SUM(F52:F56) -> 2.878651587 | G57: 12.8542049
A59: Building Block Components Tariff V: Res Bairnsdale ($M NOMINAL) | B59: =B$3 -> 2023-24 | C59: =C$3 -> 2024-25 | D59: 2025-26 | E59: 2026-27 | F59: 2027-28 | G59: TOTAL
A60: =A36 -> Return on capital | B60: ='Cost allocators'!$F$18*B$28 -> 0.6111117997 | C60: ='Cost allocators'!$F$18*C$28 -> 0.6412900029 | D60: ='Cost allocators'!$F$18*D$28 -> 0.664814665 | E60: ='Cost allocators'!$F$18*E$28 -> 0.6898899413 | F60: ='Cost allocators'!$F$18*F$28 -> 0.70925499 | G60: =SUM(B60:F60) -> 3.316361399
A61: =A37 -> Return of capital | B61: ='Cost allocators'!$F$19*B$29 -> 0.2086624713 | C61: ='Cost allocators'!$F$19*C$29 -> 0.2402607123 | D61: ='Cost allocators'!$F$19*D$29 -> 0.2781154884 | E61: ='Cost allocators'!$F$19*E$29 -> 0.3242376283 | F61: ='Cost allocators'!$F$19*F$29 -> 0.369886013 | G61: 1.421162313
A62: =A38 -> O&M | B62: ='Cost allocators'!$F$20*B$30 -> 0.5790206704 | C62: ='Cost allocators'!$F$20*C$30 -> 0.6122916232 | D62: ='Cost allocators'!$F$20*D$30 -> 0.6321154086 | E62: ='Cost allocators'!$F$20*E$30 -> 0.6682576254 | F62: ='Cost allocators'!$F$20*F$30 -> 0.6873282724 | G62: 3.1790136
A63: =A39 -> Carry-over amounts | B63: ='Cost allocators'!$F$21*B$31 -> -0.07756081298 | C63: ='Cost allocators'!$F$21*C$31 -> -0.09846505904 | D63: ='Cost allocators'!$F$21*D$31 -> -0.1055070811 | E63: ='Cost allocators'!$F$21*E$31 -> -0.09908414554 | F63: ='Cost allocators'!$F$21*F$31 -> -0.09541815698 | G63: -0.4760352556
A64: =A40 -> Benchmark Tax liability | B64: ='Cost allocators'!$F$22*B$32 -> 0.02872113664 | C64: ='Cost allocators'!$F$22*C$32 -> 0.01749387708 | D64: ='Cost allocators'!$F$22*D$32 -> 0.01443745606 | E64: ='Cost allocators'!$F$22*E$32 -> 0.01953305748 | F64: ='Cost allocators'!$F$22*F$32 -> 0.01698209272 | G64: 0.09716761998
A65: Total Revenue | B65: =SUM(B60:B64) -> 1.349955265 | C65: =SUM(C60:C64) -> 1.412871156 | D65: =SUM(D60:D64) -> 1.483975937 | E65: =SUM(E60:E64) -> 1.602834107 | F65: =SUM(F60:F64) -> 1.688033211 | G65: 7.537669676
A67: Building Block Components Tariff V: Res Albury ($M NOMINAL) | B67: =B$3 -> 2023-24 | C67: =C$3 -> 2024-25 | D67: 2025-26 | E67: 2026-27 | F67: 2027-28 | G67: TOTAL
A68: =A44 -> Return on capital | B68: ='Cost allocators'!$G$18*B$28 -> 3.02456082 | C68: ='Cost allocators'!$G$18*C$28 -> 3.173921069 | D68: ='Cost allocators'!$G$18*D$28 -> 3.290351109 | E68: ='Cost allocators'!$G$18*E$28 -> 3.414455567 | F68: ='Cost allocators'!$G$18*F$28 -> 3.510298533 | G68: =SUM(B68:F68) -> 16.4135871
A69: =A45 -> Return of capital | B69: ='Cost allocators'!$G$19*B$29 -> 1.032728112 | C69: ='Cost allocators'!$G$19*C$29 -> 1.189116521 | D69: ='Cost allocators'!$G$19*D$29 -> 1.376470247 | E69: ='Cost allocators'!$G$19*E$29 -> 1.604741436 | F69: ='Cost allocators'!$G$19*F$29 -> 1.83066788 | G69: 7.033724195
A70: =A46 -> O&M | B70: ='Cost allocators'!$G$20*B$30 -> 2.865732971 | C70: ='Cost allocators'!$G$20*C$30 -> 3.030400091 | D70: ='Cost allocators'!$G$20*D$30 -> 3.128513472 | E70: ='Cost allocators'!$G$20*E$30 -> 3.30739127 | F70: ='Cost allocators'!$G$20*F$30 -> 3.401777161 | G70: 15.73381497
A71: =A47 -> Carry-over amounts | B71: ='Cost allocators'!$G$21*B$31 -> -0.3838698519 | C71: ='Cost allocators'!$G$21*C$31 -> -0.4873307304 | D71: ='Cost allocators'!$G$21*D$31 -> -0.5221836393 | E71: ='Cost allocators'!$G$21*E$31 -> -0.4903947602 | F71: ='Cost allocators'!$G$21*F$31 -> -0.4722507718 | G71: -2.356029754
A72: =A48 -> Benchmark Tax liability | B72: ='Cost allocators'!$G$22*B$32 -> 0.1421488255 | C72: ='Cost allocators'!$G$22*C$32 -> 0.08658202186 | D72: ='Cost allocators'!$G$22*D$32 -> 0.07145495137 | E72: ='Cost allocators'!$G$22*E$32 -> 0.09667448799 | F72: ='Cost allocators'!$G$22*F$32 -> 0.08404905992 | G72: 0.4809093466
A73: Total Revenue | B73: =SUM(B68:B72) -> 6.681300877 | C73: =SUM(C68:C72) -> 6.992688973 | D73: =SUM(D68:D72) -> 7.34460614 | E73: =SUM(E68:E72) -> 7.932868 | F73: =SUM(F68:F72) -> 8.354541862 | G73: 37.30600585
A75: Building Block Components Tariff V: Non-Res Central ($M NOMINAL) | B75: =B$3 -> 2023-24 | C75: =C$3 -> 2024-25 | D75: 2025-26 | E75: 2026-27 | F75: 2027-28 | G75: TOTAL
A76: =A60 -> Return on capital | B76: ='Cost allocators'!$H$18*B$28 -> 6.299714992 | C76: ='Cost allocators'!$H$18*C$28 -> 6.610810407 | D76: ='Cost allocators'!$H$18*D$28 -> 6.853317043 | E76: ='Cost allocators'!$H$18*E$28 -> 7.11180836 | F76: ='Cost allocators'!$H$18*F$28 -> 7.311435152 | G76: =SUM(B76:F76) -> 34.18708595
A77: =A61 -> Return of capital | B77: ='Cost allocators'!$H$19*B$29 -> 2.151020647 | C77: ='Cost allocators'!$H$19*C$29 -> 2.476754682 | D77: ='Cost allocators'!$H$19*D$29 -> 2.866984916 | E77: ='Cost allocators'!$H$19*E$29 -> 3.342440203 | F77: ='Cost allocators'!$H$19*F$29 -> 3.813011731 | G77: 14.65021218
A78: =A62 -> O&M | B78: ='Cost allocators'!$H$20*B$30 -> 5.968899962 | C78: ='Cost allocators'!$H$20*C$30 -> 6.311877336 | D78: ='Cost allocators'!$H$20*D$30 -> 6.516233066 | E78: ='Cost allocators'!$H$20*E$30 -> 6.888809189 | F78: ='Cost allocators'!$H$20*F$30 -> 7.085401107 | G78: 32.77122066
A79: =A63 -> Carry-over amounts | B79: ='Cost allocators'!$H$21*B$31 -> -0.7995443985 | C79: ='Cost allocators'!$H$21*C$31 -> -1.01503818 | D79: ='Cost allocators'!$H$21*D$31 -> -1.087631659 | E79: ='Cost allocators'!$H$21*E$31 -> -1.021420103 | F79: ='Cost allocators'!$H$21*F$31 -> -0.9836288456 | G79: -4.907263185
A80: =A64 -> Benchmark Tax liability | B80: ='Cost allocators'!$H$22*B$32 -> 0.2960750801 | C80: ='Cost allocators'!$H$22*C$32 -> 0.1803376072 | D80: ='Cost allocators'!$H$22*D$32 -> 0.148830146 | E80: ='Cost allocators'!$H$22*E$32 -> 0.2013587286 | F80: ='Cost allocators'!$H$22*F$32 -> 0.1750618203 | G80: 1.001663382
A81: Total Revenue | B81: =SUM(B76:B80) -> 13.91616628 | C81: =SUM(C76:C80) -> 14.56474185 | D81: =SUM(D76:D80) -> 15.29773351 | E81: =SUM(E76:E80) -> 16.52299638 | F81: =SUM(F76:F80) -> 17.40128097 | G81: 77.70291899
A83: Building Block Components Tariff V: Non-Res North ($M NOMINAL) | B83: =B$3 -> 2023-24 | C83: =C$3 -> 2024-25 | D83: 2025-26 | E83: 2026-27 | F83: 2027-28 | G83: TOTAL
A84: =A52 -> Return on capital | B84: ='Cost allocators'!$I$18*B$28 -> 0.8374379068 | C84: ='Cost allocators'!$I$18*C$28 -> 0.8787926496 | D84: ='Cost allocators'!$I$18*D$28 -> 0.9110297032 | E84: ='Cost allocators'!$I$18*E$28 -> 0.945391643 | F84: ='Cost allocators'!$I$18*F$28 -> 0.9719285645 | G84: =SUM(B84:F84) -> 4.544580467
A85: =A53 -> Return of capital | B85: ='Cost allocators'!$I$19*B$29 -> 0.2859409085 | C85: ='Cost allocators'!$I$19*C$29 -> 0.3292416021 | D85: ='Cost allocators'!$I$19*D$29 -> 0.3811159473 | E85: ='Cost allocators'!$I$19*E$29 -> 0.444319486 | F85: ='Cost allocators'!$I$19*F$29 -> 0.5068738137 | G85: 1.947491758
A86: =A54 -> O&M | B86: ='Cost allocators'!$I$20*B$30 -> 0.793461783 | C86: ='Cost allocators'!$I$20*C$30 -> 0.8390546796 | D86: ='Cost allocators'!$I$20*D$30 -> 0.8662202316 | E86: ='Cost allocators'!$I$20*E$30 -> 0.9157477687 | F86: ='Cost allocators'!$I$20*F$30 -> 0.9418812565 | G86: 4.356365719
A87: =A55 -> Carry-over amounts | B87: ='Cost allocators'!$I$21*B$31 -> -0.1062855682 | C87: ='Cost allocators'!$I$21*C$31 -> -0.134931731 | D87: ='Cost allocators'!$I$21*D$31 -> -0.1445817757 | E87: ='Cost allocators'!$I$21*E$31 -> -0.135780097 | F87: ='Cost allocators'!$I$21*F$31 -> -0.1307564045 | G87: -0.6523355763
A88: =A56 -> Benchmark Tax liability | B88: ='Cost allocators'!$I$22*B$32 -> 0.03935804964 | C88: ='Cost allocators'!$I$22*C$32 -> 0.02397275885 | D88: ='Cost allocators'!$I$22*D$32 -> 0.01978438804 | E88: ='Cost allocators'!$I$22*E$32 -> 0.02676715255 | F88: ='Cost allocators'!$I$22*F$32 -> 0.02327143443 | G88: 0.1331537835
A89: Total Revenue | B89: =SUM(B84:B88) -> 1.84991308 | C89: =SUM(C84:C88) -> 1.936129959 | D89: =SUM(D84:D88) -> 2.033568495 | E89: =SUM(E84:E88) -> 2.196445953 | F89: =SUM(F84:F88) -> 2.313198665 | G89: 10.32925615
A91: Building Block Components Tariff V: Non-Res MV (Vic) ($M NOMINAL) | B91: =B$3 -> 2023-24 | C91: =C$3 -> 2024-25 | D91: 2025-26 | E91: 2026-27 | F91: 2027-28 | G91: TOTAL
A92: =A60 -> Return on capital | B92: ='Cost allocators'!$J$18*B$28 -> 0.07829287814 | C92: ='Cost allocators'!$J$18*C$28 -> 0.08215917295 | D92: ='Cost allocators'!$J$18*D$28 -> 0.0851730462 | E92: ='Cost allocators'!$J$18*E$28 -> 0.08838557712 | F92: ='Cost allocators'!$J$18*F$28 -> 0.09086653952 | G92: =SUM(B92:F92) -> 0.4248772139
A93: =A61 -> Return of capital | B93: ='Cost allocators'!$J$19*B$29 -> 0.02673289151 | C93: ='Cost allocators'!$J$19*C$29 -> 0.03078111514 | D93: ='Cost allocators'!$J$19*D$29 -> 0.03563089774 | E93: ='Cost allocators'!$J$19*E$29 -> 0.04153985757 | F93: ='Cost allocators'!$J$19*F$29 -> 0.04738812203 | G93: 0.182072884
A94: =A62 -> O&M | B94: ='Cost allocators'!$J$20*B$30 -> 0.07418150788 | C94: ='Cost allocators'!$J$20*C$30 -> 0.07844403178 | D94: ='Cost allocators'!$J$20*D$30 -> 0.08098376546 | E94: ='Cost allocators'!$J$20*E$30 -> 0.0856141427 | F94: ='Cost allocators'!$J$20*F$30 -> 0.0880573877 | G94: 0.4072808355
A95: =A63 -> Carry-over amounts | B95: ='Cost allocators'!$J$21*B$31 -> -0.00993674035 | C95: ='Cost allocators'!$J$21*C$31 -> -0.01261489775 | D95: ='Cost allocators'!$J$21*D$31 -> -0.01351708974 | E95: ='Cost allocators'!$J$21*E$31 -> -0.01269421231 | F95: ='Cost allocators'!$J$21*F$31 -> -0.01222454245 | G95: -0.06098748261
A96: =A64 -> Benchmark Tax liability | B96: ='Cost allocators'!$J$22*B$32 -> 0.003679622046 | C96: ='Cost allocators'!$J$22*C$32 -> 0.002241236362 | D96: ='Cost allocators'!$J$22*D$32 -> 0.001849661532 | E96: ='Cost allocators'!$J$22*E$32 -> 0.002502486926 | F96: ='Cost allocators'!$J$22*F$32 -> 0.002175668865 | G96: 0.01244867573
A97: Total Revenue | B97: =SUM(B92:B96) -> 0.1729501592 | C97: =SUM(C92:C96) -> 0.1810106585 | D97: =SUM(D92:D96) -> 0.1901202812 | E97: =SUM(E92:E96) -> 0.205347852 | F97: =SUM(F92:F96) -> 0.2162631757 | G97: 0.9656921266
A99: Building Block Components Tariff V: Non-Res Bairnsdale ($M NOMINAL) | B99: =B$3 -> 2023-24 | C99: =C$3 -> 2024-25 | D99: 2025-26 | E99: 2026-27 | F99: 2027-28 | G99: TOTAL
A100: =A92 -> Return on capital | B100: ='Cost allocators'!$K$18*B$28 -> 0.05799909566 | C100: ='Cost allocators'!$K$18*C$28 -> 0.0608632336 | D100: ='Cost allocators'!$K$18*D$28 -> 0.06309590057 | E100: ='Cost allocators'!$K$18*E$28 -> 0.06547573246 | F100: ='Cost allocators'!$K$18*F$28 -> 0.0673136209 | G100: =SUM(B100:F100) -> 0.3147475832
A101: =A93 -> Return of capital | B101: ='Cost allocators'!$K$19*B$29 -> 0.01980363436 | C101: ='Cost allocators'!$K$19*C$29 -> 0.02280254455 | D101: ='Cost allocators'!$K$19*D$29 -> 0.02639524687 | E101: ='Cost allocators'!$K$19*E$29 -> 0.03077258405 | F101: ='Cost allocators'!$K$19*F$29 -> 0.03510495831 | G101: 0.1348789681
A102: =A94 -> O&M | B102: ='Cost allocators'!$K$20*B$30 -> 0.05495340667 | C102: ='Cost allocators'!$K$20*C$30 -> 0.05811106976 | D102: ='Cost allocators'!$K$20*D$30 -> 0.05999249576 | E102: ='Cost allocators'!$K$20*E$30 -> 0.06342266334 | F102: ='Cost allocators'!$K$20*F$30 -> 0.06523261086 | G102: 0.3017122464
A103: =A95 -> Carry-over amounts | B103: ='Cost allocators'!$K$21*B$31 -> -0.007361103178 | C103: ='Cost allocators'!$K$21*C$31 -> -0.009345072999 | D103: ='Cost allocators'!$K$21*D$31 -> -0.01001341373 | E103: ='Cost allocators'!$K$21*E$31 -> -0.009403828953 | F103: ='Cost allocators'!$K$21*F$31 -> -0.009055899128 | G103: -0.04517931799
A104: =A96 -> Benchmark Tax liability | B104: ='Cost allocators'!$K$22*B$32 -> 0.002725851394 | C104: ='Cost allocators'!$K$22*C$32 -> 0.001660300211 | D104: ='Cost allocators'!$K$22*D$32 -> 0.001370222921 | E104: ='Cost allocators'!$K$22*E$32 -> 0.001853833734 | F104: ='Cost allocators'!$K$22*F$32 -> 0.001611728035 | G104: 0.009221936295
A105: Total Revenue | B105: =SUM(B100:B104) -> 0.1281208849 | C105: =SUM(C100:C104) -> 0.1340920751 | D105: =SUM(D100:D104) -> 0.1408404524 | E105: =SUM(E100:E104) -> 0.1521209846 | F105: =SUM(F100:F104) -> 0.160207019 | G105: 0.715381416
A107: Building Block Components Tariff V: Non-Res Albury ($M NOMINAL) | B107: =B$3 -> 2023-24 | C107: =C$3 -> 2024-25 | D107: 2025-26 | E107: 2026-27 | F107: 2027-28 | G107: TOTAL
A108: =A100 -> Return on capital | B108: ='Cost allocators'!$L$18*B$28 -> 0.2723301414 | C108: ='Cost allocators'!$L$18*C$28 -> 0.2857784734 | D108: ='Cost allocators'!$L$18*D$28 -> 0.2962617836 | E108: ='Cost allocators'!$L$18*E$28 -> 0.3074360949 | F108: ='Cost allocators'!$L$18*F$28 -> 0.316065754 | G108: =SUM(B108:F108) -> 1.477872247
A109: =A101 -> Return of capital | B109: ='Cost allocators'!$L$19*B$29 -> 0.0929863903 | C109: ='Cost allocators'!$L$19*C$29 -> 0.1070675346 | D109: ='Cost allocators'!$L$19*D$29 -> 0.1239367826 | E109: ='Cost allocators'!$L$19*E$29 -> 0.1444902213 | F109: ='Cost allocators'!$L$19*F$29 -> 0.1648325401 | G109: 0.6333134689
A110: =A102 -> O&M | B110: ='Cost allocators'!$L$20*B$30 -> 0.258029351 | C110: ='Cost allocators'!$L$20*C$30 -> 0.2728559069 | D110: ='Cost allocators'!$L$20*D$30 -> 0.2816899931 | E110: ='Cost allocators'!$L$20*E$30 -> 0.2977960722 | F110: ='Cost allocators'!$L$20*F$30 -> 0.3062945368 | G110: 1.41666586
A111: =A103 -> Carry-over amounts | B111: ='Cost allocators'!$L$21*B$31 -> -0.0345634746 | C111: ='Cost allocators'!$L$21*C$31 -> -0.04387904712 | D111: ='Cost allocators'!$L$21*D$31 -> -0.04701718789 | E111: ='Cost allocators'!$L$21*E$31 -> -0.04415493103 | F111: ='Cost allocators'!$L$21*F$31 -> -0.04252125421 | G111: -0.2121358949
A112: =A104 -> Benchmark Tax liability | B112: ='Cost allocators'!$L$22*B$32 -> 0.01279901846 | C112: ='Cost allocators'!$L$22*C$32 -> 0.007795807611 | D112: ='Cost allocators'!$L$22*D$32 -> 0.00643377276 | E112: ='Cost allocators'!$L$22*E$32 -> 0.008704528874 | F112: ='Cost allocators'!$L$22*F$32 -> 0.007567740819 | G112: 0.04330086852
A113: Total Revenue | B113: =SUM(B108:B112) -> 0.6015814266 | C113: =SUM(C108:C112) -> 0.6296186754 | D113: =SUM(D108:D112) -> 0.6613051442 | E113: =SUM(E108:E112) -> 0.7142719863 | F113: =SUM(F108:F112) -> 0.7522393175 | G113: 3.35901655
A115: Building Block Components D ($M NOMINAL) | B115: =B$3 -> 2023-24 | C115: =C$3 -> 2024-25 | D115: 2025-26 | E115: 2026-27 | F115: 2027-28 | G115: TOTAL
A116: =A28 -> Return on capital | B116: =B127 -> 2.129874095 | C116: =B137 -> 2.235052515 | D116: =B147 -> 2.317041716 | E116: =B157 -> 2.404435187 | F116: =B167 -> 2.471927119 | G116: =SUM(B116:F116) -> 11.55833063
A117: =A29 -> Return of capital | B117: =B128 -> 0.7272397499 | C117: =B138 -> 0.8373673483 | D117: =B148 -> 0.9693005021 | E117: =B158 -> 1.130047441 | F117: =B168 -> 1.289143227 | G117: 4.953098268
A118: =A30 -> O&M | B118: =B129 -> 0.02997527749 | C118: =B139 -> 0.03169767894 | D118: =B149 -> 0.032723935 | E118: =B159 -> 0.03459497869 | F118: =B169 -> 0.03558224559 | G118: 0.1645741157
A119: =A31 -> Carry-over amounts | B119: =B130 -> -0.004015239887 | C119: =B140 -> -0.005097430228 | D119: =B150 -> -0.005461988136 | E119: =B160 -> -0.00512947967 | F119: =B170 -> -0.004939695385 | G119: -0.02464383331
A120: =A32 -> Benchmark Tax liability | B120: =B131 -> 0.1001001862 | C120: =B141 -> 0.0609704405 | D120: =B151 -> 0.05031806566 | E120: =B161 -> 0.06807748296 | F120: =B171 -> 0.05918674682 | G120: 0.3386529221
A121: Total Revenue | B121: =SUM(B116:B120) -> 2.983174069 | C121: =SUM(C116:C120) -> 3.159990552 | D121: =SUM(D116:D120) -> 3.363922231 | E121: =SUM(E116:E120) -> 3.63202561 | F121: =SUM(F116:F120) -> 3.850899642 | G121: 16.9900121
A123: Checks | B123: =B17-SUM(B41,B49,B57,B65,B81,B89,B97,B105,B121,B73,B113) -> 0.06986358147 | C123: =C17-SUM(C41,C49,C57,C65,C81,C89,C97,C105,C121,C73,C113) -> 0.07311963714 | D123: 0.07679948844 | E123: 0.08295069778 | F123: 0.08735996579 | G123: 0.3900933706
A125: Building Blocks by Zone for Tariff D
A126: 2023-24 | B126: Total | C126: ='General Inputs'!B28 -> Tariff D: Central | D126: ='General Inputs'!B29 -> Tariff D: North | E126: ='General Inputs'!B30 -> Tariff D: MV (Vic) | F126: ='General Inputs'!B31 -> Tariff D: Bairnsdale | G126: ='General Inputs'!B32 -> Tariff D: Albury
A127: =A28 -> Return on capital | B127: =SUM(C127:G127) -> 2.129874095 | C127: =$B12*HLOOKUP(C$126,'Cost allocators'!$M$24:$Q$28,(MATCH('Cost allocators'!$B$11,'Cost allocators'!$A$25:$A$28)+1),FALSE) -> 1.450414785 | D127: =$B12*HLOOKUP(D$126,'Cost allocators'!$M$24:$Q$28,(MATCH('Cost allocators'!$B$11,'Cost allocators'!$A$25:$A$28)+1),FALSE) -> 0.6107009623 | E127: =$B12*HLOOKUP(E$126,'Cost allocators'!$M$24:$Q$28,(MATCH('Cost allocators'!$B$11,'Cost allocators'!$A$25:$A$28)+1),FALSE) -> 0.02385550634 | F127: =$B12*HLOOKUP(F$126,'Cost allocators'!$M$24:$Q$28,(MATCH('Cost allocators'!$B$11,'Cost allocators'!$A$25:$A$28)+1),FALSE) -> 0.01019107231 | G127: =$B12*HLOOKUP(G$126,'Cost allocators'!$M$24:$Q$28,(MATCH('Cost allocators'!$B$11,'Cost allocators'!$A$25:$A$28)+1),FALSE) -> 0.03471176894
A128: =A29 -> Return of capital | B128: =SUM(C128:G128) -> 0.7272397499 | C128: =$B13*HLOOKUP(C$126,'Cost allocators'!$M$24:$Q$28,(MATCH('Cost allocators'!$B$12,'Cost allocators'!$A$25:$A$28)+1),FALSE) -> 0.495240206 | D128: =$B13*HLOOKUP(D$126,'Cost allocators'!$M$24:$Q$28,(MATCH('Cost allocators'!$B$12,'Cost allocators'!$A$25:$A$28)+1),FALSE) -> 0.208522192 | E128: =$B13*HLOOKUP(E$126,'Cost allocators'!$M$24:$Q$28,(MATCH('Cost allocators'!$B$12,'Cost allocators'!$A$25:$A$28)+1),FALSE) -> 0.008145398125 | F128: =$B13*HLOOKUP(F$126,'Cost allocators'!$M$24:$Q$28,(MATCH('Cost allocators'!$B$12,'Cost allocators'!$A$25:$A$28)+1),FALSE) -> 0.003479714079 | G128: =$B13*HLOOKUP(G$126,'Cost allocators'!$M$24:$Q$28,(MATCH('Cost allocators'!$B$12,'Cost allocators'!$A$25:$A$28)+1),FALSE) -> 0.01185223963
A129: =A30 -> O&M | B129: =SUM(C129:G129) -> 0.02997527749 | C129: =$B14*HLOOKUP(C$126,'Cost allocators'!$M$24:$Q$28,(MATCH('Cost allocators'!$B$13,'Cost allocators'!$A$25:$A$28)+1),FALSE) -> 0.02246646212 | D129: =$B14*HLOOKUP(D$126,'Cost allocators'!$M$24:$Q$28,(MATCH('Cost allocators'!$B$13,'Cost allocators'!$A$25:$A$28)+1),FALSE) -> 0.005567812233 | E129: =$B14*HLOOKUP(E$126,'Cost allocators'!$M$24:$Q$28,(MATCH('Cost allocators'!$B$13,'Cost allocators'!$A$25:$A$28)+1),FALSE) -> 0.0009112654285 | F129: =$B14*HLOOKUP(F$126,'Cost allocators'!$M$24:$Q$28,(MATCH('Cost allocators'!$B$13,'Cost allocators'!$A$25:$A$28)+1),FALSE) -> 0.0003032618318 | G129: =$B14*HLOOKUP(G$126,'Cost allocators'!$M$24:$Q$28,(MATCH('Cost allocators'!$B$13,'Cost allocators'!$A$25:$A$28)+1),FALSE) -> 0.0007264758816
A130: =A31 -> Carry-over amounts | B130: =SUM(C130:G130) -> -0.004015239887 | C130: =$B15*HLOOKUP(C$126,'Cost allocators'!$M$24:$Q$28,(MATCH('Cost allocators'!$B$14,'Cost allocators'!$A$25:$A$28)+1),FALSE) -> -0.003009421175 | D130: =$B15*HLOOKUP(D$126,'Cost allocators'!$M$24:$Q$28,(MATCH('Cost allocators'!$B$14,'Cost allocators'!$A$25:$A$28)+1),FALSE) -> -0.0007458180085 | E130: =$B15*HLOOKUP(E$126,'Cost allocators'!$M$24:$Q$28,(MATCH('Cost allocators'!$B$14,'Cost allocators'!$A$25:$A$28)+1),FALSE) -> -0.0001220655688 | F130: =$B15*HLOOKUP(F$126,'Cost allocators'!$M$24:$Q$28,(MATCH('Cost allocators'!$B$14,'Cost allocators'!$A$25:$A$28)+1),FALSE) -> -4.062244307e-05 | G130: =$B15*HLOOKUP(G$126,'Cost allocators'!$M$24:$Q$28,(MATCH('Cost allocators'!$B$14,'Cost allocators'!$A$25:$A$28)+1),FALSE) -> -9.73126917e-05
A131: =A32 -> Benchmark Tax liability | B131: 0.1001001862 | C131: =$B16*HLOOKUP(C$126,'Cost allocators'!$M$24:$Q$28,(MATCH('Cost allocators'!$B$15,'Cost allocators'!$A$25:$A$28)+1),FALSE) -> 0.06816684158 | D131: =$B16*HLOOKUP(D$126,'Cost allocators'!$M$24:$Q$28,(MATCH('Cost allocators'!$B$15,'Cost allocators'!$A$25:$A$28)+1),FALSE) -> 0.02870182803 | E131: =$B16*HLOOKUP(E$126,'Cost allocators'!$M$24:$Q$28,(MATCH('Cost allocators'!$B$15,'Cost allocators'!$A$25:$A$28)+1),FALSE) -> 0.001121165158 | F131: =$B16*HLOOKUP(F$126,'Cost allocators'!$M$24:$Q$28,(MATCH('Cost allocators'!$B$15,'Cost allocators'!$A$25:$A$28)+1),FALSE) -> 0.0004789617553 | G131: =$B16*HLOOKUP(G$126,'Cost allocators'!$M$24:$Q$28,(MATCH('Cost allocators'!$B$15,'Cost allocators'!$A$25:$A$28)+1),FALSE) -> 0.00163138964
A132: Total Revenue | B132: =SUM(B127:B131) -> 2.983174069 | C132: =SUM(C127:C131) -> 2.033278874 | D132: 0.8527469766 | E132: 0.03391126948 | F132: 0.01441238753 | G132: 0.0488245614
A134: Checks | B134: =B132-B$121 -> 0
A136: 2024-25 | B136: Total | C136: =C126 -> Tariff D: Central | D136: =D126 -> Tariff D: North | E136: Tariff D: MV (Vic) | F136: =F126 -> Tariff D: Bairnsdale | G136: =G126 -> Tariff D: Albury
A137: =A127 -> Return on capital | B137: =SUM(C137:G137) -> 2.235052515 | C137: =$C12*HLOOKUP(C$126,'Cost allocators'!$M$24:$Q$28,(MATCH('Cost allocators'!$B$11,'Cost allocators'!$A$25:$A$28)+1),FALSE) -> 1.522039834 | D137: =$C12*HLOOKUP(D$126,'Cost allocators'!$M$24:$Q$28,(MATCH('Cost allocators'!$B$11,'Cost allocators'!$A$25:$A$28)+1),FALSE) -> 0.6408588773 | E137: =$C12*HLOOKUP(E$126,'Cost allocators'!$M$24:$Q$28,(MATCH('Cost allocators'!$B$11,'Cost allocators'!$A$25:$A$28)+1),FALSE) -> 0.02503354989 | F137: =$C12*HLOOKUP(F$126,'Cost allocators'!$M$24:$Q$28,(MATCH('Cost allocators'!$B$11,'Cost allocators'!$A$25:$A$28)+1),FALSE) -> 0.01069433252 | G137: =$C12*HLOOKUP(G$126,'Cost allocators'!$M$24:$Q$28,(MATCH('Cost allocators'!$B$11,'Cost allocators'!$A$25:$A$28)+1),FALSE) -> 0.03642592143
A138: =A128 -> Return of capital | B138: =SUM(C138:G138) -> 0.8373673483 | C138: =$C13*HLOOKUP(C$126,'Cost allocators'!$M$24:$Q$28,(MATCH('Cost allocators'!$B$12,'Cost allocators'!$A$25:$A$28)+1),FALSE) -> 0.5702355766 | D138: =$C13*HLOOKUP(D$126,'Cost allocators'!$M$24:$Q$28,(MATCH('Cost allocators'!$B$12,'Cost allocators'!$A$25:$A$28)+1),FALSE) -> 0.2400991902 | E138: =$C13*HLOOKUP(E$126,'Cost allocators'!$M$24:$Q$28,(MATCH('Cost allocators'!$B$12,'Cost allocators'!$A$25:$A$28)+1),FALSE) -> 0.009378874615 | F138: =$C13*HLOOKUP(F$126,'Cost allocators'!$M$24:$Q$28,(MATCH('Cost allocators'!$B$12,'Cost allocators'!$A$25:$A$28)+1),FALSE) -> 0.004006655236 | G138: =$C13*HLOOKUP(G$126,'Cost allocators'!$M$24:$Q$28,(MATCH('Cost allocators'!$B$12,'Cost allocators'!$A$25:$A$28)+1),FALSE) -> 0.01364705171
A139: =A129 -> O&M | B139: =SUM(C139:G139) -> 0.03169767894 | C139: =$C14*HLOOKUP(C$126,'Cost allocators'!$M$24:$Q$28,(MATCH('Cost allocators'!$B$13,'Cost allocators'!$A$25:$A$28)+1),FALSE) -> 0.02375740152 | D139: =$C14*HLOOKUP(D$126,'Cost allocators'!$M$24:$Q$28,(MATCH('Cost allocators'!$B$13,'Cost allocators'!$A$25:$A$28)+1),FALSE) -> 0.005887742811 | E139: =$C14*HLOOKUP(E$126,'Cost allocators'!$M$24:$Q$28,(MATCH('Cost allocators'!$B$13,'Cost allocators'!$A$25:$A$28)+1),FALSE) -> 0.000963627409 | F139: =$C14*HLOOKUP(F$126,'Cost allocators'!$M$24:$Q$28,(MATCH('Cost allocators'!$B$13,'Cost allocators'!$A$25:$A$28)+1),FALSE) -> 0.0003206874793 | G139: =$C14*HLOOKUP(G$126,'Cost allocators'!$M$24:$Q$28,(MATCH('Cost allocators'!$B$13,'Cost allocators'!$A$25:$A$28)+1),FALSE) -> 0.0007682197191
A140: =A130 -> Carry-over amounts | B140: =SUM(C140:G140) -> -0.005097430228 | C140: =$C15*HLOOKUP(C$126,'Cost allocators'!$M$24:$Q$28,(MATCH('Cost allocators'!$B$14,'Cost allocators'!$A$25:$A$28)+1),FALSE) -> -0.003820522534 | D140: =$C15*HLOOKUP(D$126,'Cost allocators'!$M$24:$Q$28,(MATCH('Cost allocators'!$B$14,'Cost allocators'!$A$25:$A$28)+1),FALSE) -> -0.0009468314143 | E140: =$C15*HLOOKUP(E$126,'Cost allocators'!$M$24:$Q$28,(MATCH('Cost allocators'!$B$14,'Cost allocators'!$A$25:$A$28)+1),FALSE) -> -0.0001549647686 | F140: =$C15*HLOOKUP(F$126,'Cost allocators'!$M$24:$Q$28,(MATCH('Cost allocators'!$B$14,'Cost allocators'!$A$25:$A$28)+1),FALSE) -> -5.157103313e-05 | G140: =$C15*HLOOKUP(G$126,'Cost allocators'!$M$24:$Q$28,(MATCH('Cost allocators'!$B$14,'Cost allocators'!$A$25:$A$28)+1),FALSE) -> -0.0001235404783
A141: =A131 -> Benchmark Tax liability | B141: 0.0609704405 | C141: =$C16*HLOOKUP(C$126,'Cost allocators'!$M$24:$Q$28,(MATCH('Cost allocators'!$B$15,'Cost allocators'!$A$25:$A$28)+1),FALSE) -> 0.04152002626 | D141: =$C16*HLOOKUP(D$126,'Cost allocators'!$M$24:$Q$28,(MATCH('Cost allocators'!$B$15,'Cost allocators'!$A$25:$A$28)+1),FALSE) -> 0.01748211632 | E141: =$C16*HLOOKUP(E$126,'Cost allocators'!$M$24:$Q$28,(MATCH('Cost allocators'!$B$15,'Cost allocators'!$A$25:$A$28)+1),FALSE) -> 0.0006828951688 | F141: =$C16*HLOOKUP(F$126,'Cost allocators'!$M$24:$Q$28,(MATCH('Cost allocators'!$B$15,'Cost allocators'!$A$25:$A$28)+1),FALSE) -> 0.0002917328161 | G141: =$C16*HLOOKUP(G$126,'Cost allocators'!$M$24:$Q$28,(MATCH('Cost allocators'!$B$15,'Cost allocators'!$A$25:$A$28)+1),FALSE) -> 0.0009936699298
A142: Total Revenue | B142: =SUM(B137:B141) -> 3.159990552 | C142: =SUM(C137:C141) -> 2.153732315 | D142: =SUM(D137:D141) -> 0.9033810952 | E142: 0.03590398232 | F142: 0.01526183701 | G142: =SUM(G137:G141) -> 0.05171132231
A144: Checks | B144: =B142-C$121 -> 0
A146: 2025-26 | B146: Total | C146: =C136 -> Tariff D: Central | D146: =D136 -> Tariff D: North | E146: Tariff D: MV (Vic) | F146: Tariff D: Bairnsdale | G146: =G136 -> Tariff D: Albury
A147: =A137 -> Return on capital | B147: =SUM(C147:G147) -> 2.317041716 | C147: =$D12*HLOOKUP(C$126,'Cost allocators'!$M$24:$Q$28,(MATCH('Cost allocators'!$B$11,'Cost allocators'!$A$25:$A$28)+1),FALSE) -> 1.577873345 | D147: =$D12*HLOOKUP(D$126,'Cost allocators'!$M$24:$Q$28,(MATCH('Cost allocators'!$B$11,'Cost allocators'!$A$25:$A$28)+1),FALSE) -> 0.6643677243 | E147: =$D12*HLOOKUP(E$126,'Cost allocators'!$M$24:$Q$28,(MATCH('Cost allocators'!$B$11,'Cost allocators'!$A$25:$A$28)+1),FALSE) -> 0.02595186423 | F147: =$D12*HLOOKUP(F$126,'Cost allocators'!$M$24:$Q$28,(MATCH('Cost allocators'!$B$11,'Cost allocators'!$A$25:$A$28)+1),FALSE) -> 0.0110866364 | G147: =$D12*HLOOKUP(G$126,'Cost allocators'!$M$24:$Q$28,(MATCH('Cost allocators'!$B$11,'Cost allocators'!$A$25:$A$28)+1),FALSE) -> 0.03776214606
A148: =A138 -> Return of capital | B148: =SUM(C148:G148) -> 0.9693005021 | C148: =$D13*HLOOKUP(C$126,'Cost allocators'!$M$24:$Q$28,(MATCH('Cost allocators'!$B$12,'Cost allocators'!$A$25:$A$28)+1),FALSE) -> 0.6600802286 | D148: =$D13*HLOOKUP(D$126,'Cost allocators'!$M$24:$Q$28,(MATCH('Cost allocators'!$B$12,'Cost allocators'!$A$25:$A$28)+1),FALSE) -> 0.2779285173 | E148: =$D13*HLOOKUP(E$126,'Cost allocators'!$M$24:$Q$28,(MATCH('Cost allocators'!$B$12,'Cost allocators'!$A$25:$A$28)+1),FALSE) -> 0.01085658271 | F148: =$D13*HLOOKUP(F$126,'Cost allocators'!$M$24:$Q$28,(MATCH('Cost allocators'!$B$12,'Cost allocators'!$A$25:$A$28)+1),FALSE) -> 0.004637932133 | G148: =$D13*HLOOKUP(G$126,'Cost allocators'!$M$24:$Q$28,(MATCH('Cost allocators'!$B$12,'Cost allocators'!$A$25:$A$28)+1),FALSE) -> 0.01579724132
A149: =A139 -> O&M | B149: =SUM(C149:G149) -> 0.032723935 | C149: =$D14*HLOOKUP(C$126,'Cost allocators'!$M$24:$Q$28,(MATCH('Cost allocators'!$B$13,'Cost allocators'!$A$25:$A$28)+1),FALSE) -> 0.02452658015 | D149: =$D14*HLOOKUP(D$126,'Cost allocators'!$M$24:$Q$28,(MATCH('Cost allocators'!$B$13,'Cost allocators'!$A$25:$A$28)+1),FALSE) -> 0.006078366602 | E149: =$D14*HLOOKUP(E$126,'Cost allocators'!$M$24:$Q$28,(MATCH('Cost allocators'!$B$13,'Cost allocators'!$A$25:$A$28)+1),FALSE) -> 0.0009948261749 | F149: =$D14*HLOOKUP(F$126,'Cost allocators'!$M$24:$Q$28,(MATCH('Cost allocators'!$B$13,'Cost allocators'!$A$25:$A$28)+1),FALSE) -> 0.0003310701786 | G149: =$D14*HLOOKUP(G$126,'Cost allocators'!$M$24:$Q$28,(MATCH('Cost allocators'!$B$13,'Cost allocators'!$A$25:$A$28)+1),FALSE) -> 0.0007930918916
A150: =A140 -> Carry-over amounts | B150: =SUM(C150:G150) -> -0.005461988136 | C150: =$D15*HLOOKUP(C$126,'Cost allocators'!$M$24:$Q$28,(MATCH('Cost allocators'!$B$14,'Cost allocators'!$A$25:$A$28)+1),FALSE) -> -0.004093758584 | D150: =$D15*HLOOKUP(D$126,'Cost allocators'!$M$24:$Q$28,(MATCH('Cost allocators'!$B$14,'Cost allocators'!$A$25:$A$28)+1),FALSE) -> -0.001014546884 | E150: =$D15*HLOOKUP(E$126,'Cost allocators'!$M$24:$Q$28,(MATCH('Cost allocators'!$B$14,'Cost allocators'!$A$25:$A$28)+1),FALSE) -> -0.0001660475357 | F150: =$D15*HLOOKUP(F$126,'Cost allocators'!$M$24:$Q$28,(MATCH('Cost allocators'!$B$14,'Cost allocators'!$A$25:$A$28)+1),FALSE) -> -5.525928919e-05 | G150: =$D15*HLOOKUP(G$126,'Cost allocators'!$M$24:$Q$28,(MATCH('Cost allocators'!$B$14,'Cost allocators'!$A$25:$A$28)+1),FALSE) -> -0.0001323758436
A151: =A141 -> Benchmark Tax liability | B151: 0.05031806566 | C151: =$D16*HLOOKUP(C$126,'Cost allocators'!$M$24:$Q$28,(MATCH('Cost allocators'!$B$15,'Cost allocators'!$A$25:$A$28)+1),FALSE) -> 0.03426590641 | D151: =$D16*HLOOKUP(D$126,'Cost allocators'!$M$24:$Q$28,(MATCH('Cost allocators'!$B$15,'Cost allocators'!$A$25:$A$28)+1),FALSE) -> 0.01442775007 | E151: =$D16*HLOOKUP(E$126,'Cost allocators'!$M$24:$Q$28,(MATCH('Cost allocators'!$B$15,'Cost allocators'!$A$25:$A$28)+1),FALSE) -> 0.0005635839869 | F151: =$D16*HLOOKUP(F$126,'Cost allocators'!$M$24:$Q$28,(MATCH('Cost allocators'!$B$15,'Cost allocators'!$A$25:$A$28)+1),FALSE) -> 0.0002407630792 | G151: =$D16*HLOOKUP(G$126,'Cost allocators'!$M$24:$Q$28,(MATCH('Cost allocators'!$B$15,'Cost allocators'!$A$25:$A$28)+1),FALSE) -> 0.0008200621213
A152: Total Revenue | B152: =SUM(B147:B151) -> 3.363922231 | C152: =SUM(C147:C151) -> 2.292652302 | D152: =SUM(D147:D151) -> 0.9617878114 | E152: 0.03820080957 | F152: 0.0162411425 | G152: =SUM(G147:G151) -> 0.05504016555
A154: Checks | B154: =B152-D$121 -> 0
A156: 2026-27 | B156: Total | C156: =C146 -> Tariff D: Central | D156: =D146 -> Tariff D: North | E156: Tariff D: MV (Vic) | F156: Tariff D: Bairnsdale | G156: =G146 -> Tariff D: Albury
A157: =A147 -> Return on capital | B157: =SUM(C157:G157) -> 2.404435187 | C157: =$E12*HLOOKUP(C$126,'Cost allocators'!$M$24:$Q$28,(MATCH('Cost allocators'!$B$11,'Cost allocators'!$A$25:$A$28)+1),FALSE) -> 1.63738709 | D157: =$E12*HLOOKUP(D$126,'Cost allocators'!$M$24:$Q$28,(MATCH('Cost allocators'!$B$11,'Cost allocators'!$A$25:$A$28)+1),FALSE) -> 0.689426143 | E157: =$E12*HLOOKUP(E$126,'Cost allocators'!$M$24:$Q$28,(MATCH('Cost allocators'!$B$11,'Cost allocators'!$A$25:$A$28)+1),FALSE) -> 0.02693070871 | F157: =$E12*HLOOKUP(F$126,'Cost allocators'!$M$24:$Q$28,(MATCH('Cost allocators'!$B$11,'Cost allocators'!$A$25:$A$28)+1),FALSE) -> 0.01150479876 | G157: =$E12*HLOOKUP(G$126,'Cost allocators'!$M$24:$Q$28,(MATCH('Cost allocators'!$B$11,'Cost allocators'!$A$25:$A$28)+1),FALSE) -> 0.03918644714
A158: =A148 -> Return of capital | B158: =SUM(C158:G158) -> 1.130047441 | C158: =$E13*HLOOKUP(C$126,'Cost allocators'!$M$24:$Q$28,(MATCH('Cost allocators'!$B$12,'Cost allocators'!$A$25:$A$28)+1),FALSE) -> 0.7695466694 | D158: =$E13*HLOOKUP(D$126,'Cost allocators'!$M$24:$Q$28,(MATCH('Cost allocators'!$B$12,'Cost allocators'!$A$25:$A$28)+1),FALSE) -> 0.3240196503 | E158: =$E13*HLOOKUP(E$126,'Cost allocators'!$M$24:$Q$28,(MATCH('Cost allocators'!$B$12,'Cost allocators'!$A$25:$A$28)+1),FALSE) -> 0.01265701759 | F158: =$E13*HLOOKUP(F$126,'Cost allocators'!$M$24:$Q$28,(MATCH('Cost allocators'!$B$12,'Cost allocators'!$A$25:$A$28)+1),FALSE) -> 0.005407077914 | G158: =$E13*HLOOKUP(G$126,'Cost allocators'!$M$24:$Q$28,(MATCH('Cost allocators'!$B$12,'Cost allocators'!$A$25:$A$28)+1),FALSE) -> 0.01841702556
A159: =A149 -> O&M | B159: 0.03459497869 | C159: =$E14*HLOOKUP(C$126,'Cost allocators'!$M$24:$Q$28,(MATCH('Cost allocators'!$B$13,'Cost allocators'!$A$25:$A$28)+1),FALSE) -> 0.02592892688 | D159: =$E14*HLOOKUP(D$126,'Cost allocators'!$M$24:$Q$28,(MATCH('Cost allocators'!$B$13,'Cost allocators'!$A$25:$A$28)+1),FALSE) -> 0.006425907004 | E159: =$E14*HLOOKUP(E$126,'Cost allocators'!$M$24:$Q$28,(MATCH('Cost allocators'!$B$13,'Cost allocators'!$A$25:$A$28)+1),FALSE) -> 0.001051706964 | F159: =$E14*HLOOKUP(F$126,'Cost allocators'!$M$24:$Q$28,(MATCH('Cost allocators'!$B$13,'Cost allocators'!$A$25:$A$28)+1),FALSE) -> 0.0003499996493 | G159: =$E14*HLOOKUP(G$126,'Cost allocators'!$M$24:$Q$28,(MATCH('Cost allocators'!$B$13,'Cost allocators'!$A$25:$A$28)+1),FALSE) -> 0.0008384381981
A160: =A150 -> Carry-over amounts | B160: -0.00512947967 | C160: =$E15*HLOOKUP(C$126,'Cost allocators'!$M$24:$Q$28,(MATCH('Cost allocators'!$B$14,'Cost allocators'!$A$25:$A$28)+1),FALSE) -> -0.003844543582 | D160: =$E15*HLOOKUP(D$126,'Cost allocators'!$M$24:$Q$28,(MATCH('Cost allocators'!$B$14,'Cost allocators'!$A$25:$A$28)+1),FALSE) -> -0.000952784496 | E160: =$E15*HLOOKUP(E$126,'Cost allocators'!$M$24:$Q$28,(MATCH('Cost allocators'!$B$14,'Cost allocators'!$A$25:$A$28)+1),FALSE) -> -0.0001559390898 | F160: =$E15*HLOOKUP(F$126,'Cost allocators'!$M$24:$Q$28,(MATCH('Cost allocators'!$B$14,'Cost allocators'!$A$25:$A$28)+1),FALSE) -> -5.189527942e-05 | G160: =$E15*HLOOKUP(G$126,'Cost allocators'!$M$24:$Q$28,(MATCH('Cost allocators'!$B$14,'Cost allocators'!$A$25:$A$28)+1),FALSE) -> -0.0001243172233
A161: =A151 -> Benchmark Tax liability | B161: 0.06807748296 | C161: =$E16*HLOOKUP(C$126,'Cost allocators'!$M$24:$Q$28,(MATCH('Cost allocators'!$B$15,'Cost allocators'!$A$25:$A$28)+1),FALSE) -> 0.04635982383 | D161: =$E16*HLOOKUP(D$126,'Cost allocators'!$M$24:$Q$28,(MATCH('Cost allocators'!$B$15,'Cost allocators'!$A$25:$A$28)+1),FALSE) -> 0.01951992582 | E161: =$E16*HLOOKUP(E$126,'Cost allocators'!$M$24:$Q$28,(MATCH('Cost allocators'!$B$15,'Cost allocators'!$A$25:$A$28)+1),FALSE) -> 0.0007624971025 | F161: =$E16*HLOOKUP(F$126,'Cost allocators'!$M$24:$Q$28,(MATCH('Cost allocators'!$B$15,'Cost allocators'!$A$25:$A$28)+1),FALSE) -> 0.0003257387622 | G161: =$E16*HLOOKUP(G$126,'Cost allocators'!$M$24:$Q$28,(MATCH('Cost allocators'!$B$15,'Cost allocators'!$A$25:$A$28)+1),FALSE) -> 0.001109497441
A162: Total Revenue | B162: =SUM(B157:B161) -> 3.63202561 | C162: =SUM(C157:C161) -> 2.475377966 | D162: =SUM(D157:D161) -> 1.038438842 | E162: 0.04124599128 | F162: 0.01753571981 | G162: =SUM(G157:G161) -> 0.05942709112
A164: Checks | B164: =B162-E$121 -> 0
A166: 2027-28 | B166: Total | C166: =C156 -> Tariff D: Central | D166: =D156 -> Tariff D: North | E166: Tariff D: MV (Vic) | F166: Tariff D: Bairnsdale | G166: =G156 -> Tariff D: Albury
A167: =A157 -> Return on capital | B167: =SUM(C167:G167) -> 2.471927119 | C167: =$F12*HLOOKUP(C$126,'Cost allocators'!$M$24:$Q$28,(MATCH('Cost allocators'!$B$11,'Cost allocators'!$A$25:$A$28)+1),FALSE) -> 1.683348161 | D167: =$F12*HLOOKUP(D$126,'Cost allocators'!$M$24:$Q$28,(MATCH('Cost allocators'!$B$11,'Cost allocators'!$A$25:$A$28)+1),FALSE) -> 0.7087781731 | E167: =$F12*HLOOKUP(E$126,'Cost allocators'!$M$24:$Q$28,(MATCH('Cost allocators'!$B$11,'Cost allocators'!$A$25:$A$28)+1),FALSE) -> 0.02768664739 | F167: =$F12*HLOOKUP(F$126,'Cost allocators'!$M$24:$Q$28,(MATCH('Cost allocators'!$B$11,'Cost allocators'!$A$25:$A$28)+1),FALSE) -> 0.01182773576 | G167: =$F12*HLOOKUP(G$126,'Cost allocators'!$M$24:$Q$28,(MATCH('Cost allocators'!$B$11,'Cost allocators'!$A$25:$A$28)+1),FALSE) -> 0.04028640152
A168: =A158 -> Return of capital | B168: =SUM(C168:G168) -> 1.289143227 | C168: =$F13*HLOOKUP(C$126,'Cost allocators'!$M$24:$Q$28,(MATCH('Cost allocators'!$B$12,'Cost allocators'!$A$25:$A$28)+1),FALSE) -> 0.8778886981 | D168: =$F13*HLOOKUP(D$126,'Cost allocators'!$M$24:$Q$28,(MATCH('Cost allocators'!$B$12,'Cost allocators'!$A$25:$A$28)+1),FALSE) -> 0.3696373465 | E168: =$F13*HLOOKUP(E$126,'Cost allocators'!$M$24:$Q$28,(MATCH('Cost allocators'!$B$12,'Cost allocators'!$A$25:$A$28)+1),FALSE) -> 0.01443895885 | F168: =$F13*HLOOKUP(F$126,'Cost allocators'!$M$24:$Q$28,(MATCH('Cost allocators'!$B$12,'Cost allocators'!$A$25:$A$28)+1),FALSE) -> 0.006168323221 | G168: =$F13*HLOOKUP(G$126,'Cost allocators'!$M$24:$Q$28,(MATCH('Cost allocators'!$B$12,'Cost allocators'!$A$25:$A$28)+1),FALSE) -> 0.02100990003
A169: =A159 -> O&M | B169: 0.03558224559 | C169: =$F14*HLOOKUP(C$126,'Cost allocators'!$M$24:$Q$28,(MATCH('Cost allocators'!$B$13,'Cost allocators'!$A$25:$A$28)+1),FALSE) -> 0.02666888314 | D169: =$F14*HLOOKUP(D$126,'Cost allocators'!$M$24:$Q$28,(MATCH('Cost allocators'!$B$13,'Cost allocators'!$A$25:$A$28)+1),FALSE) -> 0.006609288682 | E169: =$F14*HLOOKUP(E$126,'Cost allocators'!$M$24:$Q$28,(MATCH('Cost allocators'!$B$13,'Cost allocators'!$A$25:$A$28)+1),FALSE) -> 0.001081720437 | F169: =$F14*HLOOKUP(F$126,'Cost allocators'!$M$24:$Q$28,(MATCH('Cost allocators'!$B$13,'Cost allocators'!$A$25:$A$28)+1),FALSE) -> 0.0003599878927 | G169: =$F14*HLOOKUP(G$126,'Cost allocators'!$M$24:$Q$28,(MATCH('Cost allocators'!$B$13,'Cost allocators'!$A$25:$A$28)+1),FALSE) -> 0.0008623654356
A170: =A160 -> Carry-over amounts | B170: -0.004939695385 | C170: =$F15*HLOOKUP(C$126,'Cost allocators'!$M$24:$Q$28,(MATCH('Cost allocators'!$B$14,'Cost allocators'!$A$25:$A$28)+1),FALSE) -> -0.003702300312 | D170: =$F15*HLOOKUP(D$126,'Cost allocators'!$M$24:$Q$28,(MATCH('Cost allocators'!$B$14,'Cost allocators'!$A$25:$A$28)+1),FALSE) -> -0.00091753267 | E170: =$F15*HLOOKUP(E$126,'Cost allocators'!$M$24:$Q$28,(MATCH('Cost allocators'!$B$14,'Cost allocators'!$A$25:$A$28)+1),FALSE) -> -0.00015016954 | F170: =$F15*HLOOKUP(F$126,'Cost allocators'!$M$24:$Q$28,(MATCH('Cost allocators'!$B$14,'Cost allocators'!$A$25:$A$28)+1),FALSE) -> -4.997521946e-05 | G170: =$F15*HLOOKUP(G$126,'Cost allocators'!$M$24:$Q$28,(MATCH('Cost allocators'!$B$14,'Cost allocators'!$A$25:$A$28)+1),FALSE) -> -0.0001197176427
A171: =A161 -> Benchmark Tax liability | B171: 0.05918674682 | C171: =$F16*HLOOKUP(C$126,'Cost allocators'!$M$24:$Q$28,(MATCH('Cost allocators'!$B$15,'Cost allocators'!$A$25:$A$28)+1),FALSE) -> 0.04030535555 | D171: =$F16*HLOOKUP(D$126,'Cost allocators'!$M$24:$Q$28,(MATCH('Cost allocators'!$B$15,'Cost allocators'!$A$25:$A$28)+1),FALSE) -> 0.01697067602 | E171: =$F16*HLOOKUP(E$126,'Cost allocators'!$M$24:$Q$28,(MATCH('Cost allocators'!$B$15,'Cost allocators'!$A$25:$A$28)+1),FALSE) -> 0.000662917032 | F171: =$F16*HLOOKUP(F$126,'Cost allocators'!$M$24:$Q$28,(MATCH('Cost allocators'!$B$15,'Cost allocators'!$A$25:$A$28)+1),FALSE) -> 0.0002831981561 | G171: =$F16*HLOOKUP(G$126,'Cost allocators'!$M$24:$Q$28,(MATCH('Cost allocators'!$B$15,'Cost allocators'!$A$25:$A$28)+1),FALSE) -> 0.0009646000598
A172: Total Revenue | B172: =SUM(B167:B171) -> 3.850899642 | C172: =SUM(C167:C171) -> 2.624508797 | D172: =SUM(D167:D171) -> 1.101077952 | E172: 0.04372007416 | F172: 0.01858926981 | G172: =SUM(G167:G171) -> 0.0630035494
A174: Checks | B174: =B172-F$121 -> 0
C175: ='Cost allocators'!B32 -> 0.2052168646 | D175: ='Cost allocators'!B33 -> 0.1051704481 | E175: ='Cost allocators'!B34 -> 0.3384380214 | F175: ='Cost allocators'!B35 -> 0.1380216048 | G175: ='Cost allocators'!B36 -> 0.04157463468 | H175: ='Cost allocators'!B37 -> 0.1683142786 | I175: ='Cost allocators'!B38 -> 0.003264147825 | J175: =SUM(C175:I175) -> 1
A177: Building Blocks by Ancillary Reference Service
A178: 2023-24 | B178: Total | C178: Disconnection | D178: Reconnection | E178: Special Meter Read - Metropolitan | F178: Special Meter Read - Non Metropolitan | G178: Meter Removal | H178: Meter Reinstallation | I178: Meter and Gas Installation Test
A179: =A157 -> Return on capital | B179: =SUM(C179:I179) -> 0 | C179: =$B20*C$175 -> 0 | D179: =$B20*D$175 -> 0 | E179: 0 | F179: 0 | G179: 0 | H179: 0 | I179: 0
A180: =A158 -> Return of capital | B180: =SUM(C180:I180) -> 0 | C180: =$B21*C$175 -> 0 | D180: 0 | E180: 0 | F180: 0 | G180: 0 | H180: 0 | I180: 0
A181: O&M | B181: 3.895521548 | C181: =$B22*C$175 -> 0.7994267182 | D181: 0.4096937467 | E181: 1.318392605 | F181: 0.5376661357 | G181: 0.1619548852 | H181: 0.655671899 | I181: 0.01271555819
A182: Carry-over amounts | B182: 0 | C182: =$B23*C$175 -> 0 | D182: 0 | E182: 0 | F182: 0 | G182: 0 | H182: 0 | I182: 0
A183: Benchmark Tax liability | B183: 0 | C183: =$B24*C$175 -> 0 | D183: 0 | E183: 0 | F183: 0 | G183: 0 | H183: 0 | I183: 0
A184: Total Revenue | B184: 3.895521548 | C184: =SUM(C179:C183) -> 0.7994267182 | D184: =SUM(D179:D183) -> 0.4096937467 | E184: =SUM(E179:E183) -> 1.318392605 | F184: =SUM(F179:F183) -> 0.5376661357 | G184: 0.1619548852 | H184: =SUM(H179:H183) -> 0.655671899 | I184: =SUM(I179:I183) -> 0.01271555819
A186: Checks | B186: =B184-B$25 -> 0
A188: 2024-25 | B188: Total | C188: =C178 -> Disconnection | D188: =D178 -> Reconnection | E188: =E178 -> Special Meter Read - Metropolitan | F188: Special Meter Read - Non Metropolitan | G188: Meter Removal | H188: Meter Reinstallation | I188: Meter and Gas Installation Test
A189: =A179 -> Return on capital | B189: =SUM(C189:I189) -> 0 | C189: =$C20*C$175 -> 0 | D189: =$C20*D$175 -> 0 | E189: 0 | F189: 0 | G189: 0 | H189: 0 | I189: =$C20*I$175 -> 0
A190: =A180 -> Return of capital | B190: =SUM(C190:I190) -> 0 | C190: =$C21*C$175 -> 0 | D190: 0 | E190: 0 | F190: 0 | G190: 0 | H190: 0 | I190: 0
A191: =A181 -> O&M | B191: 4.077734704 | C191: =$C22*C$175 -> 0.8368199307 | D191: =$C22*D$175 -> 0.4288571859 | E191: 1.380060465 | F191: 0.5628154879 | G191: 0.1695303306 | H191: 0.6863409748 | I191: =$C22*I$175 -> 0.01331032886
A192: =A182 -> Carry-over amounts | B192: 0 | C192: =$C23*C$175 -> 0 | D192: 0 | E192: 0 | F192: 0 | G192: 0 | H192: 0 | I192: 0
A193: =A183 -> Benchmark Tax liability | B193: 0 | C193: =$C24*C$175 -> 0 | D193: 0 | E193: 0 | F193: 0 | G193: 0 | H193: 0 | I193: 0
A194: Total Revenue | B194: 4.077734704 | C194: =SUM(C189:C193) -> 0.8368199307 | D194: =SUM(D189:D193) -> 0.4288571859 | E194: 1.380060465 | F194: 0.5628154879 | G194: 0.1695303306 | H194: 0.6863409748 | I194: 0.01331032886
A196: Checks | B196: =B194-C$25 -> 0
A198: 2025-26 | B198: Total | C198: =C188 -> Disconnection | D198: =D188 -> Reconnection | E198: =E188 -> Special Meter Read - Metropolitan | F198: Special Meter Read - Non Metropolitan | G198: Meter Removal | H198: Meter Reinstallation | I198: Meter and Gas Installation Test
A199: =A189 -> Return on capital | B199: =SUM(C199:I199) -> 0 | C199: =$D20*C$175 -> 0 | D199: =$D20*D$175 -> 0 | E199: 0 | F199: 0 | G199: 0 | H199: 0 | I199: 0
A200: =A190 -> Return of capital | B200: =SUM(C200:I200) -> 0 | C200: =$D21*C$175 -> 0 | D200: 0 | E200: 0 | F200: 0 | G200: 0 | H200: 0 | I200: 0
A201: =A191 -> O&M | B201: 4.283735538 | C201: =$D22*C$175 -> 0.8790947761 | D201: 0.450522386 | E201: 1.44977898 | F201: 0.5912480537 | G201: 0.1780947401 | H201: 0.7210138567 | I201: 0.01398274604
A202: =A192 -> Carry-over amounts | B202: 0 | C202: =$D23*C$175 -> 0 | D202: 0 | E202: 0 | F202: 0 | G202: 0 | H202: 0 | I202: 0
A203: =A193 -> Benchmark Tax liability | B203: 0 | C203: =$D24*C$175 -> 0 | D203: 0 | E203: 0 | F203: 0 | G203: 0 | H203: 0 | I203: 0
A204: Total Revenue | B204: 4.283735538 | C204: =SUM(C199:C203) -> 0.8790947761 | D204: =SUM(D199:D203) -> 0.450522386 | E204: =SUM(E199:E203) -> 1.44977898 | F204: =SUM(F199:F203) -> 0.5912480537 | G204: =SUM(G199:G203) -> 0.1780947401 | H204: =SUM(H199:H203) -> 0.7210138567 | I204: =SUM(I199:I203) -> 0.01398274604
A206: Checks | B206: =B204-D$25 -> 0
A208: 2026-27 | B208: Total | C208: =C198 -> Disconnection | D208: =D198 -> Reconnection | E208: =E198 -> Special Meter Read - Metropolitan | F208: Special Meter Read - Non Metropolitan | G208: Meter Removal | H208: Meter Reinstallation | I208: Meter and Gas Installation Test
A209: =A199 -> Return on capital | B209: =SUM(C209:I209) -> 0 | C209: =$E20*C$175 -> 0 | D209: =$E20*D$175 -> 0 | E209: 0 | F209: 0 | G209: 0 | H209: 0 | I209: 0
A210: =A200 -> Return of capital | B210: =SUM(C210:I210) -> 0 | C210: =$E21*C$175 -> 0 | D210: 0 | E210: 0 | F210: 0 | G210: 0 | H210: 0 | I210: 0
A211: =A201 -> O&M | B211: 4.626815631 | C211: =$E22*C$175 -> 0.9495005972 | D211: 0.4866042731 | E211: 1.565890328 | F211: 0.6386005187 | G211: 0.1923581696 | H211: 0.7787591351 | I211: 0.01510261018
A212: =A202 -> Carry-over amounts | B212: 0 | C212: =$E23*C$175 -> 0 | D212: 0 | E212: 0 | F212: 0 | G212: 0 | H212: 0 | I212: 0
A213: =A203 -> Benchmark Tax liability | B213: 0 | C213: =$E24*C$175 -> 0 | D213: 0 | E213: 0 | F213: 0 | G213: 0 | H213: 0 | I213: 0
A214: Total Revenue | B214: 4.626815631 | C214: =SUM(C209:C213) -> 0.9495005972 | D214: =SUM(D209:D213) -> 0.4866042731 | E214: =SUM(E209:E213) -> 1.565890328 | F214: =SUM(F209:F213) -> 0.6386005187 | G214: =SUM(G209:G213) -> 0.1923581696 | H214: =SUM(H209:H213) -> 0.7787591351 | I214: =SUM(I209:I213) -> 0.01510261018
A216: Checks | B216: =B214-E$25 -> 0
A218: 2027-28 | B218: Total | C218: =C208 -> Disconnection | D218: =D208 -> Reconnection | E218: =E208 -> Special Meter Read - Metropolitan | F218: Special Meter Read - Non Metropolitan | G218: Meter Removal | H218: Meter Reinstallation | I218: Meter and Gas Installation Test
A219: =A209 -> Return on capital | B219: =SUM(C219:I219) -> 0 | C219: =$F20*C$175 -> 0 | D219: =$F20*D$175 -> 0 | E219: 0 | F219: 0 | G219: 0 | H219: 0 | I219: 0
A220: =A210 -> Return of capital | B220: =SUM(C220:I220) -> 0 | C220: =$F21*C$175 -> 0 | D220: 0 | E220: 0 | F220: 0 | G220: 0 | H220: 0 | I220: 0
A221: =A211 -> O&M | B221: 4.873205442 | C221: =$F22*C$175 -> 1.000063942 | D221: 0.5125171999 | E221: 1.649278008 | F221: 0.6726076358 | G221: 0.202601736 | H221: 0.8202300583 | I221: 0.01590686294
A222: =A212 -> Carry-over amounts | B222: 0 | C222: =$F23*C$175 -> 0 | D222: 0 | E222: 0 | F222: 0 | G222: 0 | H222: 0 | I222: 0
A223: =A213 -> Benchmark Tax liability | B223: 0 | C223: =$F24*C$175 -> 0 | D223: 0 | E223: 0 | F223: 0 | G223: 0 | H223: 0 | I223: 0
A224: Total Revenue | B224: 4.873205442 | C224: =SUM(C219:C223) -> 1.000063942 | D224: =SUM(D219:D223) -> 0.5125171999 | E224: =SUM(E219:E223) -> 1.649278008 | F224: =SUM(F219:F223) -> 0.6726076358 | G224: =SUM(G219:G223) -> 0.202601736 | H224: =SUM(H219:H223) -> 0.8202300583 | I224: =SUM(I219:I223) -> 0.01590686294
A226: Checks | B226: =B224-F$25 -> 0

Sheet DORC Calculations
A1: DORC Inputs and Calculations
A2: Tariff D DORC Calculations
A4: Tariff D Summary - 1 July 1999 DORC | B4: Total | C4: Mains | D4: Inlets | E4: Meters | F4: Telemetry | G4: Stations | H4: Regulators | J4: Total 2017 RAB | K4: Total 1 July 1999 RAB | N4: Mains - From 1998 DCoS Model
A5: ='General Inputs'!D28 -> Tariff D - MHQ (GJ/h) Tariff D Zone - Central | B5: =SUM(C5:H5) -> 8254681.648 | C5: =O5*$K$5 -> 8254681.648 | D5: =R5*$K$5 -> 0 | J5: =SUM('PTRM Inputs'!B16:B23)*1000000 -> 1975535584 | K5: 580000000 | M5: Revenue D Central | N5: =0.6+0.2+0.18+0.02+0.02+0.5 -> 1.52 | O5: =N5/$N$10 -> 0.01423220974
A6: ='General Inputs'!D29 -> Tariff D - MHQ (GJ/h) Tariff D Zone - North | B6: =SUM(C6:H6) -> 3475655.431 | C6: =O6*$K$5 -> 3475655.431 | D6: 0 | M6: Revenue D North | N6: =0.3+0.1+0.1+0.03+0.01+0.1 -> 0.64 | O6: =N6/$N$10 -> 0.005992509363
A7: ='General Inputs'!D30 -> Tariff D - MHQ (GJ/h) Tariff D Zone - Murray Valley (Vic) | B7: =SUM(C7:H7) -> 135767.7903 | C7: =O7*$K$5 -> 135767.7903 | D7: =R7*$K$5 -> 0 | M7: Revenue D MV | N7: 0.025 | O7: =N7/$N$10 -> 0.000234082397
A8: ='General Inputs'!D31 -> Tariff D - MHQ (GJ/h) Tariff D Zone - Bairnsdale | B8: =SUM(C8:H8) -> 58000 | C8: =O8*$K$5 -> 58000 | M8: Bairnsdale D | O8: 0.0001
A9: Tariff D - MHQ (GJ/h) Tariff D Zone - Albury | B9: =SUM(C9:H9) -> 4344569.288 | C9: 4344569.288 | M9: Revenue D Albury | N9: =0.8 -> 0.8 | O9: =N9/$N$10 -> 0.007490636704
A10: Total | B10: =SUM(B5:B8) -> 11924104.87 | M10: Total Revenue | N10: 106.8
A13: Tariff D Summary - Closing 2017 RAB | B13: Total | C13: Mains | D13: Inlets | E13: Meters | F13: Telemetry | G13: Stations | H13: Regulators
A14: ='General Inputs'!D28 -> Tariff D - MHQ (GJ/h) Tariff D Zone - Central | B14: =SUM(C14:H14) -> 28116236.78 | C14: =C5/$K$5*$J$5 -> 28116236.78 | D14: =D5/$K$5*$J$5 -> 0 | E14: 0 | F14: 0 | G14: 0 | H14: 0
A15: ='General Inputs'!D29 -> Tariff D - MHQ (GJ/h) Tariff D Zone - North | B15: =SUM(C15:H15) -> 11838415.49 | C15: =C6/$K$5*$J$5 -> 11838415.49 | D15: 0
A16: ='General Inputs'!D30 -> Tariff D - MHQ (GJ/h) Tariff D Zone - Murray Valley (Vic) | B16: =SUM(C16:H16) -> 462438.1049 | C16: =C7/$K$5*$J$5 -> 462438.1049 | D16: 0 | E16: =E7/$K$5*$J$5 -> 0 | F16: 0 | G16: 0 | H16: 0
A17: ='General Inputs'!D31 -> Tariff D - MHQ (GJ/h) Tariff D Zone - Bairnsdale | B17: =SUM(C17:H17) -> 197553.5584 | C17: =O8/O5*C14 -> 197553.5584 | D17: 0 | E17: 0 | F17: 0 | G17: 0 | H17: 0
A18: Tariff D - MHQ (GJ/h) Tariff D Zone - Albury | B18: =SUM(C18:H18) -> 14798019.36 | C18: =O9/O6*C15 -> 14798019.36 | D18: 0 | E18: 0 | F18: 0 | G18: 0 | H18: 0
A19: Total | B19: =SUM(B14:B18) -> 55412663.28
A22: Dedicated Connection Asset Cost Calculations
A24: Tariff D - Summary by Region | B24: Meters and RDL by Region as a % of Total Tariff D RAB | C24: Meter Cost: Pro-Rata of 2011-12 Tariff D Revenue Requirement ($M) | D24: Meter Cost: Pro-Rata of 2011-12 Tariff V (Res Central) Revenue Requirement ($M) | F24: Meter Cost: Pro-Rata of 2011-12 Tariff V (Res North) Revenue Requirement ($M) | H24: Meter Cost: Pro-Rata of 2011-12 Tariff V (Res MV) Revenue Requirement ($M) | J24: Meter Cost: Pro-Rata of 2011-12 Tariff V (Res Bairnsdale) Revenue Requirement ($M) | L24: Meter Cost: Pro-Rata of 2011-12 Tariff V (Res Albury) Revenue Requirement ($M) | N24: Meter Cost: Pro-Rata of 2011-12 Tariff V (Non-Res Central) Revenue Requirement ($M) | P24: Meter Cost: Pro-Rata of 2011-12 Tariff V (Non-Res North) Revenue Requirement ($M) | R24: Meter Cost: Pro-Rata of 2011-12 Tariff V (Non-Res MV) Revenue Requirement ($M) | T24: Meter Cost: Pro-Rata of 2011-12 Tariff V (Non-Res Bairnsdale Revenue Requirement ($M) | V24: Meter Cost: Pro-Rata of 2011-12 Tariff V (Non-Res Albury Revenue Requirement ($M)
A25: =A5 -> Tariff D - MHQ (GJ/h) Tariff D Zone - Central | C25: =B25*'FDC Calculations'!$B$121 -> 0 | D25: =B30*'FDC Calculations'!B41 -> 7.896367978 | F25: =B30*'FDC Calculations'!B49 -> 1.088331853 | H25: =B30*'FDC Calculations'!F57 -> 0.1337700015 | J25: =B30*'FDC Calculations'!F73 -> 0.3882328387 | L25: =B30*'FDC Calculations'!F65 -> 0.07844235342 | N25: =B30*'FDC Calculations'!F81 -> 0.8086318577 | P25: =B30*'FDC Calculations'!F89 -> 0.1074935884 | R25: =B30*'FDC Calculations'!F97 -> 0.01004967932 | T25: =B30*'FDC Calculations'!F105 -> 0.007444767982 | V25: =B30*'FDC Calculations'!F113 -> 0.03495631603
A26: =A6 -> Tariff D - MHQ (GJ/h) Tariff D Zone - North | C26: =B26*'FDC Calculations'!$B$121 -> 0
A27: =A7 -> Tariff D - MHQ (GJ/h) Tariff D Zone - Murray Valley (Vic) | C27: =B27*'FDC Calculations'!$B$121 -> 0
A28: =A8 -> Tariff D - MHQ (GJ/h) Tariff D Zone - Bairnsdale | C28: =B28*'FDC Calculations'!$B$121 -> 0
A29: =A9 -> Tariff D - MHQ (GJ/h) Tariff D Zone - Albury | C29: =B29*'FDC Calculations'!$B$121 -> 0
A30: All dedicated assets as a % of RAB (for tariffs V and D combined) | B30: ='PTRM Inputs'!B17/SUM('PTRM Inputs'!B16:B23) -> 0.04646967423

Sheet StandAlone & Avoidable Tests
A1: Standalone and Avoidable Cost Tests
A3: Standalone and Avoidable Cost Tests
A4: Tariff | B4: FDC Cost | C4: Avoidable Cost | D4: Expected Revenue 2023/24 ($M) | E4: Standalone Cost | F4: All Tests Met? | G4: Avoidable Test Met? | H4: Standalone Test Met? | J4: Tariff | K4: =B4 -> FDC Cost | L4: =C4 -> Avoidable Cost | M4: Expected Revenue 2023/24 ($M) | N4: Standalone Cost | O4: =F4 -> All Tests Met? | P4: =G4 -> Avoidable Test Met? | Q4: =H4 -> Standalone Test Met?
A5: ='General Inputs'!B18 -> Tariff R: Res Central | B5: ='FDC Calculations'!B41 -> 169.9251847 | C5: ='DORC Calculations'!D25 -> 7.896367978 | D5: 172.8073029 | E5: =B5+'FDC Calculations'!$B$121 -> 172.9083588 | F5: =IF(AND(D5>=C5,D5<=E5),"Test Met","Test Failed") -> Test Met | G5: =IF(D5>=C5,"Test Met","Test Failed") -> Test Met | H5: =IF(D5<=E5,"Test Met","Test Failed") -> Test Met | J5: Tariff V: Central | K5: =B5+B10 -> 183.841351 | L5: 8.704999836 | M5: 189.0425768 | N5: 189.8076991 | O5: =IF(AND(M5>=L5,M5<=N5),"Test Met","Test Failed") -> Test Met | P5: =IF(M5>=L5,"Test Met","Test Failed") -> Test Met | Q5: =IF(M5<=N5,"Test Met","Test Failed") -> Test Met
A6: ='General Inputs'!B19 -> Tariff R: Res North | B6: ='FDC Calculations'!B49 -> 23.42026 | C6: ='DORC Calculations'!F25 -> 1.088331853 | D6: 18.89274932 | E6: =B6+'FDC Calculations'!$B$121 -> 26.40343407 | F6: =IF(AND(D6>=C6,D6<=E6),"Test Met","Test Failed") -> Test Met | G6: Test Met | H6: =IF(D6<=E6,"Test Met","Test Failed") -> Test Met | J6: Tariff V: North | K6: 25.27017308 | L6: 1.195825441 | M6: 20.49672095 | N6: 31.23652122 | O6: =IF(AND(M6>=L6,M6<=N6),"Test Met","Test Failed") -> Test Met | P6: =IF(M6>=L6,"Test Met","Test Failed") -> Test Met | Q6: =IF(M6<=N6,"Test Met","Test Failed") -> Test Met
A7: ='General Inputs'!B20 -> Tariff R: Res MV (Vic) | B7: ='FDC Calculations'!B57 -> 2.302117542 | C7: ='DORC Calculations'!H25 -> 0.1337700015 | D7: 1.694652676 | E7: =B7+'FDC Calculations'!$B$121 -> 5.285291611 | F7: =IF(AND(D7>=C7,D7<=E7),"Test Met","Test Failed") -> Test Met | G7: =IF(D7>=C7,"Test Met","Test Failed") -> Test Met | H7: =IF(D7<=E7,"Test Met","Test Failed") -> Test Met | J7: Tariff V: MV (Vic) | K7: =B7+B12 -> 2.475067701 | L7: 0.1438196808 | M7: 1.875149632 | N7: =E7+E12 -> 8.441415839 | O7: Test Met | P7: Test Met | Q7: Test Met
A8: ='General Inputs'!B21 -> Tariff R: Res Bairnsdale | B8: ='FDC Calculations'!B65 -> 1.349955265 | C8: ='DORC Calculations'!J25 -> 0.3882328387 | D8: 2.859759129 | E8: =B8+'FDC Calculations'!$B$121 -> 4.333129334 | F8: =IF(AND(D8>=C8,D8<=E8),"Test Met","Test Failed") -> Test Met | G8: Test Met | H8: Test Met | J8: Tariff V: Bairnsdale | K8: =B8+B13 -> 1.47807615 | L8: 0.3956776067 | M8: 3.083945353 | N8: =E8+E13 -> 7.444424288 | O8: Test Met | P8: Test Met | Q8: Test Met
A9: ='General Inputs'!B22 -> Tariff R: Res Albury | B9: ='FDC Calculations'!B73 -> 6.681300877 | C9: ='DORC Calculations'!L25 -> 0.07844235342 | D9: 5.932351072 | E9: =B9+'FDC Calculations'!$B$121 -> 9.664474946 | F9: =IF(AND(D9>=C9,D9<=E9),"Test Met","Test Failed") -> Test Met | G9: =IF(D9>=C9,"Test Met","Test Failed") -> Test Met | H9: =IF(D9<=E9,"Test Met","Test Failed") -> Test Met | J9: Tariff V: Albury | K9: =B9+B14 -> 7.282882303 | L9: =C9+C14 -> 0.1133986694 | M9: =D9+D14 -> 6.446897237 | N9: =E9+E14 -> 13.24923044 | O9: =IF(AND(M9>=L9,M9<=N9),"Test Met","Test Failed") -> Test Met | P9: =IF(M9>=L9,"Test Met","Test Failed") -> Test Met | Q9: =IF(M9<=N9,"Test Met","Test Failed") -> Test Met
A10: ='General Inputs'!B23 -> Tariff C: Non- Res Central | B10: ='FDC Calculations'!B81 -> 13.91616628 | C10: ='DORC Calculations'!N25 -> 0.8086318577 | D10: 16.2352739 | E10: =B10+'FDC Calculations'!$B$121 -> 16.89934035 | F10: =IF(AND(D10>=C10,D10<=E10),"Test Met","Test Failed") -> Test Met | G10: Test Met | H10: Test Met | J10: Tariff D: Central/North | K10: =SUM(B15:B16) -> 2.886025851 | L10: =SUM(C15:C16) -> 0 | M10: =SUM(D15:D16) -> 3.511401534 | N10: =E15 -> 5.016452943 | O10: Test Met | P10: Test Met | Q10: Test Met
A11: ='General Inputs'!B24 -> Tariff C: Non- Res North | B11: ='FDC Calculations'!B89 -> 1.84991308 | C11: ='DORC Calculations'!P25 -> 0.1074935884 | D11: 1.603971638 | E11: =B11+'FDC Calculations'!$B$121 -> 4.833087149 | F11: Test Met | G11: Test Met | H11: Test Met | J11: Tariff D: MV (Vic) | K11: =B17 -> 0.03391126948 | L11: =C17 -> 0 | M11: 0.3296462213 | N11: 3.017085338 | O11: Test Met | P11: Test Met | Q11: Test Met
A12: ='General Inputs'!B25 -> Tariff C: Non- Res MV (Vic) | B12: ='FDC Calculations'!B97 -> 0.1729501592 | C12: ='DORC Calculations'!R25 -> 0.01004967932 | D12: 0.1804969554 | E12: =B12+'FDC Calculations'!$B$121 -> 3.156124228 | F12: Test Met | G12: Test Met | H12: Test Met | J12: Tariff D: Bairnsdale | K12: =B18 -> 0.01441238753 | L12: =C18 -> 0 | M12: 0.04536048701 | N12: 2.997586457 | O12: Test Met | P12: Test Met | Q12: Test Met
A13: ='General Inputs'!B26 -> Tariff C: Non- Res Bairnsdale | B13: ='FDC Calculations'!B105 -> 0.1281208849 | C13: ='DORC Calculations'!T25 -> 0.007444767982 | D13: 0.2241862245 | E13: =B13+'FDC Calculations'!$B$121 -> 3.111294954 | F13: Test Met | G13: Test Met | H13: Test Met | J13: Tariff D: Albury | K13: =B19 -> 0.0488245614 | L13: =C19 -> 0 | M13: =D19 -> 0.03119009699 | N13: =E19 -> 3.03199863 | O13: =IF(AND(M13>=L13,M13<=N13),"Test Met","Test Failed") -> Test Met | P13: =IF(M13>=L13,"Test Met","Test Failed") -> Test Met | Q13: =IF(M13<=N13,"Test Met","Test Failed") -> Test Met
A14: ='General Inputs'!B27 -> Tariff C: Non- Res Albury | B14: ='FDC Calculations'!B113 -> 0.6015814266 | C14: ='DORC Calculations'!V25 -> 0.03495631603 | D14: 0.5145461648 | E14: =B14+'FDC Calculations'!$B$121 -> 3.584755496 | F14: =IF(AND(D14>=C14,D14<=E14),"Test Met","Test Failed") -> Test Met | G14: =IF(D14>=C14,"Test Met","Test Failed") -> Test Met | H14: =IF(D14<=E14,"Test Met","Test Failed") -> Test Met
A15: ='General Inputs'!B28 -> Tariff D: Central | B15: ='FDC Calculations'!C132 -> 2.033278874 | C15: ='DORC Calculations'!C25 -> 0 | D15: 2.813678373 | E15: =B15+'FDC Calculations'!$B$121 -> 5.016452943 | F15: Test Met | G15: Test Met | H15: Test Met
A16: ='General Inputs'!B29 -> Tariff D: North | B16: ='FDC Calculations'!D132 -> 0.8527469766 | C16: ='DORC Calculations'!C26 -> 0 | D16: 0.6977231606 | E16: =B16+'FDC Calculations'!$B$121 -> 3.835921046 | F16: Test Met | G16: Test Met | H16: Test Met
A17: ='General Inputs'!B30 -> Tariff D: MV (Vic) | B17: ='FDC Calculations'!E132 -> 0.03391126948 | C17: ='DORC Calculations'!C27 -> 0 | D17: 0.3296462213 | E17: =B17+'FDC Calculations'!$B$121 -> 3.017085338 | F17: Test Met | G17: Test Met | H17: Test Met
A18: ='General Inputs'!B31 -> Tariff D: Bairnsdale | B18: ='FDC Calculations'!F132 -> 0.01441238753 | C18: ='DORC Calculations'!C28 -> 0 | D18: 0.04536048701 | E18: =B18+'FDC Calculations'!$B$121 -> 2.997586457 | F18: Test Met | G18: Test Met | H18: Test Met
A19: ='General Inputs'!B32 -> Tariff D: Albury | B19: ='FDC Calculations'!G132 -> 0.0488245614 | C19: ='DORC Calculations'!C29 -> 0 | D19: 0.03119009699 | E19: =B19+'FDC Calculations'!$B$121 -> 3.03199863 | F19: =IF(AND(D19>=C19,D19<=E19),"Test Met","Test Failed") -> Test Met | G19: =IF(D19>=C19,"Test Met","Test Failed") -> Test Met | H19: =IF(D19<=E19,"Test Met","Test Failed") -> Test Met
A20: Meter and Gas Installation Test | B20: ='FDC Calculations'!C184 -> 0.7994267182 | C20: 0 | D20: 0.037236 | E20: =D20 -> 0.037236 | F20: Test Met | G20: Test Met | H20: Test Met
A21: Disconnection | C21: 0 | D21: 0.420529 | E21: =D21 -> 0.420529 | F21: =IF(AND(D21>=C21,D21<=E21),"Test Met","Test Failed") -> Test Met | G21: =IF(D21>=C21,"Test Met","Test Failed") -> Test Met | H21: =IF(D21<=E21,"Test Met","Test Failed") -> Test Met
A22: Reconnection | C22: 0 | D22: 0.6247523333 | E22: 0.6247523333 | F22: Test Met | G22: Test Met | H22: Test Met
A23: Meter Removal | C23: 0 | D23: 0.248868 | E23: 0.248868 | F23: Test Met | G23: Test Met | H23: Test Met
A24: Meter Reinstallation | C24: 0 | D24: 0.008184 | E24: 0.008184 | F24: Test Met | G24: Test Met | H24: Test Met
A25: Special Meter Read - Metropolitan | C25: 0 | D25: 1.7076906 | E25: 1.7076906 | F25: Test Met | G25: Test Met | H25: Test Met
A26: Special Meter Read - Non Metropolitan | C26: 0 | D26: 0.8845741333 | E26: =D26 -> 0.8845741333 | F26: =IF(AND(D26>=C26,D26<=E26),"Test Met","Test Failed") -> Test Met | G26: =IF(D26>=C26,"Test Met","Test Failed") -> Test Met | H26: =IF(D26<=E26,"Test Met","Test Failed") -> Test Met
